Organisation name,Organisation Code,Effective date,Directorate / service where expenditure incurred,Service Category label,Service category URI,Supplier (Beneficiary) name,Local supplier (beneficiary) internal reference,Supplier,Supplier registered charity number,VCSE grant,Payment date - G/L Date,Transaction number,Net Amount,Irrecoverable VAT,purpose_of_spend,Procurement classification / merchant category: Council�s procurement category name,Procurement classification / merchant category: CPV label,Procurement classification / merchant category: CPV code,Procurement classification / merchant category: Proclass label,Procurement classification / merchant category: Proclass code,card_transaction
The Royal Borough of Kensington and Chelsea,RBKC,,"Libraries, Archives & Registrars",Archives and Local Studies,,Oak Fine Art Services LTD,1292758,,,,22/06/2022,2200253646,600.00,,Postage and Delivery,,,,,,No
The Royal Borough of Kensington and Chelsea,RBKC,,"Libraries, Archives & Registrars",Archives and Local Studies,,Rackline LTD,1278366,,,,01/04/2022,2200240335,"3,000.00",,"Books, DVDs and CDs",,,,,,No
The Royal Borough of Kensington and Chelsea,RBKC,,Director Integrated Commissioning,Head of Service Commissioning ASC,,Medequip Assistive Technology Ltd ,1234994,,,,07/04/2022,2200239324,"128,732.32",,Hired and Contracted Services,,,,,,No
The Royal Borough of Kensington and Chelsea,RBKC,,Director Integrated Commissioning,Head of Service Commissioning ASC,,Medequip Assistive Technology Ltd ,1234994,,,,12/04/2022,2200240569,"4,036.56",,Hired and Contracted Services,,,,,,No
The Royal Borough of Kensington and Chelsea,RBKC,,Director Integrated Commissioning,Head of Service Commissioning ASC,,Medequip Assistive Technology Ltd ,1234994,,,,12/04/2022,2200240571,708.00,,Hired and Contracted Services,,,,,,No
The Royal Borough of Kensington and Chelsea,RBKC,,Director Integrated Commissioning,Head of Service Commissioning ASC,,Medequip Assistive Technology Ltd ,1234994,,,,17/05/2022,2200246781,"148,342.35",,Hired and Contracted Services,,,,,,No
The Royal Borough of Kensington and Chelsea,RBKC,,Director Integrated Commissioning,Head of Service Commissioning ASC,,Medequip Assistive Technology Ltd ,1234994,,,,19/05/2022,2200247563,"4,208.00",,Hired and Contracted Services,,,,,,No
The Royal Borough of Kensington and Chelsea,RBKC,,Director Integrated Commissioning,Head of Service Commissioning ASC,,Medequip Assistive Technology Ltd ,1234994,,,,19/05/2022,2200247565,"10,500.00",,Hired and Contracted Services,,,,,,No
The Royal Borough of Kensington and Chelsea,RBKC,,Director Integrated Commissioning,Head of Service Commissioning ASC,,Medequip Assistive Technology Ltd ,1234994,,,,28/06/2022,2200254623,"160,110.18",,Hired and Contracted Services,,,,,,No
The Royal Borough of Kensington and Chelsea,RBKC,,Director Integrated Commissioning,Head of Service Commissioning ASC,,Medequip Assistive Technology Ltd ,1234994,,,,28/06/2022,2200254630,"14,608.00",,Hired and Contracted Services,,,,,,No
The Royal Borough of Kensington and Chelsea,RBKC,,Director Integrated Commissioning,Head of Service Commissioning ASC,,Bevan Brittan Llp ,1232737,,,,08/04/2022,2200239757,"18,969.50",,Legal Costs,,,,,,No
The Royal Borough of Kensington and Chelsea,RBKC,,Director Integrated Commissioning,Head of Service Commissioning ASC,,Community Equipment Solutions Ltd,1284447,,,,04/04/2022,2200238354,800.00,,B*Safety Sampling & Testing,,,,,,No
The Royal Borough of Kensington and Chelsea,RBKC,,Director Adult Social Care,Head of Service Care and Assessment RBKC,,BUDDI LIMITED,1280098,,,,13/05/2022,2200246282,"2,190.00",,Payments to Voluntary bodies,,,,,,No
The Royal Borough of Kensington and Chelsea,RBKC,,Director Adult Social Care,Head of Service Care and Assessment RBKC,,Doro AB,1274450,,,,06/04/2022,2200238954,"1,900.95",,Payments to Voluntary bodies,,,,,,No
The Royal Borough of Kensington and Chelsea,RBKC,,Director Adult Social Care,Head of Service Care and Assessment RBKC,,Doro AB,1274450,,,,13/04/2022,2200240886,"1,000.95",,Payments to Voluntary bodies,,,,,,No
The Royal Borough of Kensington and Chelsea,RBKC,,Director Adult Social Care,Head of Service Care and Assessment RBKC,,Doro AB,1274450,,,,05/05/2022,2200244370,840.00,,Payments to Voluntary bodies,,,,,,No
The Royal Borough of Kensington and Chelsea,RBKC,,Director Adult Social Care,Head of Service Care and Assessment RBKC,,Doro AB,1274450,,,,17/05/2022,2200246791,"3,780.00",,Payments to Voluntary bodies,,,,,,No
The Royal Borough of Kensington and Chelsea,RBKC,,Director Adult Social Care,Head of Service Care and Assessment RBKC,,Doro AB,1274450,,,,17/05/2022,2200246901,"1,900.95",,Payments to Voluntary bodies,,,,,,No
The Royal Borough of Kensington and Chelsea,RBKC,,Director Adult Social Care,Head of Service Care and Assessment RBKC,,Doro AB,1274450,,,,31/05/2022,2200249555,"2,310.95",,Payments to Voluntary bodies,,,,,,No
The Royal Borough of Kensington and Chelsea,RBKC,,Director Adult Social Care,Head of Service Care and Assessment RBKC,,Doro AB,1274450,,,,13/06/2022,2200251734,"3,790.95",,Payments to Voluntary bodies,,,,,,No
The Royal Borough of Kensington and Chelsea,RBKC,,Director Adult Social Care,Head of Service Care and Assessment RBKC,,Doro AB,1274450,,,,21/06/2022,2200253373,"5,680.95",,Payments to Voluntary bodies,,,,,,No
The Royal Borough of Kensington and Chelsea,RBKC,,Director Adult Social Care,Head of Service Care and Assessment RBKC,,Doro AB,1274450,,,,21/06/2022,2200253374,"1,990.95",,Payments to Voluntary bodies,,,,,,No
The Royal Borough of Kensington and Chelsea,RBKC,,Director Adult Social Care,Head of Service Care and Assessment RBKC,,Red Alert Ltd ,1231238,,,,15/05/2022,2200246521,700.00,,Payments to Voluntary bodies,,,,,,No
The Royal Borough of Kensington and Chelsea,RBKC,,Director Adult Social Care,Head of Service Care and Assessment RBKC,,Red Alert Ltd ,1231238,,,,25/05/2022,2200248789,700.00,,Payments to Voluntary bodies,,,,,,No
The Royal Borough of Kensington and Chelsea,RBKC,,Director Adult Social Care,Head of Service Care and Assessment RBKC,,Red Alert Ltd ,1231238,,,,25/05/2022,2200248793,700.00,,Payments to Voluntary bodies,,,,,,No
The Royal Borough of Kensington and Chelsea,RBKC,,Director Adult Social Care,Head of Service Care and Assessment RBKC,,Red Alert Ltd ,1231238,,,,06/06/2022,2200250229,700.00,,Payments to Voluntary bodies,,,,,,No
The Royal Borough of Kensington and Chelsea,RBKC,,Director Adult Social Care,Head of Service Care and Assessment RBKC,,Red Alert Ltd ,1231238,,,,22/06/2022,2200253521,700.00,,Payments to Voluntary bodies,,,,,,No
The Royal Borough of Kensington and Chelsea,RBKC,,Director Adult Social Care,Head of Service Care and Assessment RBKC,,Red Alert Ltd ,1231238,,,,23/06/2022,2200253705,700.00,,Payments to Voluntary bodies,,,,,,No
The Royal Borough of Kensington and Chelsea,RBKC,,Director Adult Social Care,Head of Service Care and Assessment RBKC,,Tunstall Healthcare (UK) Ltd (Use 3012996),1235586,,,,07/04/2022,2200239332,"1,657.50",,Payments to Voluntary bodies,,,,,,No
The Royal Borough of Kensington and Chelsea,RBKC,,Director Adult Social Care,Head of Service Care and Assessment RBKC,,Tunstall Healthcare (UK) Ltd (Use 3012996),1235586,,,,04/05/2022,2200244105,"3,500.00",,Payments to Voluntary bodies,,,,,,No
The Royal Borough of Kensington and Chelsea,RBKC,,Director Adult Social Care,Head of Service Care and Assessment RBKC,,Tunstall Healthcare (UK) Ltd (Use 3012996),1235586,,,,04/05/2022,2200244107,"3,910.85",,Payments to Voluntary bodies,,,,,,No
The Royal Borough of Kensington and Chelsea,RBKC,,Director Adult Social Care,Head of Service Care and Assessment RBKC,,Tunstall Healthcare (UK) Ltd (Use 3012996),1235586,,,,05/05/2022,2200244367,816.00,,Payments to Voluntary bodies,,,,,,No
The Royal Borough of Kensington and Chelsea,RBKC,,Director Adult Social Care,Head of Service Care and Assessment RBKC,,Tunstall Healthcare (UK) Ltd (Use 3012996),1235586,,,,29/06/2022,2200254950,"3,750.00",,Payments to Voluntary bodies,,,,,,No
The Royal Borough of Kensington and Chelsea,RBKC,,Planning and Place,Support and Systems,,London Borough Of Tower Hamlets,1231824,,,,07/06/2022,2200250534,"6,000.00",,Payment to Government Departments,,,,,,No
The Royal Borough of Kensington and Chelsea,RBKC,,Planning and Place,Support and Systems,,Idox Software Ltd ,1230453,,,,29/06/2022,2200254882,"7,500.00",,Purchase of IT Equipment,,,,,,No
The Royal Borough of Kensington and Chelsea,RBKC,,Planning and Place,Support and Systems,,No5 Chambers,1287248,,,,09/06/2022,2200251347,"1,125.00",,Legal Costs,,,,,,No
The Royal Borough of Kensington and Chelsea,RBKC,,Planning and Place,Support and Systems,,Wates Living Space (Maintenance) Ltd,1231445,,,,14/04/2022,2200240976,"17,060.60",,Service Charges - Premises,,,,,,No
The Royal Borough of Kensington and Chelsea,RBKC,,"Cleaner, Greener and Cultural Services",Leisure and Parks,,C J Jordan & Son Ltd ,1233031,,,,26/04/2022,2200242696,786.54,,Hired and Contracted Services,,,,,,No
The Royal Borough of Kensington and Chelsea,RBKC,,"Cleaner, Greener and Cultural Services",Leisure and Parks,,C J Jordan & Son Ltd ,1233031,,,,26/04/2022,2200242699,"1,964.60",,Hired and Contracted Services,,,,,,No
The Royal Borough of Kensington and Chelsea,RBKC,,"Cleaner, Greener and Cultural Services",Leisure and Parks,,C J Jordan & Son Ltd ,1233031,,,,27/04/2022,2200242971,801.06,,Hired and Contracted Services,,,,,,No
The Royal Borough of Kensington and Chelsea,RBKC,,"Cleaner, Greener and Cultural Services",Leisure and Parks,,C J Jordan & Son Ltd ,1233031,,,,24/05/2022,2200248484,"1,651.70",,Hired and Contracted Services,,,,,,No
The Royal Borough of Kensington and Chelsea,RBKC,,"Cleaner, Greener and Cultural Services",Leisure and Parks,,C J Jordan & Son Ltd ,1233031,,,,24/05/2022,2200248506,951.50,,Hired and Contracted Services,,,,,,No
The Royal Borough of Kensington and Chelsea,RBKC,,"Cleaner, Greener and Cultural Services",Leisure and Parks,,C J Jordan & Son Ltd ,1233031,,,,24/05/2022,2200248508,543.72,,Hired and Contracted Services,,,,,,No
The Royal Borough of Kensington and Chelsea,RBKC,,"Cleaner, Greener and Cultural Services",Leisure and Parks,,C J Jordan & Son Ltd ,1233031,,,,25/05/2022,2200248818,543.72,,Hired and Contracted Services,,,,,,No
The Royal Borough of Kensington and Chelsea,RBKC,,"Cleaner, Greener and Cultural Services",Leisure and Parks,,C J Jordan & Son Ltd ,1233031,,,,22/06/2022,2200253576,"1,479.51",,Hired and Contracted Services,,,,,,No
The Royal Borough of Kensington and Chelsea,RBKC,,"Cleaner, Greener and Cultural Services",Leisure and Parks,,C J Jordan & Son Ltd ,1233031,,,,22/06/2022,2200253598,"1,651.70",,Hired and Contracted Services,,,,,,No
The Royal Borough of Kensington and Chelsea,RBKC,,"Cleaner, Greener and Cultural Services",Leisure and Parks,,C J Jordan & Son Ltd ,1233031,,,,24/06/2022,2200254109,"1,221.70",,Hired and Contracted Services,,,,,,No
The Royal Borough of Kensington and Chelsea,RBKC,,"Cleaner, Greener and Cultural Services",Leisure and Parks,,C J Jordan & Son Ltd ,1233031,,,,27/06/2022,2200254284,761.20,,Hired and Contracted Services,,,,,,No
The Royal Borough of Kensington and Chelsea,RBKC,,"Cleaner, Greener and Cultural Services",Leisure and Parks,,C J Jordan & Son Ltd ,1233031,,,,28/06/2022,2200254629,570.90,,Hired and Contracted Services,,,,,,No
The Royal Borough of Kensington and Chelsea,RBKC,,"Cleaner, Greener and Cultural Services",Leisure and Parks,,Redact Details,D000000023,,,,26/05/2022,3110441073,"4,665.00",,General Fees and Charges,,,,,,No
The Royal Borough of Kensington and Chelsea,RBKC,,"Cleaner, Greener and Cultural Services",Leisure and Parks,,Redact Details,1234806,,,,27/04/2022,2200243022,"1,205.00",,Equipment,,,,,,No
The Royal Borough of Kensington and Chelsea,RBKC,,"Cleaner, Greener and Cultural Services",Leisure and Parks,,Redact Details,1234806,,,,11/05/2022,2200245757,"1,029.00",,Equipment,,,,,,No
The Royal Borough of Kensington and Chelsea,RBKC,,"Cleaner, Greener and Cultural Services",Leisure and Parks,,Redact Details,1234806,,,,10/06/2022,2200251488,"1,259.00",,Equipment,,,,,,No
The Royal Borough of Kensington and Chelsea,RBKC,,"Cleaner, Greener and Cultural Services",Leisure and Parks,,Redact Details,1234806,,,,10/06/2022,2200251489,"1,253.00",,Equipment,,,,,,No
The Royal Borough of Kensington and Chelsea,RBKC,,"Cleaner, Greener and Cultural Services",Leisure and Parks,,Redact Details,1234806,,,,10/06/2022,2200251490,"1,253.00",,Equipment,,,,,,No
The Royal Borough of Kensington and Chelsea,RBKC,,"Cleaner, Greener and Cultural Services",Leisure and Parks,,Redact Details,1231393,,,,09/06/2022,2200251126,"1,465.00",,Other Adhoc Site / Grounds Maintenanc,,,,,,No
The Royal Borough of Kensington and Chelsea,RBKC,,"Cleaner, Greener and Cultural Services",Leisure and Parks,,T/A Idverde ,1231423,,,,04/05/2022,2200244156,"41,331.99",,Grounds Maintenance Contracts,,,,,,No
The Royal Borough of Kensington and Chelsea,RBKC,,"Cleaner, Greener and Cultural Services",Leisure and Parks,,T/A Idverde ,1231423,,,,09/05/2022,2200245190,"41,331.99",,Grounds Maintenance Contracts,,,,,,No
The Royal Borough of Kensington and Chelsea,RBKC,,Statutory Year-End Adjustments,Statutory Year-End Adjustments,,24 Seven Companies Ltd,1260952,,,,19/04/2022,2200241333,"1,000.00",,Payments to main contractor,,,,,,No
The Royal Borough of Kensington and Chelsea,RBKC,,Statutory Year-End Adjustments,Statutory Year-End Adjustments,,24 Seven Companies Ltd,1260952,,,,03/05/2022,2200243873,"1,000.00",,Payments to main contractor,,,,,,No
The Royal Borough of Kensington and Chelsea,RBKC,,Statutory Year-End Adjustments,Statutory Year-End Adjustments,,24 Seven Companies Ltd,1260952,,,,03/05/2022,2200243874,550.00,,Payments to main contractor,,,,,,No
The Royal Borough of Kensington and Chelsea,RBKC,,Statutory Year-End Adjustments,Statutory Year-End Adjustments,,24 Seven Companies Ltd,1260952,,,,12/05/2022,2200246084,"1,000.00",,Payments to main contractor,,,,,,No
The Royal Borough of Kensington and Chelsea,RBKC,,Statutory Year-End Adjustments,Statutory Year-End Adjustments,,3Bm Ltd,1232075,,,,11/04/2022,2200239957,"1,312.66",,B*Surveyors,,,,,,No
The Royal Borough of Kensington and Chelsea,RBKC,,Statutory Year-End Adjustments,Statutory Year-End Adjustments,,3Bm Ltd,1232075,,,,11/04/2022,2200239960,"9,950.00",,B*Surveyors,,,,,,No
The Royal Borough of Kensington and Chelsea,RBKC,,Statutory Year-End Adjustments,Statutory Year-End Adjustments,,3Bm Ltd,1232075,,,,11/04/2022,2200239962,"2,673.00",,HCC - Architects,,,,,,No
The Royal Borough of Kensington and Chelsea,RBKC,,Statutory Year-End Adjustments,Statutory Year-End Adjustments,,3Bm Ltd,1232075,,,,11/04/2022,2200239963,990.00,,B*Surveyors,,,,,,No
The Royal Borough of Kensington and Chelsea,RBKC,,Statutory Year-End Adjustments,Statutory Year-End Adjustments,,3Bm Ltd,1232075,,,,12/04/2022,2200240522,"80,000.00",,HCC - Architects,,,,,,No
The Royal Borough of Kensington and Chelsea,RBKC,,Statutory Year-End Adjustments,Statutory Year-End Adjustments,,3Bm Ltd,1232075,,,,12/04/2022,2200240522,"8,000.00",,HCC - Architects,,,,,,No
The Royal Borough of Kensington and Chelsea,RBKC,,Statutory Year-End Adjustments,Statutory Year-End Adjustments,,3Bm Ltd,1232075,,,,12/04/2022,2200240627,644.00,,HCC - Architects,,,,,,No
The Royal Borough of Kensington and Chelsea,RBKC,,Statutory Year-End Adjustments,Statutory Year-End Adjustments,,3Bm Ltd,1232075,,,,12/04/2022,2200240627,"6,437.00",,HCC - Architects,,,,,,No
The Royal Borough of Kensington and Chelsea,RBKC,,Statutory Year-End Adjustments,Statutory Year-End Adjustments,,3Bm Ltd,1232075,,,,17/05/2022,2200246879,"1,864.50",,B*Surveyors,,,,,,No
The Royal Borough of Kensington and Chelsea,RBKC,,Statutory Year-End Adjustments,Statutory Year-End Adjustments,,3Bm Ltd,1232075,,,,18/05/2022,2200247310,645.00,,HCC - Architects,,,,,,No
The Royal Borough of Kensington and Chelsea,RBKC,,Statutory Year-End Adjustments,Statutory Year-End Adjustments,,3Bm Ltd,1232075,,,,18/05/2022,2200247310,"6,500.00",,HCC - Architects,,,,,,No
The Royal Borough of Kensington and Chelsea,RBKC,,Statutory Year-End Adjustments,Statutory Year-End Adjustments,,3Bm Ltd,1232075,,,,20/05/2022,2200247911,650.00,,B*Surveyors,,,,,,No
The Royal Borough of Kensington and Chelsea,RBKC,,Statutory Year-End Adjustments,Statutory Year-End Adjustments,,3Bm Ltd,1232075,,,,20/05/2022,2200247911,"6,500.00",,B*Surveyors,,,,,,No
The Royal Borough of Kensington and Chelsea,RBKC,,Statutory Year-End Adjustments,Statutory Year-End Adjustments,,3Bm Ltd,1232075,,,,20/05/2022,2200247915,"3,905.00",,B*Surveyors,,,,,,No
The Royal Borough of Kensington and Chelsea,RBKC,,Statutory Year-End Adjustments,Statutory Year-End Adjustments,,3Bm Ltd,1232075,,,,20/05/2022,2200247915,"39,050.00",,B*Surveyors,,,,,,No
The Royal Borough of Kensington and Chelsea,RBKC,,Statutory Year-End Adjustments,Statutory Year-End Adjustments,,3Bm Ltd,1232075,,,,13/06/2022,2200251969,537.71,,B*HCC - Planning Officer,,,,,,No
The Royal Borough of Kensington and Chelsea,RBKC,,Statutory Year-End Adjustments,Statutory Year-End Adjustments,,3Bm Ltd,1232075,,,,13/06/2022,2200251970,"4,647.50",,B*Surveyors,,,,,,No
The Royal Borough of Kensington and Chelsea,RBKC,,Statutory Year-End Adjustments,Statutory Year-End Adjustments,,3Bm Ltd,1232075,,,,14/06/2022,2200252027,"22,000.00",,B*Surveyors,,,,,,No
The Royal Borough of Kensington and Chelsea,RBKC,,Statutory Year-End Adjustments,Statutory Year-End Adjustments,,3Bm Ltd,1232075,,,,14/06/2022,2200252028,644.00,,B*Surveyors,,,,,,No
The Royal Borough of Kensington and Chelsea,RBKC,,Statutory Year-End Adjustments,Statutory Year-End Adjustments,,3Bm Ltd,1232075,,,,14/06/2022,2200252028,"6,440.00",,B*Surveyors,,,,,,No
The Royal Borough of Kensington and Chelsea,RBKC,,Statutory Year-End Adjustments,Statutory Year-End Adjustments,,3Bm Ltd,1232075,,,,14/06/2022,2200252029,"1,045.00",,B*Surveyors,,,,,,No
The Royal Borough of Kensington and Chelsea,RBKC,,Statutory Year-End Adjustments,Statutory Year-End Adjustments,,3Bm Ltd,1232075,,,,14/06/2022,2200252029,"1,500.00",,B*Surveyors,,,,,,No
The Royal Borough of Kensington and Chelsea,RBKC,,Statutory Year-End Adjustments,Statutory Year-End Adjustments,,3Bm Ltd,1232075,,,,15/06/2022,2200252248,"6,440.00",,B*Surveyors,,,,,,No
The Royal Borough of Kensington and Chelsea,RBKC,,Statutory Year-End Adjustments,Statutory Year-End Adjustments,,3Bm Ltd,1232075,,,,15/06/2022,2200252248,644.00,,B*Surveyors,,,,,,No
The Royal Borough of Kensington and Chelsea,RBKC,,Statutory Year-End Adjustments,Statutory Year-End Adjustments,,4i Solutions Ltd,1232084,,,,25/04/2022,2200242312,"11,052.06",,Payments to main contractor,,,,,,No
The Royal Borough of Kensington and Chelsea,RBKC,,Statutory Year-End Adjustments,Statutory Year-End Adjustments,,4i Solutions Ltd,1232084,,,,01/06/2022,2200249886,"9,308.33",,Payments to main contractor,,,,,,No
The Royal Borough of Kensington and Chelsea,RBKC,,Statutory Year-End Adjustments,Statutory Year-End Adjustments,,4i Solutions Ltd,1232084,,,,09/06/2022,2200251170,"11,696.76",,Payments to main contractor,,,,,,No
The Royal Borough of Kensington and Chelsea,RBKC,,Statutory Year-End Adjustments,Statutory Year-End Adjustments,,A N Contract Service Ltd,1232095,,,,01/04/2022,2200238663,"7,868.75",,Planned Maintenance (CM),,,,,,No
The Royal Borough of Kensington and Chelsea,RBKC,,Statutory Year-End Adjustments,Statutory Year-End Adjustments,,A N Contract Service Ltd,1232095,,,,18/05/2022,2200247440,"5,400.00",,Planned Maintenance (CM),,,,,,No
The Royal Borough of Kensington and Chelsea,RBKC,,Statutory Year-End Adjustments,Statutory Year-End Adjustments,,A N Contract Service Ltd,1232095,,,,18/05/2022,2200247441,"9,556.00",,Planned Maintenance (CM),,,,,,No
The Royal Borough of Kensington and Chelsea,RBKC,,Statutory Year-End Adjustments,Statutory Year-End Adjustments,,A N Contract Service Ltd,1232095,,,,18/05/2022,2200247443,"18,944.00",,Planned Maintenance (CM),,,,,,No
The Royal Borough of Kensington and Chelsea,RBKC,,Statutory Year-End Adjustments,Statutory Year-End Adjustments,,A N Contract Service Ltd,1232095,,,,18/05/2022,2200247444,"4,900.00",,Planned Maintenance (CM),,,,,,No
The Royal Borough of Kensington and Chelsea,RBKC,,Statutory Year-End Adjustments,Statutory Year-End Adjustments,,A N Contract Service Ltd,1232095,,,,18/05/2022,2200247445,"8,300.00",,Planned Maintenance (CM),,,,,,No
The Royal Borough of Kensington and Chelsea,RBKC,,Statutory Year-End Adjustments,Statutory Year-End Adjustments,,A N Contract Service Ltd,1232095,,,,18/05/2022,2200247446,"9,650.00",,Planned Maintenance (CM),,,,,,No
The Royal Borough of Kensington and Chelsea,RBKC,,Statutory Year-End Adjustments,Statutory Year-End Adjustments,,A N Contract Service Ltd,1232095,,,,18/05/2022,2200247447,"11,200.00",,Planned Maintenance (CM),,,,,,No
The Royal Borough of Kensington and Chelsea,RBKC,,Statutory Year-End Adjustments,Statutory Year-End Adjustments,,A N Contract Service Ltd,1232095,,,,18/05/2022,2200247448,"14,875.00",,Planned Maintenance (CM),,,,,,No
The Royal Borough of Kensington and Chelsea,RBKC,,Statutory Year-End Adjustments,Statutory Year-End Adjustments,,A N Contract Service Ltd,1232095,,,,18/05/2022,2200247450,"12,760.00",,Planned Maintenance (CM),,,,,,No
The Royal Borough of Kensington and Chelsea,RBKC,,Statutory Year-End Adjustments,Statutory Year-End Adjustments,,A N Contract Service Ltd,1232095,,,,14/06/2022,2200252075,"2,854.00",,Planned Maintenance (CM),,,,,,No
The Royal Borough of Kensington and Chelsea,RBKC,,Statutory Year-End Adjustments,Statutory Year-End Adjustments,,A N Contract Service Ltd,1232095,,,,15/06/2022,2200252321,"11,750.00",,Planned Maintenance (CM),,,,,,No
The Royal Borough of Kensington and Chelsea,RBKC,,Statutory Year-End Adjustments,Statutory Year-End Adjustments,,A N Contract Service Ltd,1232095,,,,15/06/2022,2200252322,"4,500.00",,Planned Maintenance (CM),,,,,,No
The Royal Borough of Kensington and Chelsea,RBKC,,Statutory Year-End Adjustments,Statutory Year-End Adjustments,,A N Contract Service Ltd,1232095,,,,15/06/2022,2200252323,"9,175.00",,Planned Maintenance (CM),,,,,,No
The Royal Borough of Kensington and Chelsea,RBKC,,Statutory Year-End Adjustments,Statutory Year-End Adjustments,,A N Contract Service Ltd,1232095,,,,15/06/2022,2200252328,"7,200.00",,Planned Maintenance (CM),,,,,,No
The Royal Borough of Kensington and Chelsea,RBKC,,Statutory Year-End Adjustments,Statutory Year-End Adjustments,,A N Contract Service Ltd,1232095,,,,16/06/2022,2200252500,"1,803.00",,Site Works,,,,,,No
The Royal Borough of Kensington and Chelsea,RBKC,,Statutory Year-End Adjustments,Statutory Year-End Adjustments,,A N Contract Service Ltd,1232095,,,,16/06/2022,2200252501,630.00,,Site Works,,,,,,No
The Royal Borough of Kensington and Chelsea,RBKC,,Statutory Year-End Adjustments,Statutory Year-End Adjustments,,A N Contract Service Ltd,1232095,,,,16/06/2022,2200252579,"19,015.00",,Payments to main contractor,,,,,,No
The Royal Borough of Kensington and Chelsea,RBKC,,Statutory Year-End Adjustments,Statutory Year-End Adjustments,,A N Contract Service Ltd,1232095,,,,30/06/2022,2200255157,"21,432.00",,Planned Maintenance (CM),,,,,,No
The Royal Borough of Kensington and Chelsea,RBKC,,Statutory Year-End Adjustments,Statutory Year-End Adjustments,,A N Contract Service Ltd,1232095,,,,30/06/2022,2200255158,"15,288.00",,Planned Maintenance (CM),,,,,,No
The Royal Borough of Kensington and Chelsea,RBKC,,Statutory Year-End Adjustments,Statutory Year-End Adjustments,,A N Contract Service Ltd,1232095,,,,30/06/2022,2200255159,"9,144.00",,Planned Maintenance (CM),,,,,,No
The Royal Borough of Kensington and Chelsea,RBKC,,Statutory Year-End Adjustments,Statutory Year-End Adjustments,,A N Contract Service Ltd,1232095,,,,30/06/2022,2200255160,"23,317.00",,Planned Maintenance (CM),,,,,,No
The Royal Borough of Kensington and Chelsea,RBKC,,Statutory Year-End Adjustments,Statutory Year-End Adjustments,,A N Contract Service Ltd,1232095,,,,30/06/2022,2200255161,"22,611.00",,Planned Maintenance (CM),,,,,,No
The Royal Borough of Kensington and Chelsea,RBKC,,Statutory Year-End Adjustments,Statutory Year-End Adjustments,,A N Contract Service Ltd,1232095,,,,30/06/2022,2200255162,"9,383.00",,Planned Maintenance (CM),,,,,,No
The Royal Borough of Kensington and Chelsea,RBKC,,Statutory Year-End Adjustments,Statutory Year-End Adjustments,,A N Contract Service Ltd,1232095,,,,30/06/2022,2200255164,"14,850.00",,Planned Maintenance (CM),,,,,,No
The Royal Borough of Kensington and Chelsea,RBKC,,Statutory Year-End Adjustments,Statutory Year-End Adjustments,,A N Contract Service Ltd,1232095,,,,30/06/2022,2200255165,"8,550.00",,Planned Maintenance (CM),,,,,,No
The Royal Borough of Kensington and Chelsea,RBKC,,Statutory Year-End Adjustments,Statutory Year-End Adjustments,,A2Dominion Housing Group,1232099,,,,22/06/2022,2200253548,"1,000.00",,Other Consultants,,,,,,No
The Royal Borough of Kensington and Chelsea,RBKC,,Statutory Year-End Adjustments,Statutory Year-End Adjustments,,ACS PROFESSIONALS IN CONSTRUCTION LTD,1277658,,,,19/05/2022,2200247700,"110,175.00",,Payments to main contractor,,,,,,No
The Royal Borough of Kensington and Chelsea,RBKC,,Statutory Year-End Adjustments,Statutory Year-End Adjustments,,ACS PROFESSIONALS IN CONSTRUCTION LTD,1277658,,,,29/06/2022,2200254921,"11,250.00",,Other Consultants,,,,,,No
The Royal Borough of Kensington and Chelsea,RBKC,,Statutory Year-End Adjustments,Statutory Year-End Adjustments,,Akdesign Consultants Ltd,1263929,,,,01/04/2022,2200240391,"1,775.00",,Creditors GR/IR -,,,,,,No
The Royal Borough of Kensington and Chelsea,RBKC,,Statutory Year-End Adjustments,Statutory Year-End Adjustments,,Akdesign Consultants Ltd,1263929,,,,07/04/2022,2200239440,"1,255.00",,,,,,,,No
The Royal Borough of Kensington and Chelsea,RBKC,,Statutory Year-End Adjustments,Statutory Year-End Adjustments,,Akdesign Consultants Ltd,1263929,,,,12/04/2022,2200240509,"2,250.00",,Creditors GR/IR -,,,,,,No
The Royal Borough of Kensington and Chelsea,RBKC,,Statutory Year-End Adjustments,Statutory Year-End Adjustments,,Akdesign Consultants Ltd,1263929,,,,25/04/2022,2200242525,720.00,,,,,,,,No
The Royal Borough of Kensington and Chelsea,RBKC,,Statutory Year-End Adjustments,Statutory Year-End Adjustments,,Akdesign Consultants Ltd,1263929,,,,10/05/2022,2200245510,500.00,,,,,,,,No
The Royal Borough of Kensington and Chelsea,RBKC,,Statutory Year-End Adjustments,Statutory Year-End Adjustments,,Akdesign Consultants Ltd,1263929,,,,19/05/2022,2200247819,750.00,,,,,,,,No
The Royal Borough of Kensington and Chelsea,RBKC,,Statutory Year-End Adjustments,Statutory Year-End Adjustments,,Akdesign Consultants Ltd,1263929,,,,13/06/2022,2200251964,"1,085.00",,,,,,,,No
The Royal Borough of Kensington and Chelsea,RBKC,,Statutory Year-End Adjustments,Statutory Year-End Adjustments,,Ans Group Ltd,1265384,,,,07/04/2022,2200239405,"12,705.19",,Computer Software,,,,,,No
The Royal Borough of Kensington and Chelsea,RBKC,,Statutory Year-End Adjustments,Statutory Year-End Adjustments,,Ans Group Ltd,1265384,,,,20/04/2022,2200241697,"14,654.36",,Computer Software,,,,,,No
The Royal Borough of Kensington and Chelsea,RBKC,,Statutory Year-End Adjustments,Statutory Year-End Adjustments,,Ans Group Ltd,1265384,,,,27/05/2022,2200249123,"14,319.06",,Computer Software,,,,,,No
The Royal Borough of Kensington and Chelsea,RBKC,,Statutory Year-End Adjustments,Statutory Year-End Adjustments,,Ans Group Ltd,1265384,,,,31/05/2022,2200249591,"48,462.47",,Computer Software,,,,,,No
The Royal Borough of Kensington and Chelsea,RBKC,,Statutory Year-End Adjustments,Statutory Year-End Adjustments,,AO Business,1232416,,,,12/05/2022,2200246082,"9,282.60",,Special Maintenance,,,,,,No
The Royal Borough of Kensington and Chelsea,RBKC,,Statutory Year-End Adjustments,Statutory Year-End Adjustments,,AO Business,1232416,,,,27/05/2022,2200249148,"2,090.50",,Special Maintenance,,,,,,No
The Royal Borough of Kensington and Chelsea,RBKC,,Statutory Year-End Adjustments,Statutory Year-End Adjustments,,AO Business,1232416,,,,27/05/2022,2200249150,675.00,,Special Maintenance,,,,,,No
The Royal Borough of Kensington and Chelsea,RBKC,,Statutory Year-End Adjustments,Statutory Year-End Adjustments,,AO Business,1232416,,,,27/05/2022,2200249157,"5,303.40",,Special Maintenance,,,,,,No
The Royal Borough of Kensington and Chelsea,RBKC,,Statutory Year-End Adjustments,Statutory Year-End Adjustments,,AO Business,1232416,,,,27/05/2022,2200249160,672.51,,Special Maintenance,,,,,,No
The Royal Borough of Kensington and Chelsea,RBKC,,Statutory Year-End Adjustments,Statutory Year-End Adjustments,,AVVIQ Consulting Limited,1285113,,,,12/04/2022,2200240712,"1,450.00",,,,,,,,No
The Royal Borough of Kensington and Chelsea,RBKC,,Statutory Year-End Adjustments,Statutory Year-End Adjustments,,AVVIQ Consulting Limited,1285113,,,,21/06/2022,2200253442,"2,150.00",,,,,,,,No
The Royal Borough of Kensington and Chelsea,RBKC,,Statutory Year-End Adjustments,Statutory Year-End Adjustments,,AVVIQ Consulting Limited,1285113,,,,22/06/2022,2200253531,"1,225.00",,,,,,,,No
The Royal Borough of Kensington and Chelsea,RBKC,,Statutory Year-End Adjustments,Statutory Year-End Adjustments,,Abbey Builders Ltd ,1232102,,,,19/04/2022,2200241287,"3,596.00",,Payments to main contractor,,,,,,No
The Royal Borough of Kensington and Chelsea,RBKC,,Statutory Year-End Adjustments,Statutory Year-End Adjustments,,Abbey Builders Ltd ,1232102,,,,28/06/2022,2200254689,"6,674.13",,Payments to main contractor,,,,,,No
The Royal Borough of Kensington and Chelsea,RBKC,,Statutory Year-End Adjustments,Statutory Year-End Adjustments,,Academy Consulting Solutions Ltd ,1232117,,,,05/04/2022,2200238591,"3,000.00",,Other Consultants,,,,,,No
The Royal Borough of Kensington and Chelsea,RBKC,,Statutory Year-End Adjustments,Statutory Year-End Adjustments,,Academy Consulting Solutions Ltd ,1232117,,,,06/05/2022,2200244675,"3,000.00",,Other Consultants,,,,,,No
The Royal Borough of Kensington and Chelsea,RBKC,,Statutory Year-End Adjustments,Statutory Year-End Adjustments,,Academy Consulting Solutions Ltd ,1232117,,,,06/06/2022,2200250288,"3,000.00",,Other Consultants,,,,,,No
The Royal Borough of Kensington and Chelsea,RBKC,,Statutory Year-End Adjustments,Statutory Year-End Adjustments,,Adam Architecture Ltd ,1232322,,,,05/04/2022,2200238576,"3,644.70",,Romanse Expenses,,,,,,No
The Royal Borough of Kensington and Chelsea,RBKC,,Statutory Year-End Adjustments,Statutory Year-End Adjustments,,Adam Architecture Ltd ,1232322,,,,06/05/2022,2200244818,907.72,,Romanse Expenses,,,,,,No
The Royal Borough of Kensington and Chelsea,RBKC,,Statutory Year-End Adjustments,Statutory Year-End Adjustments,,Adam Architecture Ltd ,1232322,,,,26/05/2022,2200248963,"2,068.00",,Romanse Expenses,,,,,,No
The Royal Borough of Kensington and Chelsea,RBKC,,Statutory Year-End Adjustments,Statutory Year-End Adjustments,,Adaptations MW Ltd,1272466,,,,19/05/2022,2200247677,"5,497.50",,Payments to main contractor,,,,,,No
The Royal Borough of Kensington and Chelsea,RBKC,,Statutory Year-End Adjustments,Statutory Year-End Adjustments,,Adaptations MW Ltd,1272466,,,,20/05/2022,2200247922,"6,958.50",,Payments to main contractor,,,,,,No
The Royal Borough of Kensington and Chelsea,RBKC,,Statutory Year-End Adjustments,Statutory Year-End Adjustments,,Adaptations MW Ltd,1272466,,,,31/05/2022,2200249725,"5,677.50",,Payments to main contractor,,,,,,No
The Royal Borough of Kensington and Chelsea,RBKC,,Statutory Year-End Adjustments,Statutory Year-End Adjustments,,Adaptations MW Ltd,1272466,,,,01/06/2022,2200249813,"7,138.50",,Payments to main contractor,,,,,,No
The Royal Borough of Kensington and Chelsea,RBKC,,Statutory Year-End Adjustments,Statutory Year-End Adjustments,,Adaptations MW Ltd,1272466,,,,27/06/2022,2200254270,"6,170.00",,Payments to main contractor,,,,,,No
The Royal Borough of Kensington and Chelsea,RBKC,,Statutory Year-End Adjustments,Statutory Year-End Adjustments,,Adaptations MW Ltd,1272466,,,,27/06/2022,2200254271,"7,255.00",,Payments to main contractor,,,,,,No
The Royal Borough of Kensington and Chelsea,RBKC,,Statutory Year-End Adjustments,Statutory Year-End Adjustments,,Agilisys Ltd ,1232344,,,,24/06/2022,2200254105,"121,000.00",,Other Consultants,,,,,,No
The Royal Borough of Kensington and Chelsea,RBKC,,Statutory Year-End Adjustments,Statutory Year-End Adjustments,,Allies & Morrison LLP ,1232371,,,,01/04/2022,2200238069,"1,054.00",,Payments to main contractor,,,,,,No
The Royal Borough of Kensington and Chelsea,RBKC,,Statutory Year-End Adjustments,Statutory Year-End Adjustments,,Allies & Morrison LLP ,1232371,,,,12/04/2022,2200240347,"2,418.94",,Payments to main contractor,,,,,,No
The Royal Borough of Kensington and Chelsea,RBKC,,Statutory Year-End Adjustments,Statutory Year-End Adjustments,,Allies & Morrison LLP ,1232371,,,,06/06/2022,2200250285,"5,263.09",,Romanse Expenses,,,,,,No
The Royal Borough of Kensington and Chelsea,RBKC,,Statutory Year-End Adjustments,Statutory Year-End Adjustments,,Amber Construction Services Ltd,1231168,,,,24/05/2022,2200248634,"29,316.57",,Safety Fence & Barriers,,,,,,No
The Royal Borough of Kensington and Chelsea,RBKC,,Statutory Year-End Adjustments,Statutory Year-End Adjustments,,Amber Construction Services Ltd,1231168,,,,30/05/2022,2200249516,"81,360.38",,Safety Fence & Barriers,,,,,,No
The Royal Borough of Kensington and Chelsea,RBKC,,Statutory Year-End Adjustments,Statutory Year-End Adjustments,,Amber Construction Services Ltd,1231168,,,,14/06/2022,2200252192,"65,097.12",,Safety Fence & Barriers,,,,,,No
The Royal Borough of Kensington and Chelsea,RBKC,,Statutory Year-End Adjustments,Statutory Year-End Adjustments,,Ambush Security Systems ,1232385,,,,25/04/2022,2200242330,"2,717.00",,Payments to main contractor,,,,,,No
The Royal Borough of Kensington and Chelsea,RBKC,,Statutory Year-End Adjustments,Statutory Year-End Adjustments,,Amwell Construction Ltd ,1231169,,,,20/04/2022,2200241641,"7,527.00",,Payments to main contractor,,,,,,No
The Royal Borough of Kensington and Chelsea,RBKC,,Statutory Year-End Adjustments,Statutory Year-End Adjustments,,Amwell Construction Ltd ,1231169,,,,18/05/2022,2200246996,"9,725.00",,Payments to main contractor,,,,,,No
The Royal Borough of Kensington and Chelsea,RBKC,,Statutory Year-End Adjustments,Statutory Year-End Adjustments,,Amwell Construction Ltd ,1231169,,,,07/06/2022,2200250537,"8,250.00",,Payments to main contractor,,,,,,No
The Royal Borough of Kensington and Chelsea,RBKC,,Statutory Year-End Adjustments,Statutory Year-End Adjustments,,Amwell Construction Ltd ,1231169,,,,27/06/2022,2200254375,"13,604.50",,Payments to main contractor,,,,,,No
The Royal Borough of Kensington and Chelsea,RBKC,,Statutory Year-End Adjustments,Statutory Year-End Adjustments,,Anstey Horne & Co Ltd ,1232407,,,,12/04/2022,2200240701,"1,810.00",,Planned Maintenance (CM),,,,,,No
The Royal Borough of Kensington and Chelsea,RBKC,,Statutory Year-End Adjustments,Statutory Year-End Adjustments,,Anstey Horne & Co Ltd ,1232407,,,,18/05/2022,2200247199,950.00,,Planned Maintenance (CM),,,,,,No
The Royal Borough of Kensington and Chelsea,RBKC,,Statutory Year-End Adjustments,Statutory Year-End Adjustments,,Aquaneed Ltd,1260944,,,,05/04/2022,2200238651,"7,294.05",,Payments to main contractor,,,,,,No
The Royal Borough of Kensington and Chelsea,RBKC,,Statutory Year-End Adjustments,Statutory Year-End Adjustments,,Aquaneed Ltd,1260944,,,,05/04/2022,2200238653,"6,163.29",,Payments to main contractor,,,,,,No
The Royal Borough of Kensington and Chelsea,RBKC,,Statutory Year-End Adjustments,Statutory Year-End Adjustments,,Aquaneed Ltd,1260944,,,,30/06/2022,2200255153,"3,903.99",,Payments to main contractor,,,,,,No
The Royal Borough of Kensington and Chelsea,RBKC,,Statutory Year-End Adjustments,Statutory Year-End Adjustments,,Aquaneed Ltd,1260944,,,,30/06/2022,2200255154,"7,369.63",,Payments to main contractor,,,,,,No
The Royal Borough of Kensington and Chelsea,RBKC,,Statutory Year-End Adjustments,Statutory Year-End Adjustments,,Arboricultural Solutions LLP,1290560,,,,31/05/2022,2200249610,750.00,,Romanse Expenses,,,,,,No
The Royal Borough of Kensington and Chelsea,RBKC,,Statutory Year-End Adjustments,Statutory Year-End Adjustments,,Arcadis Llp ,1232430,,,,05/04/2022,2200238583,"5,000.00",,,,,,,,No
The Royal Borough of Kensington and Chelsea,RBKC,,Statutory Year-End Adjustments,Statutory Year-End Adjustments,,Arco Professional Safety Services Ltd,1254268,,,,26/05/2022,2200249057,"6,000.00",,Other Consultants,,,,,,No
The Royal Borough of Kensington and Chelsea,RBKC,,Statutory Year-End Adjustments,Statutory Year-End Adjustments,,Arcus Consulting Llp,1265536,,,,09/05/2022,2200245270,"2,747.06",,Payments to main contractor,,,,,,No
The Royal Borough of Kensington and Chelsea,RBKC,,Statutory Year-End Adjustments,Statutory Year-End Adjustments,,Arcus Consulting Llp,1265536,,,,09/05/2022,2200245271,"2,373.71",,Site Works,,,,,,No
The Royal Borough of Kensington and Chelsea,RBKC,,Statutory Year-End Adjustments,Statutory Year-End Adjustments,,Arcus Consulting Llp,1265536,,,,30/05/2022,2200249405,"2,747.06",,Payments to main contractor,,,,,,No
The Royal Borough of Kensington and Chelsea,RBKC,,Statutory Year-End Adjustments,Statutory Year-End Adjustments,,Arcus Consulting Llp,1265536,,,,30/05/2022,2200249406,"2,373.71",,Site Works,,,,,,No
The Royal Borough of Kensington and Chelsea,RBKC,,Statutory Year-End Adjustments,Statutory Year-End Adjustments,,Ark Build Plc ,1231173,,,,12/05/2022,2200245925,"161,305.25",,Payments to main contractor,,,,,,No
The Royal Borough of Kensington and Chelsea,RBKC,,Statutory Year-End Adjustments,Statutory Year-End Adjustments,,Ark Build Plc ,1231173,,,,10/06/2022,2200251554,"82,384.32",,Payments to main contractor,,,,,,No
The Royal Borough of Kensington and Chelsea,RBKC,,Statutory Year-End Adjustments,Statutory Year-End Adjustments,,Ark Consultancy Limited,1275605,,,,08/06/2022,2200251025,"5,790.00",,Other Consultants,,,,,,No
The Royal Borough of Kensington and Chelsea,RBKC,,Statutory Year-End Adjustments,Statutory Year-End Adjustments,,Ark Consultancy Limited,1275605,,,,23/06/2022,2200253819,"11,955.00",,Other Consultants,,,,,,No
The Royal Borough of Kensington and Chelsea,RBKC,,Statutory Year-End Adjustments,Statutory Year-End Adjustments,,T/A Artelia UK,1232443,,,,06/04/2022,2200239131,"1,707.50",,Payments to sub contractor,,,,,,No
The Royal Borough of Kensington and Chelsea,RBKC,,Statutory Year-End Adjustments,Statutory Year-End Adjustments,,T/A Artelia UK,1232443,,,,04/05/2022,2200244272,747.50,,Payments to sub contractor,,,,,,No
The Royal Borough of Kensington and Chelsea,RBKC,,Statutory Year-End Adjustments,Statutory Year-End Adjustments,,T/A Artelia UK,1232443,,,,09/06/2022,2200251113,955.00,,Payments to sub contractor,,,,,,No
The Royal Borough of Kensington and Chelsea,RBKC,,Statutory Year-End Adjustments,Statutory Year-End Adjustments,,Ashburnham Community School ,1236058,,,,09/05/2022,2200245151,"25,000.00",,Other Consultants,,,,,,No
The Royal Borough of Kensington and Chelsea,RBKC,,Statutory Year-End Adjustments,Statutory Year-End Adjustments,,Ashfords Llp ,1232627,,,,01/04/2022,2200238081,"3,744.00",,,,,,,,No
The Royal Borough of Kensington and Chelsea,RBKC,,Statutory Year-End Adjustments,Statutory Year-End Adjustments,,Ashfords Llp ,1232627,,,,04/04/2022,2200238507,540.00,,Other Consultants,,,,,,No
The Royal Borough of Kensington and Chelsea,RBKC,,Statutory Year-End Adjustments,Statutory Year-End Adjustments,,Ashfords Llp ,1232627,,,,05/04/2022,2200238587,746.00,,Legal Fees & expenses,,,,,,No
The Royal Borough of Kensington and Chelsea,RBKC,,Statutory Year-End Adjustments,Statutory Year-End Adjustments,,Ashfords Llp ,1232627,,,,05/04/2022,2200238589,746.00,,Legal Fees & expenses,,,,,,No
The Royal Borough of Kensington and Chelsea,RBKC,,Statutory Year-End Adjustments,Statutory Year-End Adjustments,,Ashfords Llp ,1232627,,,,05/04/2022,2200238592,"1,046.00",,Legal Fees & expenses,,,,,,No
The Royal Borough of Kensington and Chelsea,RBKC,,Statutory Year-End Adjustments,Statutory Year-End Adjustments,,Ashfords Llp ,1232627,,,,07/04/2022,2200239467,834.00,,Legal Fees & expenses,,,,,,No
The Royal Borough of Kensington and Chelsea,RBKC,,Statutory Year-End Adjustments,Statutory Year-End Adjustments,,Ashfords Llp ,1232627,,,,13/04/2022,2200240888,833.00,,Design Consultant,,,,,,No
The Royal Borough of Kensington and Chelsea,RBKC,,Statutory Year-End Adjustments,Statutory Year-End Adjustments,,Ashfords Llp ,1232627,,,,04/05/2022,2200244273,"1,500.00",,Legal Fees & expenses,,,,,,No
The Royal Borough of Kensington and Chelsea,RBKC,,Statutory Year-End Adjustments,Statutory Year-End Adjustments,,Ashfords Llp ,1232627,,,,04/05/2022,2200244276,"2,000.00",,Legal Fees & expenses,,,,,,No
The Royal Borough of Kensington and Chelsea,RBKC,,Statutory Year-End Adjustments,Statutory Year-End Adjustments,,Ashfords Llp ,1232627,,,,04/05/2022,2200244295,"2,954.00",,,,,,,,No
The Royal Borough of Kensington and Chelsea,RBKC,,Statutory Year-End Adjustments,Statutory Year-End Adjustments,,Ashfords Llp ,1232627,,,,04/05/2022,2200244296,"3,564.00",,,,,,,,No
The Royal Borough of Kensington and Chelsea,RBKC,,Statutory Year-End Adjustments,Statutory Year-End Adjustments,,Ashfords Llp ,1232627,,,,09/05/2022,2200245032,942.00,,Legal Fees & expenses,,,,,,No
The Royal Borough of Kensington and Chelsea,RBKC,,Statutory Year-End Adjustments,Statutory Year-End Adjustments,,Ashfords Llp ,1232627,,,,10/05/2022,2200245527,"1,002.00",,Other Consultants,,,,,,No
The Royal Borough of Kensington and Chelsea,RBKC,,Statutory Year-End Adjustments,Statutory Year-End Adjustments,,Ashfords Llp ,1232627,,,,31/05/2022,2200249706,750.00,,Other Consultants,,,,,,No
The Royal Borough of Kensington and Chelsea,RBKC,,Statutory Year-End Adjustments,Statutory Year-End Adjustments,,Ashfords Llp ,1232627,,,,01/06/2022,2200250090,"5,130.00",,,,,,,,No
The Royal Borough of Kensington and Chelsea,RBKC,,Statutory Year-End Adjustments,Statutory Year-End Adjustments,,Ashfords Llp ,1232627,,,,09/06/2022,2200251125,864.00,,Legal Fees & expenses,,,,,,No
The Royal Borough of Kensington and Chelsea,RBKC,,Statutory Year-End Adjustments,Statutory Year-End Adjustments,,Ashfords Llp ,1232627,,,,09/06/2022,2200251128,848.00,,Legal Fees & expenses,,,,,,No
The Royal Borough of Kensington and Chelsea,RBKC,,Statutory Year-End Adjustments,Statutory Year-End Adjustments,,Ashton Fire Limited,1282123,,,,30/05/2022,2200249342,"1,100.00",,Site Works,,,,,,No
The Royal Borough of Kensington and Chelsea,RBKC,,Statutory Year-End Adjustments,Statutory Year-End Adjustments,,Asset Image Solutions,1290433,,,,20/06/2022,2200252948,"8,900.00",,Other Consultants,,,,,,No
The Royal Borough of Kensington and Chelsea,RBKC,,Statutory Year-End Adjustments,Statutory Year-End Adjustments,,Aurora Projects (UK) Ltd,1285009,,,,16/05/2022,2200246639,"2,907.84",,Special Maintenance,,,,,,No
The Royal Borough of Kensington and Chelsea,RBKC,,Statutory Year-End Adjustments,Statutory Year-End Adjustments,,"BSI Assurance UK Ltd (Membership, Subscriptions and Standards)",1232995,,,,07/06/2022,2200250633,"2,600.00",,Payments to main contractor,,,,,,No
The Royal Borough of Kensington and Chelsea,RBKC,,Statutory Year-End Adjustments,Statutory Year-End Adjustments,,BT Global Services ,1233001,,,,01/04/2022,2200237916,"19,685.00",,Payments to main contractor,,,,,,No
The Royal Borough of Kensington and Chelsea,RBKC,,Statutory Year-End Adjustments,Statutory Year-End Adjustments,,BT Global Services ,1233001,,,,01/04/2022,2200238268,"1,697.00",,Purchase of Vehicles,,,,,,No
The Royal Borough of Kensington and Chelsea,RBKC,,Statutory Year-End Adjustments,Statutory Year-End Adjustments,,BT Global Services ,1233001,,,,27/04/2022,2200242987,607.50,,Other capital equipment,,,,,,No
The Royal Borough of Kensington and Chelsea,RBKC,,Statutory Year-End Adjustments,Statutory Year-End Adjustments,,BT Global Services ,1233001,,,,19/05/2022,2200247542,"21,998.62",,Other capital equipment,,,,,,No
The Royal Borough of Kensington and Chelsea,RBKC,,Statutory Year-End Adjustments,Statutory Year-End Adjustments,,Baily Garner Health & Safety ,1255936,,,,22/04/2022,2200242162,"1,740.00",,Other Consultants,,,,,,No
The Royal Borough of Kensington and Chelsea,RBKC,,Statutory Year-End Adjustments,Statutory Year-End Adjustments,,Bell Decorating & Building Ltd ,1232723,,,,04/04/2022,2200238350,520.00,,Site Works,,,,,,No
The Royal Borough of Kensington and Chelsea,RBKC,,Statutory Year-End Adjustments,Statutory Year-End Adjustments,,Bell Decorating & Building Ltd ,1232723,,,,09/05/2022,2200245070,"3,305.00",,Special Maintenance,,,,,,No
The Royal Borough of Kensington and Chelsea,RBKC,,Statutory Year-End Adjustments,Statutory Year-End Adjustments,,Bell Decorating & Building Ltd ,1232723,,,,31/05/2022,2200249696,"15,835.00",,Site Works,,,,,,No
The Royal Borough of Kensington and Chelsea,RBKC,,Statutory Year-End Adjustments,Statutory Year-End Adjustments,,Bell Decorating & Building Ltd ,1232723,,,,15/06/2022,2200252486,"7,842.00",,Payments to main contractor,,,,,,No
The Royal Borough of Kensington and Chelsea,RBKC,,Statutory Year-End Adjustments,Statutory Year-End Adjustments,,Benchmarx Kitchens and Joinery Ltd,1270136,,,,12/05/2022,2200246060,"2,568.95",,Special Maintenance,,,,,,No
The Royal Borough of Kensington and Chelsea,RBKC,,Statutory Year-End Adjustments,Statutory Year-End Adjustments,,Bevan Brittan Llp ,1232737,,,,04/05/2022,2200244178,"5,720.00",,Payments to main contractor,,,,,,No
The Royal Borough of Kensington and Chelsea,RBKC,,Statutory Year-End Adjustments,Statutory Year-End Adjustments,,Bishop Creighton House Care & Repair Clients Account,1232751,,,,19/04/2022,2200241251,818.10,,Payments to main contractor,,,,,,No
The Royal Borough of Kensington and Chelsea,RBKC,,Statutory Year-End Adjustments,Statutory Year-End Adjustments,,Bishop Creighton House Care & Repair Clients Account,1232751,,,,19/04/2022,2200241252,"5,454.02",,Payments to main contractor,,,,,,No
The Royal Borough of Kensington and Chelsea,RBKC,,Statutory Year-End Adjustments,Statutory Year-End Adjustments,,Bishop Creighton House Care & Repair Clients Account,1232751,,,,20/04/2022,2200241630,"5,455.00",,Payments to main contractor,,,,,,No
The Royal Borough of Kensington and Chelsea,RBKC,,Statutory Year-End Adjustments,Statutory Year-End Adjustments,,Bishop Creighton House Care & Repair Clients Account,1232751,,,,20/04/2022,2200241631,918.00,,Payments to main contractor,,,,,,No
The Royal Borough of Kensington and Chelsea,RBKC,,Statutory Year-End Adjustments,Statutory Year-End Adjustments,,Bishop Creighton House Care & Repair Clients Account,1232751,,,,20/04/2022,2200241634,"6,120.00",,Payments to main contractor,,,,,,No
The Royal Borough of Kensington and Chelsea,RBKC,,Statutory Year-End Adjustments,Statutory Year-End Adjustments,,Bishop Creighton House Care & Repair Clients Account,1232751,,,,20/04/2022,2200241636,818.25,,Payments to main contractor,,,,,,No
The Royal Borough of Kensington and Chelsea,RBKC,,Statutory Year-End Adjustments,Statutory Year-End Adjustments,,Bishop Creighton House Care & Repair Clients Account,1232751,,,,17/05/2022,2200246989,899.10,,Payments to main contractor,,,,,,No
The Royal Borough of Kensington and Chelsea,RBKC,,Statutory Year-End Adjustments,Statutory Year-End Adjustments,,Bishop Creighton House Care & Repair Clients Account,1232751,,,,17/05/2022,2200246990,"5,994.00",,Payments to main contractor,,,,,,No
The Royal Borough of Kensington and Chelsea,RBKC,,Statutory Year-End Adjustments,Statutory Year-End Adjustments,,Bishop Creighton House Care & Repair Clients Account,1232751,,,,19/05/2022,2200247796,"8,279.00",,Payments to main contractor,,,,,,No
The Royal Borough of Kensington and Chelsea,RBKC,,Statutory Year-End Adjustments,Statutory Year-End Adjustments,,Bishop Creighton House Care & Repair Clients Account,1232751,,,,19/05/2022,2200247797,"1,241.85",,Payments to main contractor,,,,,,No
The Royal Borough of Kensington and Chelsea,RBKC,,Statutory Year-End Adjustments,Statutory Year-End Adjustments,,Black Box Network Services ,1231180,,,,27/06/2022,2200254261,829.00,,Other capital equipment,,,,,,No
The Royal Borough of Kensington and Chelsea,RBKC,,Statutory Year-End Adjustments,Statutory Year-End Adjustments,,Black Cat Building Consultancy Ltd,1290539,,,,15/06/2022,2200252246,"2,760.00",,Site Works,,,,,,No
The Royal Borough of Kensington and Chelsea,RBKC,,Statutory Year-End Adjustments,Statutory Year-End Adjustments,,Black Cat Building Consultancy Ltd,1290539,,,,15/06/2022,2200252246,"10,000.00",,Site Works,,,,,,No
The Royal Borough of Kensington and Chelsea,RBKC,,Statutory Year-End Adjustments,Statutory Year-End Adjustments,,Black Cat Building Consultancy Ltd,1290539,,,,15/06/2022,2200252247,"4,000.00",,Site Works,,,,,,No
The Royal Borough of Kensington and Chelsea,RBKC,,Statutory Year-End Adjustments,Statutory Year-End Adjustments,,Bloom Procurement Services Ltd,1269893,,,,20/04/2022,2200241537,"3,600.00",,Legal Fees & expenses,,,,,,No
The Royal Borough of Kensington and Chelsea,RBKC,,Statutory Year-End Adjustments,Statutory Year-End Adjustments,,Bloom Procurement Services Ltd,1269893,,,,20/04/2022,2200241538,"4,400.00",,Legal Fees & expenses,,,,,,No
The Royal Borough of Kensington and Chelsea,RBKC,,Statutory Year-End Adjustments,Statutory Year-End Adjustments,,Bloom Procurement Services Ltd,1269893,,,,04/05/2022,2200244067,"15,640.00",,,,,,,,No
The Royal Borough of Kensington and Chelsea,RBKC,,Statutory Year-End Adjustments,Statutory Year-End Adjustments,,British Telecom (Openreach) ,1231183,,,,31/05/2022,2200249685,"1,775.93",,Romanse Expenses,,,,,,No
The Royal Borough of Kensington and Chelsea,RBKC,,Statutory Year-End Adjustments,Statutory Year-End Adjustments,,Build Test Solutions Ltd,1271506,,,,28/06/2022,2200254663,"6,570.00",,Landscaping - SCA,,,,,,No
The Royal Borough of Kensington and Chelsea,RBKC,,Statutory Year-End Adjustments,Statutory Year-End Adjustments,,Building Design Partnership Ltd ,1233009,,,,01/04/2022,2200238071,"4,770.00",,Payments to sub contractor,,,,,,No
The Royal Borough of Kensington and Chelsea,RBKC,,Statutory Year-End Adjustments,Statutory Year-End Adjustments,,Building Design Partnership Ltd ,1233009,,,,04/04/2022,2200238412,"4,250.00",,Planned Maintenance (CM),,,,,,No
The Royal Borough of Kensington and Chelsea,RBKC,,Statutory Year-End Adjustments,Statutory Year-End Adjustments,,Building Design Partnership Ltd ,1233009,,,,03/05/2022,2200243867,"9,000.00",,Other Consultants,,,,,,No
The Royal Borough of Kensington and Chelsea,RBKC,,Statutory Year-End Adjustments,Statutory Year-End Adjustments,,Building Design Partnership Ltd ,1233009,,,,09/06/2022,2200251115,"7,940.00",,HCC - Architects,,,,,,No
The Royal Borough of Kensington and Chelsea,RBKC,,Statutory Year-End Adjustments,Statutory Year-End Adjustments,,Building Design Partnership Ltd ,1233009,,,,21/06/2022,2200253390,"9,000.00",,HCC - Architects,,,,,,No
The Royal Borough of Kensington and Chelsea,RBKC,,Statutory Year-End Adjustments,Statutory Year-End Adjustments,,Butler & Young Services Ltd,1272888,,,,01/04/2022,2200243169,"13,680.00",,,,,,,,No
The Royal Borough of Kensington and Chelsea,RBKC,,Statutory Year-End Adjustments,Statutory Year-End Adjustments,,Butler & Young Services Ltd,1272888,,,,08/04/2022,2200239873,"8,097.60",,,,,,,,No
The Royal Borough of Kensington and Chelsea,RBKC,,Statutory Year-End Adjustments,Statutory Year-End Adjustments,,Butler & Young Services Ltd,1272888,,,,01/06/2022,2200249976,"30,018.00",,,,,,,,No
The Royal Borough of Kensington and Chelsea,RBKC,,Statutory Year-End Adjustments,Statutory Year-End Adjustments,,Butler & Young Services Ltd,1272888,,,,01/06/2022,2200250091,"5,358.00",,,,,,,,No
The Royal Borough of Kensington and Chelsea,RBKC,,Statutory Year-End Adjustments,Statutory Year-End Adjustments,,Butler & Young Services Ltd,1272888,,,,01/06/2022,2200250092,"8,930.00",,,,,,,,No
The Royal Borough of Kensington and Chelsea,RBKC,,Statutory Year-End Adjustments,Statutory Year-End Adjustments,,Butler & Young Services Ltd,1272888,,,,01/06/2022,2200250093,"3,386.00",,,,,,,,No
The Royal Borough of Kensington and Chelsea,RBKC,,Statutory Year-End Adjustments,Statutory Year-End Adjustments,,Butler & Young Services Ltd,1272888,,,,01/06/2022,2200250094,"10,796.80",,,,,,,,No
The Royal Borough of Kensington and Chelsea,RBKC,,Statutory Year-End Adjustments,Statutory Year-End Adjustments,,C Kew Installations Ltd,1288701,,,,14/06/2022,2200252089,939.00,,Romanse Expenses,,,,,,No
The Royal Borough of Kensington and Chelsea,RBKC,,Statutory Year-End Adjustments,Statutory Year-End Adjustments,,C&C Builders Ltd,1274385,,,,27/06/2022,2200254532,"6,415.00",,Payments to main contractor,,,,,,No
The Royal Borough of Kensington and Chelsea,RBKC,,Statutory Year-End Adjustments,Statutory Year-End Adjustments,,C&D Restoration Ltd,1288660,,,,09/05/2022,2200245089,680.00,,Other Consultants,,,,,,No
The Royal Borough of Kensington and Chelsea,RBKC,,Statutory Year-End Adjustments,Statutory Year-End Adjustments,,CBRE Ltd(CBRE Client Account - EA,1233315,,,,12/04/2022,2200240414,"3,000.00",,Other Consultants,,,,,,No
The Royal Borough of Kensington and Chelsea,RBKC,,Statutory Year-End Adjustments,Statutory Year-End Adjustments,,CIS Street Furniture Ltd ,1256606,,,,05/05/2022,2200244603,"5,300.00",,Romanse Expenses,,,,,,No
The Royal Borough of Kensington and Chelsea,RBKC,,Statutory Year-End Adjustments,Statutory Year-End Adjustments,,Clm Fireproofing Limited,1268719,,,,22/04/2022,2200242209,"2,179.43",,Payments to main contractor,,,,,,No
The Royal Borough of Kensington and Chelsea,RBKC,,Statutory Year-End Adjustments,Statutory Year-End Adjustments,,Clm Fireproofing Limited,1268719,,,,22/04/2022,2200242210,"10,664.41",,Payments to main contractor,,,,,,No
The Royal Borough of Kensington and Chelsea,RBKC,,Statutory Year-End Adjustments,Statutory Year-End Adjustments,,Clm Fireproofing Limited,1268719,,,,09/05/2022,2200245280,"1,524.60",,Payments to main contractor,,,,,,No
The Royal Borough of Kensington and Chelsea,RBKC,,Statutory Year-End Adjustments,Statutory Year-End Adjustments,,CWG Group Ltd,1281268,,,,04/05/2022,2200244184,"150,662.11",,Payments to main contractor,,,,,,No
The Royal Borough of Kensington and Chelsea,RBKC,,Statutory Year-End Adjustments,Statutory Year-End Adjustments,,CWG Group Ltd,1281268,,,,04/05/2022,2200244187,"31,091.67",,Payments to main contractor,,,,,,No
The Royal Borough of Kensington and Chelsea,RBKC,,Statutory Year-End Adjustments,Statutory Year-End Adjustments,,CWG Group Ltd,1281268,,,,01/06/2022,2200250035,"118,534.86",,Payments to main contractor,,,,,,No
The Royal Borough of Kensington and Chelsea,RBKC,,Statutory Year-End Adjustments,Statutory Year-End Adjustments,,CWG Group Ltd,1281268,,,,06/06/2022,2200250393,600.00,,Other Consultants,,,,,,No
The Royal Borough of Kensington and Chelsea,RBKC,,Statutory Year-End Adjustments,Statutory Year-End Adjustments,,CWG Group Ltd,1281268,,,,27/06/2022,2200254319,"238,220.01",,Payments to main contractor,,,,,,No
The Royal Borough of Kensington and Chelsea,RBKC,,Statutory Year-End Adjustments,Statutory Year-End Adjustments,,CWG Group Ltd,1281268,,,,27/06/2022,2200254321,"197,807.75",,Payments to main contractor,,,,,,No
The Royal Borough of Kensington and Chelsea,RBKC,,Statutory Year-End Adjustments,Statutory Year-End Adjustments,,CWG Group Ltd,1281268,,,,27/06/2022,2200254323,"11,907.35",,Payments to main contractor,,,,,,No
The Royal Borough of Kensington and Chelsea,RBKC,,Statutory Year-End Adjustments,Statutory Year-End Adjustments,,CWG Group Ltd,1281268,,,,27/06/2022,2200254328,"60,113.72",,Payments to main contractor,,,,,,No
The Royal Borough of Kensington and Chelsea,RBKC,,Statutory Year-End Adjustments,Statutory Year-End Adjustments,,Cablesheer (Asbestos) Limited,1273893,,,,01/04/2022,2200242331,"14,630.00",,Payments to main contractor,,,,,,No
The Royal Borough of Kensington and Chelsea,RBKC,,Statutory Year-End Adjustments,Statutory Year-End Adjustments,,Calford Seadon (Health & Safety) Ltd,1233044,,,,21/06/2022,2200253446,"8,160.00",,,,,,,,No
The Royal Borough of Kensington and Chelsea,RBKC,,Statutory Year-End Adjustments,Statutory Year-End Adjustments,,Calorem Limited,1289418,,,,04/05/2022,2200244229,"1,375.00",,Other Consultants,,,,,,No
The Royal Borough of Kensington and Chelsea,RBKC,,Statutory Year-End Adjustments,Statutory Year-End Adjustments,,Calorem Limited,1289418,,,,06/06/2022,2200250416,"2,901.05",,Other Consultants,,,,,,No
The Royal Borough of Kensington and Chelsea,RBKC,,Statutory Year-End Adjustments,Statutory Year-End Adjustments,,Capita Business Services Ltd ,1233075,,,,12/05/2022,2200245936,"22,027.63",,B*Strategic Building Maintenance,,,,,,No
The Royal Borough of Kensington and Chelsea,RBKC,,Statutory Year-End Adjustments,Statutory Year-End Adjustments,,Capital Property & Construction ,1256857,,,,01/04/2022,2200238864,"4,510.00",,,,,,,,No
The Royal Borough of Kensington and Chelsea,RBKC,,Statutory Year-End Adjustments,Statutory Year-End Adjustments,,Capital Property & Construction ,1256857,,,,01/04/2022,2200238865,"1,141.35",,,,,,,,No
The Royal Borough of Kensington and Chelsea,RBKC,,Statutory Year-End Adjustments,Statutory Year-End Adjustments,,Capital Property & Construction ,1256857,,,,01/04/2022,2200238866,"10,613.65",,,,,,,,No
The Royal Borough of Kensington and Chelsea,RBKC,,Statutory Year-End Adjustments,Statutory Year-End Adjustments,,Capital Property & Construction ,1256857,,,,03/05/2022,2200243877,800.00,,,,,,,,No
The Royal Borough of Kensington and Chelsea,RBKC,,Statutory Year-End Adjustments,Statutory Year-End Adjustments,,Capital Property & Construction ,1256857,,,,06/05/2022,2200244706,"6,684.79",,,,,,,,No
The Royal Borough of Kensington and Chelsea,RBKC,,Statutory Year-End Adjustments,Statutory Year-End Adjustments,,Capital Property & Construction ,1256857,,,,12/05/2022,2200245957,"3,420.00",,,,,,,,No
The Royal Borough of Kensington and Chelsea,RBKC,,Statutory Year-End Adjustments,Statutory Year-End Adjustments,,Capital Property & Construction ,1256857,,,,13/05/2022,2200246405,"10,288.00",,,,,,,,No
The Royal Borough of Kensington and Chelsea,RBKC,,Statutory Year-End Adjustments,Statutory Year-End Adjustments,,Capital Property & Construction ,1256857,,,,09/06/2022,2200251078,"1,022.96",,Quantity Surveyors,,,,,,No
The Royal Borough of Kensington and Chelsea,RBKC,,Statutory Year-End Adjustments,Statutory Year-End Adjustments,,Capital Property & Construction ,1256857,,,,09/06/2022,2200251112,"6,880.00",,,,,,,,No
The Royal Borough of Kensington and Chelsea,RBKC,,Statutory Year-End Adjustments,Statutory Year-End Adjustments,,Capital Property & Construction ,1256857,,,,14/06/2022,2200252126,"5,470.00",,,,,,,,No
The Royal Borough of Kensington and Chelsea,RBKC,,Statutory Year-End Adjustments,Statutory Year-End Adjustments,,Capital Property & Construction ,1256857,,,,16/06/2022,2200252528,"16,654.16",,,,,,,,No
The Royal Borough of Kensington and Chelsea,RBKC,,Statutory Year-End Adjustments,Statutory Year-End Adjustments,,Capital Property & Construction ,1256857,,,,16/06/2022,2200252529,"16,654.16",,,,,,,,No
The Royal Borough of Kensington and Chelsea,RBKC,,Statutory Year-End Adjustments,Statutory Year-End Adjustments,,Capital Property & Construction ,1256857,,,,16/06/2022,2200252530,"16,654.16",,,,,,,,No
The Royal Borough of Kensington and Chelsea,RBKC,,Statutory Year-End Adjustments,Statutory Year-End Adjustments,,Capital Property & Construction ,1256857,,,,16/06/2022,2200252547,"16,654.16",,,,,,,,No
The Royal Borough of Kensington and Chelsea,RBKC,,Statutory Year-End Adjustments,Statutory Year-End Adjustments,,Carter Jonas Llp ,1233297,,,,25/04/2022,2200242314,"2,450.00",,Acquisition of Land & Buildings,,,,,,No
The Royal Borough of Kensington and Chelsea,RBKC,,Statutory Year-End Adjustments,Statutory Year-End Adjustments,,Carter Jonas Llp ,1233297,,,,23/05/2022,2200248395,"1,750.00",,Acquisition of Land & Buildings,,,,,,No
The Royal Borough of Kensington and Chelsea,RBKC,,Statutory Year-End Adjustments,Statutory Year-End Adjustments,,Cavendish Construction LTD,1267193,,,,12/04/2022,2200240340,"2,990.33",,Special Maintenance,,,,,,No
The Royal Borough of Kensington and Chelsea,RBKC,,Statutory Year-End Adjustments,Statutory Year-End Adjustments,,Cavendish Construction LTD,1267193,,,,19/04/2022,2200241336,"19,683.81",,Special Maintenance,,,,,,No
The Royal Borough of Kensington and Chelsea,RBKC,,Statutory Year-End Adjustments,Statutory Year-End Adjustments,,Cavendish Construction LTD,1267193,,,,19/04/2022,2200241342,"33,923.80",,Special Maintenance,,,,,,No
The Royal Borough of Kensington and Chelsea,RBKC,,Statutory Year-End Adjustments,Statutory Year-End Adjustments,,Cavendish Construction LTD,1267193,,,,19/04/2022,2200241343,"21,382.61",,Special Maintenance,,,,,,No
The Royal Borough of Kensington and Chelsea,RBKC,,Statutory Year-End Adjustments,Statutory Year-End Adjustments,,Cavendish Construction LTD,1267193,,,,19/04/2022,2200241345,"21,572.95",,Special Maintenance,,,,,,No
The Royal Borough of Kensington and Chelsea,RBKC,,Statutory Year-End Adjustments,Statutory Year-End Adjustments,,Cavendish Construction LTD,1267193,,,,19/04/2022,2200241346,"32,087.84",,Special Maintenance,,,,,,No
The Royal Borough of Kensington and Chelsea,RBKC,,Statutory Year-End Adjustments,Statutory Year-End Adjustments,,Cavendish Construction LTD,1267193,,,,29/04/2022,2200243523,"9,149.72",,Romanse Expenses,,,,,,No
The Royal Borough of Kensington and Chelsea,RBKC,,Statutory Year-End Adjustments,Statutory Year-End Adjustments,,Cavendish Construction LTD,1267193,,,,06/06/2022,2200250379,"9,923.62",,Romanse Expenses,,,,,,No
The Royal Borough of Kensington and Chelsea,RBKC,,Statutory Year-End Adjustments,Statutory Year-End Adjustments,,Cavendish Construction LTD,1267193,,,,07/06/2022,2200250539,620.00,,Payments to main contractor,,,,,,No
The Royal Borough of Kensington and Chelsea,RBKC,,Statutory Year-End Adjustments,Statutory Year-End Adjustments,,Cavendish Construction LTD,1267193,,,,07/06/2022,2200250541,585.00,,Other Consultants,,,,,,No
The Royal Borough of Kensington and Chelsea,RBKC,,Statutory Year-End Adjustments,Statutory Year-End Adjustments,,Cavendish Construction LTD,1267193,,,,08/06/2022,2200251002,727.66,,Special Maintenance,,,,,,No
The Royal Borough of Kensington and Chelsea,RBKC,,Statutory Year-End Adjustments,Statutory Year-End Adjustments,,Cavendish Construction LTD,1267193,,,,08/06/2022,2200251005,"38,120.86",,Special Maintenance,,,,,,No
The Royal Borough of Kensington and Chelsea,RBKC,,Statutory Year-End Adjustments,Statutory Year-End Adjustments,,Cavendish Construction LTD,1267193,,,,08/06/2022,2200251006,"38,976.06",,Special Maintenance,,,,,,No
The Royal Borough of Kensington and Chelsea,RBKC,,Statutory Year-End Adjustments,Statutory Year-End Adjustments,,Cavendish Construction LTD,1267193,,,,08/06/2022,2200251009,"18,868.23",,Special Maintenance,,,,,,No
The Royal Borough of Kensington and Chelsea,RBKC,,Statutory Year-End Adjustments,Statutory Year-End Adjustments,,Cavendish Construction LTD,1267193,,,,10/06/2022,2200251575,"40,360.29",,Special Maintenance,,,,,,No
The Royal Borough of Kensington and Chelsea,RBKC,,Statutory Year-End Adjustments,Statutory Year-End Adjustments,,Cavendish Construction LTD,1267193,,,,14/06/2022,2200252080,"9,887.42",,Romanse Expenses,,,,,,No
The Royal Borough of Kensington and Chelsea,RBKC,,Statutory Year-End Adjustments,Statutory Year-End Adjustments,,Cavendish Construction LTD,1267193,,,,14/06/2022,2200252084,"17,383.90",,Romanse Expenses,,,,,,No
The Royal Borough of Kensington and Chelsea,RBKC,,Statutory Year-End Adjustments,Statutory Year-End Adjustments,,Cavendish Construction LTD,1267193,,,,16/06/2022,2200252713,"31,558.03",,Special Maintenance,,,,,,No
The Royal Borough of Kensington and Chelsea,RBKC,,Statutory Year-End Adjustments,Statutory Year-End Adjustments,,Cavendish Construction LTD,1267193,,,,16/06/2022,2200252730,"29,718.06",,Special Maintenance,,,,,,No
The Royal Borough of Kensington and Chelsea,RBKC,,Statutory Year-End Adjustments,Statutory Year-End Adjustments,,Cavendish Construction LTD,1267193,,,,24/06/2022,2200254178,"23,771.69",,Special Maintenance,,,,,,No
The Royal Borough of Kensington and Chelsea,RBKC,,Statutory Year-End Adjustments,Statutory Year-End Adjustments,,Cavendish Construction LTD,1267193,,,,24/06/2022,2200254179,"38,323.50",,Special Maintenance,,,,,,No
The Royal Borough of Kensington and Chelsea,RBKC,,Statutory Year-End Adjustments,Statutory Year-End Adjustments,,Cavendish Construction LTD,1267193,,,,28/06/2022,2200254664,"22,036.73",,Romanse Expenses,,,,,,No
The Royal Borough of Kensington and Chelsea,RBKC,,Statutory Year-End Adjustments,Statutory Year-End Adjustments,,Central Moves Uk Limited ,1233324,,,,12/04/2022,2200240338,752.00,,Payments to main contractor,,,,,,No
The Royal Borough of Kensington and Chelsea,RBKC,,Statutory Year-End Adjustments,Statutory Year-End Adjustments,,Central Moves Uk Limited ,1233324,,,,19/05/2022,2200247788,"1,041.25",,Payments to main contractor,,,,,,No
The Royal Borough of Kensington and Chelsea,RBKC,,Statutory Year-End Adjustments,Statutory Year-End Adjustments,,Central Moves Uk Limited ,1233324,,,,19/05/2022,2200247791,"1,980.00",,Payments to main contractor,,,,,,No
The Royal Borough of Kensington and Chelsea,RBKC,,Statutory Year-End Adjustments,Statutory Year-End Adjustments,,Central Moves Uk Limited ,1233324,,,,30/05/2022,2200249513,740.00,,Payments to main contractor,,,,,,No
The Royal Borough of Kensington and Chelsea,RBKC,,Statutory Year-End Adjustments,Statutory Year-End Adjustments,,Central Moves Uk Limited ,1233324,,,,08/06/2022,2200250767,722.50,,Payments to main contractor,,,,,,No
The Royal Borough of Kensington and Chelsea,RBKC,,Statutory Year-End Adjustments,Statutory Year-End Adjustments,,Checkmate Fire Solutions Ltd ,1231187,,,,06/04/2022,2200239202,"1,729.23",,Planned Maintenance (CM),,,,,,No
The Royal Borough of Kensington and Chelsea,RBKC,,Statutory Year-End Adjustments,Statutory Year-End Adjustments,,Chelsea Academy ,1232792,,,,19/05/2022,3110428967,"170,000.00",,,,,,,,No
The Royal Borough of Kensington and Chelsea,RBKC,,Statutory Year-End Adjustments,Statutory Year-End Adjustments,,Chris Edge Tree Care Ltd ,1233369,,,,26/05/2022,2200249059,"1,950.00",,Payments to main contractor,,,,,,No
The Royal Borough of Kensington and Chelsea,RBKC,,Statutory Year-End Adjustments,Statutory Year-End Adjustments,,Chris Edge Tree Care Ltd ,1233369,,,,13/06/2022,2200251787,"2,955.00",,Payments to main contractor,,,,,,No
The Royal Borough of Kensington and Chelsea,RBKC,,Statutory Year-End Adjustments,Statutory Year-End Adjustments,,Chris Edge Tree Care Ltd ,1233369,,,,13/06/2022,2200251789,925.00,,Payments to main contractor,,,,,,No
The Royal Borough of Kensington and Chelsea,RBKC,,Statutory Year-End Adjustments,Statutory Year-End Adjustments,,Chris Edge Tree Care Ltd ,1233369,,,,13/06/2022,2200251794,"1,250.00",,Payments to main contractor,,,,,,No
The Royal Borough of Kensington and Chelsea,RBKC,,Statutory Year-End Adjustments,Statutory Year-End Adjustments,,City Electrical Factors,1263373,,,,05/04/2022,2200238831,"3,336.65",,Special Maintenance,,,,,,No
The Royal Borough of Kensington and Chelsea,RBKC,,Statutory Year-End Adjustments,Statutory Year-End Adjustments,,City Electrical Factors,1263373,,,,05/04/2022,2200238832,567.50,,Special Maintenance,,,,,,No
The Royal Borough of Kensington and Chelsea,RBKC,,Statutory Year-End Adjustments,Statutory Year-End Adjustments,,City Of Westminster ,1231771,,,,04/04/2022,2200238263,"20,000.00",,Computer Equipment,,,,,,No
The Royal Borough of Kensington and Chelsea,RBKC,,Statutory Year-End Adjustments,Statutory Year-End Adjustments,,City Of Westminster ,1231771,,,,12/05/2022,2200246041,"14,775.00",,Computer Software,,,,,,No
The Royal Borough of Kensington and Chelsea,RBKC,,Statutory Year-End Adjustments,Statutory Year-End Adjustments,,City Of Westminster ,1231771,,,,18/05/2022,2200247013,"18,000.00",,Computer Software,,,,,,No
The Royal Borough of Kensington and Chelsea,RBKC,,Statutory Year-End Adjustments,Statutory Year-End Adjustments,,City Of Westminster ,1231771,,,,18/05/2022,2200247014,"95,200.00",,Other Consultants,,,,,,No
The Royal Borough of Kensington and Chelsea,RBKC,,Statutory Year-End Adjustments,Statutory Year-End Adjustments,,Civica Uk Ltd ,1233395,,,,25/05/2022,2200248730,"2,000.00",,Other capital equipment,,,,,,No
The Royal Borough of Kensington and Chelsea,RBKC,,Statutory Year-End Adjustments,Statutory Year-End Adjustments,,Clean and Serene Ltd ,1233399,,,,06/06/2022,2200250365,"2,180.00",,Payments to main contractor,,,,,,No
The Royal Borough of Kensington and Chelsea,RBKC,,Statutory Year-End Adjustments,Statutory Year-End Adjustments,,Clockwork Removals ,1233410,,,,08/06/2022,2200250722,"5,644.06",,Planned Maintenance (CM),,,,,,No
The Royal Borough of Kensington and Chelsea,RBKC,,Statutory Year-End Adjustments,Statutory Year-End Adjustments,,Concrete Restoration Ltd,1289475,,,,26/05/2022,2200248932,"18,150.00",,Romanse Expenses,,,,,,No
The Royal Borough of Kensington and Chelsea,RBKC,,Statutory Year-End Adjustments,Statutory Year-End Adjustments,,Cromwell Engineering Ltd,1283342,,,,13/05/2022,2200246273,"6,334.50",,Planned Maintenance (CM),,,,,,No
The Royal Borough of Kensington and Chelsea,RBKC,,Statutory Year-End Adjustments,Statutory Year-End Adjustments,,Cromwell Engineering Ltd,1283342,,,,17/06/2022,2200252826,"7,028.62",,Planned Maintenance (CM),,,,,,No
The Royal Borough of Kensington and Chelsea,RBKC,,Statutory Year-End Adjustments,Statutory Year-End Adjustments,,Cromwell Engineering Ltd,1283342,,,,28/06/2022,2200254631,"6,334.50",,Planned Maintenance (CM),,,,,,No
The Royal Borough of Kensington and Chelsea,RBKC,,Statutory Year-End Adjustments,Statutory Year-End Adjustments,,Cromwell Engineering Ltd,1283342,,,,28/06/2022,2200254635,"6,334.50",,Boiler / Major Plant Replacement - CM,,,,,,No
The Royal Borough of Kensington and Chelsea,RBKC,,Statutory Year-End Adjustments,Statutory Year-End Adjustments,,Cupaz ,1233737,,,,25/04/2022,2200242386,"9,095.00",,Purchase of Vehicles,,,,,,No
The Royal Borough of Kensington and Chelsea,RBKC,,Statutory Year-End Adjustments,Statutory Year-End Adjustments,,Cupaz ,1233737,,,,27/04/2022,2200243175,"11,158.70",,Other Consultants,,,,,,No
The Royal Borough of Kensington and Chelsea,RBKC,,Statutory Year-End Adjustments,Statutory Year-End Adjustments,,Currie & Brown UK Ltd ,1233738,,,,26/04/2022,2200242788,"1,465.00",,Other Consultants,,,,,,No
The Royal Borough of Kensington and Chelsea,RBKC,,Statutory Year-End Adjustments,Statutory Year-End Adjustments,,Currie & Brown UK Ltd ,1233738,,,,30/05/2022,2200249455,"1,465.00",,Other Consultants,,,,,,No
The Royal Borough of Kensington and Chelsea,RBKC,,Statutory Year-End Adjustments,Statutory Year-End Adjustments,,Cuttle Construction Limited,1274914,,,,04/04/2022,2200238514,"3,496.61",,Payments to main contractor,,,,,,No
The Royal Borough of Kensington and Chelsea,RBKC,,Statutory Year-End Adjustments,Statutory Year-End Adjustments,,Cyclehoop Ltd ,1233744,,,,04/04/2022,2200238252,"7,412.00",,Payments to main contractor,,,,,,No
The Royal Borough of Kensington and Chelsea,RBKC,,Statutory Year-End Adjustments,Statutory Year-End Adjustments,,Cyclehoop Ltd ,1233744,,,,19/05/2022,2200247548,"3,945.00",,Payments to main contractor,,,,,,No
The Royal Borough of Kensington and Chelsea,RBKC,,Statutory Year-End Adjustments,Statutory Year-End Adjustments,,Decontaminate UK Limited,1280985,,,,01/04/2022,2200238867,"1,849.85",,Payments to main contractor,,,,,,No
The Royal Borough of Kensington and Chelsea,RBKC,,Statutory Year-End Adjustments,Statutory Year-End Adjustments,,Decontaminate UK Limited,1280985,,,,01/04/2022,2200238883,"1,131.31",,Payments to main contractor,,,,,,No
The Royal Borough of Kensington and Chelsea,RBKC,,Statutory Year-End Adjustments,Statutory Year-End Adjustments,,Decontaminate UK Limited,1280985,,,,01/04/2022,2200238884,"1,131.31",,Payments to main contractor,,,,,,No
The Royal Borough of Kensington and Chelsea,RBKC,,Statutory Year-End Adjustments,Statutory Year-End Adjustments,,Decontaminate UK Limited,1280985,,,,01/04/2022,2200239271,"1,951.40",,Payments to main contractor,,,,,,No
The Royal Borough of Kensington and Chelsea,RBKC,,Statutory Year-End Adjustments,Statutory Year-End Adjustments,,Decontaminate UK Limited,1280985,,,,07/04/2022,2200239556,"2,265.90",,Payments to main contractor,,,,,,No
The Royal Borough of Kensington and Chelsea,RBKC,,Statutory Year-End Adjustments,Statutory Year-End Adjustments,,Decontaminate UK Limited,1280985,,,,07/04/2022,2200239557,"2,877.42",,Payments to main contractor,,,,,,No
The Royal Borough of Kensington and Chelsea,RBKC,,Statutory Year-End Adjustments,Statutory Year-End Adjustments,,Decontaminate UK Limited,1280985,,,,07/04/2022,2200239558,"4,836.47",,Payments to main contractor,,,,,,No
The Royal Borough of Kensington and Chelsea,RBKC,,Statutory Year-End Adjustments,Statutory Year-End Adjustments,,Decontaminate UK Limited,1280985,,,,03/05/2022,2200243900,"1,042.86",,Payments to main contractor,,,,,,No
The Royal Borough of Kensington and Chelsea,RBKC,,Statutory Year-End Adjustments,Statutory Year-End Adjustments,,Decontaminate UK Limited,1280985,,,,03/05/2022,2200243901,997.00,,Payments to main contractor,,,,,,No
The Royal Borough of Kensington and Chelsea,RBKC,,Statutory Year-End Adjustments,Statutory Year-End Adjustments,,Decontaminate UK Limited,1280985,,,,03/05/2022,2200243902,"4,666.49",,Payments to main contractor,,,,,,No
The Royal Borough of Kensington and Chelsea,RBKC,,Statutory Year-End Adjustments,Statutory Year-End Adjustments,,Decontaminate UK Limited,1280985,,,,03/05/2022,2200243903,"1,287.27",,Payments to main contractor,,,,,,No
The Royal Borough of Kensington and Chelsea,RBKC,,Statutory Year-End Adjustments,Statutory Year-End Adjustments,,Decontaminate UK Limited,1280985,,,,03/05/2022,2200243904,"5,460.22",,Payments to main contractor,,,,,,No
The Royal Borough of Kensington and Chelsea,RBKC,,Statutory Year-End Adjustments,Statutory Year-End Adjustments,,Decontaminate UK Limited,1280985,,,,03/05/2022,2200243916,"6,183.45",,Payments to main contractor,,,,,,No
The Royal Borough of Kensington and Chelsea,RBKC,,Statutory Year-End Adjustments,Statutory Year-End Adjustments,,Decontaminate UK Limited,1280985,,,,03/05/2022,2200243917,"1,318.59",,Payments to main contractor,,,,,,No
The Royal Borough of Kensington and Chelsea,RBKC,,Statutory Year-End Adjustments,Statutory Year-End Adjustments,,Decontaminate UK Limited,1280985,,,,03/05/2022,2200243919,"6,349.98",,Payments to main contractor,,,,,,No
The Royal Borough of Kensington and Chelsea,RBKC,,Statutory Year-End Adjustments,Statutory Year-End Adjustments,,Decontaminate UK Limited,1280985,,,,03/05/2022,2200243920,"5,857.76",,Payments to main contractor,,,,,,No
The Royal Borough of Kensington and Chelsea,RBKC,,Statutory Year-End Adjustments,Statutory Year-End Adjustments,,Decontaminate UK Limited,1280985,,,,03/05/2022,2200243921,"6,375.10",,Payments to main contractor,,,,,,No
The Royal Borough of Kensington and Chelsea,RBKC,,Statutory Year-End Adjustments,Statutory Year-End Adjustments,,Decontaminate UK Limited,1280985,,,,13/05/2022,2200246366,"19,721.09",,Payments to main contractor,,,,,,No
The Royal Borough of Kensington and Chelsea,RBKC,,Statutory Year-End Adjustments,Statutory Year-End Adjustments,,Decontaminate UK Limited,1280985,,,,22/06/2022,2200253594,"3,745.56",,Payments to main contractor,,,,,,No
The Royal Borough of Kensington and Chelsea,RBKC,,Statutory Year-End Adjustments,Statutory Year-End Adjustments,,Decontaminate UK Limited,1280985,,,,22/06/2022,2200253595,"9,179.35",,Payments to main contractor,,,,,,No
The Royal Borough of Kensington and Chelsea,RBKC,,Statutory Year-End Adjustments,Statutory Year-End Adjustments,,Decontaminate UK Limited,1280985,,,,22/06/2022,2200253596,"5,214.85",,Payments to main contractor,,,,,,No
The Royal Borough of Kensington and Chelsea,RBKC,,Statutory Year-End Adjustments,Statutory Year-End Adjustments,,Decontaminate UK Limited,1280985,,,,22/06/2022,2200253597,"1,337.15",,Payments to main contractor,,,,,,No
The Royal Borough of Kensington and Chelsea,RBKC,,Statutory Year-End Adjustments,Statutory Year-End Adjustments,,Decontaminate UK Limited,1280985,,,,22/06/2022,2200253599,"6,525.79",,Payments to main contractor,,,,,,No
The Royal Borough of Kensington and Chelsea,RBKC,,Statutory Year-End Adjustments,Statutory Year-End Adjustments,,Decontaminate UK Limited,1280985,,,,22/06/2022,2200253600,"2,559.51",,Payments to main contractor,,,,,,No
The Royal Borough of Kensington and Chelsea,RBKC,,Statutory Year-End Adjustments,Statutory Year-End Adjustments,,Delva Patman Redler LLP,1271465,,,,13/05/2022,2200246323,"4,478.50",,Other Consultants,,,,,,No
The Royal Borough of Kensington and Chelsea,RBKC,,Statutory Year-End Adjustments,Statutory Year-End Adjustments,,Derisk (UK) Limited ,1233980,,,,11/04/2022,2200239956,"1,980.00",,,,,,,,No
The Royal Borough of Kensington and Chelsea,RBKC,,Statutory Year-End Adjustments,Statutory Year-End Adjustments,,Derisk (UK) Limited ,1233980,,,,11/04/2022,2200239970,"1,895.60",,,,,,,,No
The Royal Borough of Kensington and Chelsea,RBKC,,Statutory Year-End Adjustments,Statutory Year-End Adjustments,,Derisk (UK) Limited ,1233980,,,,13/05/2022,2200246385,"1,316.97",,,,,,,,No
The Royal Borough of Kensington and Chelsea,RBKC,,Statutory Year-End Adjustments,Statutory Year-End Adjustments,,Derisk (UK) Limited ,1233980,,,,13/05/2022,2200246390,"1,080.00",,,,,,,,No
The Royal Borough of Kensington and Chelsea,RBKC,,Statutory Year-End Adjustments,Statutory Year-End Adjustments,,Derisk (UK) Limited ,1233980,,,,13/05/2022,2200246399,"1,440.00",,,,,,,,No
The Royal Borough of Kensington and Chelsea,RBKC,,Statutory Year-End Adjustments,Statutory Year-End Adjustments,,Derisk (UK) Limited ,1233980,,,,17/05/2022,2200246831,"2,376.00",,,,,,,,No
The Royal Borough of Kensington and Chelsea,RBKC,,Statutory Year-End Adjustments,Statutory Year-End Adjustments,,Derisk (UK) Limited ,1233980,,,,17/05/2022,2200246865,"1,782.00",,,,,,,,No
The Royal Borough of Kensington and Chelsea,RBKC,,Statutory Year-End Adjustments,Statutory Year-End Adjustments,,Derisk (UK) Limited ,1233980,,,,01/06/2022,2200249979,808.26,,,,,,,,No
The Royal Borough of Kensington and Chelsea,RBKC,,Statutory Year-End Adjustments,Statutory Year-End Adjustments,,Derisk (UK) Limited ,1233980,,,,01/06/2022,2200250095,931.92,,,,,,,,No
The Royal Borough of Kensington and Chelsea,RBKC,,Statutory Year-End Adjustments,Statutory Year-End Adjustments,,Derisk (UK) Limited ,1233980,,,,01/06/2022,2200250096,"5,598.79",,,,,,,,No
The Royal Borough of Kensington and Chelsea,RBKC,,Statutory Year-End Adjustments,Statutory Year-End Adjustments,,Derisk (UK) Limited ,1233980,,,,01/06/2022,2200250097,"1,755.96",,,,,,,,No
The Royal Borough of Kensington and Chelsea,RBKC,,Statutory Year-End Adjustments,Statutory Year-End Adjustments,,Derisk (UK) Limited ,1233980,,,,06/06/2022,2200250246,695.00,,Other Consultants,,,,,,No
The Royal Borough of Kensington and Chelsea,RBKC,,Statutory Year-End Adjustments,Statutory Year-End Adjustments,,Derisk (UK) Limited ,1233980,,,,06/06/2022,2200250400,"1,225.00",,Payments to main contractor,,,,,,No
The Royal Borough of Kensington and Chelsea,RBKC,,Statutory Year-End Adjustments,Statutory Year-End Adjustments,,Derisk (UK) Limited ,1233980,,,,09/06/2022,2200251080,"3,360.00",,Design Consultant,,,,,,No
The Royal Borough of Kensington and Chelsea,RBKC,,Statutory Year-End Adjustments,Statutory Year-End Adjustments,,Derisk (UK) Limited ,1233980,,,,15/06/2022,2200252476,"2,520.00",,,,,,,,No
The Royal Borough of Kensington and Chelsea,RBKC,,Statutory Year-End Adjustments,Statutory Year-End Adjustments,,Derisk (UK) Limited ,1233980,,,,28/06/2022,2200254679,"2,252.87",,,,,,,,No
The Royal Borough of Kensington and Chelsea,RBKC,,Statutory Year-End Adjustments,Statutory Year-End Adjustments,,District Energy Development Ltd,1275886,,,,01/06/2022,2200249980,"2,400.00",,Design Consultant,,,,,,No
The Royal Borough of Kensington and Chelsea,RBKC,,Statutory Year-End Adjustments,Statutory Year-End Adjustments,,District Energy Development Ltd,1275886,,,,28/06/2022,2200254659,"2,000.00",,Design Consultant,,,,,,No
The Royal Borough of Kensington and Chelsea,RBKC,,Statutory Year-End Adjustments,Statutory Year-End Adjustments,,Dolphin Mobility Ltd,1280897,,,,06/04/2022,2200239208,"7,642.50",,Payments to main contractor,,,,,,No
The Royal Borough of Kensington and Chelsea,RBKC,,Statutory Year-End Adjustments,Statutory Year-End Adjustments,,Dolphin Mobility Ltd,1280897,,,,06/04/2022,2200239209,"7,469.50",,Payments to main contractor,,,,,,No
The Royal Borough of Kensington and Chelsea,RBKC,,Statutory Year-End Adjustments,Statutory Year-End Adjustments,,Door Plus Ltd,1265703,,,,07/04/2022,2200239349,"3,776.97",,Site Works,,,,,,No
The Royal Borough of Kensington and Chelsea,RBKC,,Statutory Year-End Adjustments,Statutory Year-End Adjustments,,Doorway Maintenance Co ,1231196,,,,26/04/2022,2200242838,"3,980.00",,Payments to main contractor,,,,,,No
The Royal Borough of Kensington and Chelsea,RBKC,,Statutory Year-End Adjustments,Statutory Year-End Adjustments,,Doorway Maintenance Co ,1231196,,,,06/05/2022,2200244903,695.00,,Other capital equipment,,,,,,No
The Royal Borough of Kensington and Chelsea,RBKC,,Statutory Year-End Adjustments,Statutory Year-End Adjustments,,Doorway Maintenance Co ,1231196,,,,30/05/2022,2200249376,"3,695.00",,Payments to main contractor,,,,,,No
The Royal Borough of Kensington and Chelsea,RBKC,,Statutory Year-End Adjustments,Statutory Year-End Adjustments,,Doorway Maintenance Co ,1231196,,,,10/06/2022,2200251415,"7,295.00",,Payments to main contractor,,,,,,No
The Royal Borough of Kensington and Chelsea,RBKC,,Statutory Year-End Adjustments,Statutory Year-End Adjustments,,Doorway Maintenance Co ,1231196,,,,24/06/2022,2200254187,"1,595.00",,Other capital equipment,,,,,,No
The Royal Borough of Kensington and Chelsea,RBKC,,Statutory Year-End Adjustments,Statutory Year-End Adjustments,,Doorway Maintenance Co ,1231196,,,,30/06/2022,2200255180,"4,925.00",,Other capital equipment,,,,,,No
The Royal Borough of Kensington and Chelsea,RBKC,,Statutory Year-End Adjustments,Statutory Year-End Adjustments,,Doorway Maintenance Co ,1231196,,,,30/06/2022,2200255184,"3,895.00",,Other capital equipment,,,,,,No
The Royal Borough of Kensington and Chelsea,RBKC,,Statutory Year-End Adjustments,Statutory Year-End Adjustments,,Dovista UK Limited,1284734,,,,23/05/2022,2200248390,"4,299.56",,Romanse Expenses,,,,,,No
The Royal Borough of Kensington and Chelsea,RBKC,,Statutory Year-End Adjustments,Statutory Year-End Adjustments,,Dovista UK Limited,1284734,,,,23/05/2022,2200248391,550.00,,Romanse Expenses,,,,,,No
The Royal Borough of Kensington and Chelsea,RBKC,,Statutory Year-End Adjustments,Statutory Year-End Adjustments,,Drive and Deliver Construction Ltd,1289446,,,,22/05/2022,2200248087,"21,754.57",,Payments to main contractor,,,,,,No
The Royal Borough of Kensington and Chelsea,RBKC,,Statutory Year-End Adjustments,Statutory Year-End Adjustments,,Drive and Deliver Construction Ltd,1289446,,,,24/06/2022,2200254059,"19,801.53",,Payments to main contractor,,,,,,No
The Royal Borough of Kensington and Chelsea,RBKC,,Statutory Year-End Adjustments,Statutory Year-End Adjustments,,ECD Architects Ltd,1234067,,,,01/04/2022,2200238513,"4,000.00",,Payments to main contractor,,,,,,No
The Royal Borough of Kensington and Chelsea,RBKC,,Statutory Year-End Adjustments,Statutory Year-End Adjustments,,ECD Architects Ltd,1234067,,,,01/04/2022,2200242407,"3,500.00",,Payments to main contractor,,,,,,No
The Royal Borough of Kensington and Chelsea,RBKC,,Statutory Year-End Adjustments,Statutory Year-End Adjustments,,ECD Architects Ltd,1234067,,,,06/04/2022,2200239146,"3,405.00",,Other Consultants,,,,,,No
The Royal Borough of Kensington and Chelsea,RBKC,,Statutory Year-End Adjustments,Statutory Year-End Adjustments,,ECD Architects Ltd,1234067,,,,28/06/2022,2200254637,"9,830.30",,Payments to main contractor,,,,,,No
The Royal Borough of Kensington and Chelsea,RBKC,,Statutory Year-End Adjustments,Statutory Year-End Adjustments,,ECD Architects Ltd,1234067,,,,28/06/2022,2200254647,"5,063.05",,Payments to main contractor,,,,,,No
The Royal Borough of Kensington and Chelsea,RBKC,,Statutory Year-End Adjustments,Statutory Year-End Adjustments,,ETEC Associates LTD,1269170,,,,29/04/2022,2200243627,"1,998.00",,Payments to main contractor,,,,,,No
The Royal Borough of Kensington and Chelsea,RBKC,,Statutory Year-End Adjustments,Statutory Year-End Adjustments,,Earl Kendrick (London) Limited,1288229,,,,28/06/2022,2200254728,550.00,,Other Consultants,,,,,,No
The Royal Borough of Kensington and Chelsea,RBKC,,Statutory Year-End Adjustments,Statutory Year-End Adjustments,,Earl Kendrick (London) Limited,1288229,,,,28/06/2022,2200254729,550.00,,Other Consultants,,,,,,No
The Royal Borough of Kensington and Chelsea,RBKC,,Statutory Year-End Adjustments,Statutory Year-End Adjustments,,Elliott Wood Partnership Ltd,1289223,,,,03/05/2022,2200243941,"1,800.00",,Other Consultants,,,,,,No
The Royal Borough of Kensington and Chelsea,RBKC,,Statutory Year-End Adjustments,Statutory Year-End Adjustments,,EXCLUSIVE LEISURE LTD,1278378,,,,24/05/2022,2200248569,"5,080.00",,Romanse Expenses,,,,,,No
The Royal Borough of Kensington and Chelsea,RBKC,,Statutory Year-End Adjustments,Statutory Year-End Adjustments,,Extreme Scaffolding Services Limite,1290553,,,,09/05/2022,2200245127,"9,950.00",,Payments to main contractor,,,,,,No
The Royal Borough of Kensington and Chelsea,RBKC,,Statutory Year-End Adjustments,Statutory Year-End Adjustments,,F.M Conway Ltd ,1231208,,,,01/04/2022,2200238772,"79,578.99",,Romanse Expenses,,,,,,No
The Royal Borough of Kensington and Chelsea,RBKC,,Statutory Year-End Adjustments,Statutory Year-End Adjustments,,F.M Conway Ltd ,1231208,,,,01/04/2022,2200239317,"1,001.78",,Payments to main contractor,,,,,,No
The Royal Borough of Kensington and Chelsea,RBKC,,Statutory Year-End Adjustments,Statutory Year-End Adjustments,,F.M Conway Ltd ,1231208,,,,25/04/2022,2200242433,"11,741.00",,Romanse Expenses,,,,,,No
The Royal Borough of Kensington and Chelsea,RBKC,,Statutory Year-End Adjustments,Statutory Year-End Adjustments,,F.M Conway Ltd ,1231208,,,,26/04/2022,2200242762,"22,583.65",,Romanse Expenses,,,,,,No
The Royal Borough of Kensington and Chelsea,RBKC,,Statutory Year-End Adjustments,Statutory Year-End Adjustments,,F.M Conway Ltd ,1231208,,,,09/05/2022,2200245194,"45,598.39",,Romanse Expenses,,,,,,No
The Royal Borough of Kensington and Chelsea,RBKC,,Statutory Year-End Adjustments,Statutory Year-End Adjustments,,F.M Conway Ltd ,1231208,,,,10/05/2022,2200245485,"7,115.62",,Romanse Expenses,,,,,,No
The Royal Borough of Kensington and Chelsea,RBKC,,Statutory Year-End Adjustments,Statutory Year-End Adjustments,,F.M Conway Ltd ,1231208,,,,18/05/2022,2200247172,"5,091.06",,Romanse Expenses,,,,,,No
The Royal Borough of Kensington and Chelsea,RBKC,,Statutory Year-End Adjustments,Statutory Year-End Adjustments,,F.M Conway Ltd ,1231208,,,,18/05/2022,2200247462,"2,133.00",,Payments to main contractor,,,,,,No
The Royal Borough of Kensington and Chelsea,RBKC,,Statutory Year-End Adjustments,Statutory Year-End Adjustments,,F.M Conway Ltd ,1231208,,,,27/05/2022,2200249271,"5,386.22",,Payments to main contractor,,,,,,No
The Royal Borough of Kensington and Chelsea,RBKC,,Statutory Year-End Adjustments,Statutory Year-End Adjustments,,F.M Conway Ltd ,1231208,,,,27/05/2022,2200249274,"39,248.54",,Payments to main contractor,,,,,,No
The Royal Borough of Kensington and Chelsea,RBKC,,Statutory Year-End Adjustments,Statutory Year-End Adjustments,,F.M Conway Ltd ,1231208,,,,27/05/2022,2200249275,"11,803.53",,Payments to main contractor,,,,,,No
The Royal Borough of Kensington and Chelsea,RBKC,,Statutory Year-End Adjustments,Statutory Year-End Adjustments,,F.M Conway Ltd ,1231208,,,,06/06/2022,2200250177,"3,126.47",,Footway Repairs,,,,,,No
The Royal Borough of Kensington and Chelsea,RBKC,,Statutory Year-End Adjustments,Statutory Year-End Adjustments,,F.M Conway Ltd ,1231208,,,,06/06/2022,2200250178,"23,593.63",,Site Works,,,,,,No
The Royal Borough of Kensington and Chelsea,RBKC,,Statutory Year-End Adjustments,Statutory Year-End Adjustments,,F.M Conway Ltd ,1231208,,,,17/06/2022,2200252757,"33,250.00",,Footway Repairs,,,,,,No
The Royal Borough of Kensington and Chelsea,RBKC,,Statutory Year-End Adjustments,Statutory Year-End Adjustments,,F.M Conway Ltd ,1231208,,,,20/06/2022,2200253053,"4,947.97",,Site Works,,,,,,No
The Royal Borough of Kensington and Chelsea,RBKC,,Statutory Year-End Adjustments,Statutory Year-End Adjustments,,F.M Conway Ltd ,1231208,,,,21/06/2022,2200253274,"31,811.89",,Other capital equipment,,,,,,No
The Royal Borough of Kensington and Chelsea,RBKC,,Statutory Year-End Adjustments,Statutory Year-End Adjustments,,F.M Conway Ltd ,1231208,,,,28/06/2022,2200254810,"11,180.01",,Payments to main contractor,,,,,,No
The Royal Borough of Kensington and Chelsea,RBKC,,Statutory Year-End Adjustments,Statutory Year-End Adjustments,,F.M Conway Ltd ,1231208,,,,29/06/2022,2200254947,"1,503.88",,Payments to main contractor,,,,,,No
The Royal Borough of Kensington and Chelsea,RBKC,,Statutory Year-End Adjustments,Statutory Year-End Adjustments,,F.M Conway Ltd ,1231208,,,,30/06/2022,2200255014,"11,625.39",,Romanse Expenses,,,,,,No
The Royal Borough of Kensington and Chelsea,RBKC,,Statutory Year-End Adjustments,Statutory Year-End Adjustments,,F.M Conway Ltd ,1231208,,,,30/06/2022,2200255132,"5,502.00",,Site Works,,,,,,No
The Royal Borough of Kensington and Chelsea,RBKC,,Statutory Year-End Adjustments,Statutory Year-End Adjustments,,F.M Conway Ltd ,1231208,,,,30/06/2022,2200255134,"29,075.37",,Site Works,,,,,,No
The Royal Borough of Kensington and Chelsea,RBKC,,Statutory Year-End Adjustments,Statutory Year-End Adjustments,,Faithful and Gould Limited,1234387,,,,28/04/2022,2200243326,"4,690.00",,,,,,,,No
The Royal Borough of Kensington and Chelsea,RBKC,,Statutory Year-End Adjustments,Statutory Year-End Adjustments,,Falck Fire Services UK LTD,1277465,,,,25/04/2022,2200242469,"2,100.00",,Design Consultant,,,,,,No
The Royal Borough of Kensington and Chelsea,RBKC,,Statutory Year-End Adjustments,Statutory Year-End Adjustments,,Falck Fire Services UK LTD,1277465,,,,25/04/2022,2200242470,"25,725.00",,Design Consultant,,,,,,No
The Royal Borough of Kensington and Chelsea,RBKC,,Statutory Year-End Adjustments,Statutory Year-End Adjustments,,Frame Projects Ltd,1269840,,,,16/06/2022,2200252706,"4,500.00",,Other Consultants,,,,,,No
The Royal Borough of Kensington and Chelsea,RBKC,,Statutory Year-End Adjustments,Statutory Year-End Adjustments,,Fusion Project Management Ltd,1268369,,,,13/06/2022,2200251741,"3,500.00",,Other Consultants,,,,,,No
The Royal Borough of Kensington and Chelsea,RBKC,,Statutory Year-End Adjustments,Statutory Year-End Adjustments,,Fusion Project Management Ltd,1268369,,,,13/06/2022,2200251742,"3,500.00",,Other Consultants,,,,,,No
The Royal Borough of Kensington and Chelsea,RBKC,,Statutory Year-End Adjustments,Statutory Year-End Adjustments,,Fusion Project Management Ltd,1268369,,,,17/06/2022,2200252774,"4,000.00",,Other Consultants,,,,,,No
The Royal Borough of Kensington and Chelsea,RBKC,,Statutory Year-End Adjustments,Statutory Year-End Adjustments,,Fusion Project Management Ltd,1268369,,,,17/06/2022,2200252775,"2,000.00",,Other Consultants,,,,,,No
The Royal Borough of Kensington and Chelsea,RBKC,,Statutory Year-End Adjustments,Statutory Year-End Adjustments,,Fusion Project Management Ltd,1268369,,,,17/06/2022,2200252776,"2,000.00",,Other Consultants,,,,,,No
The Royal Borough of Kensington and Chelsea,RBKC,,Statutory Year-End Adjustments,Statutory Year-End Adjustments,,Fusion Project Management Ltd,1268369,,,,20/06/2022,2200253021,"1,500.00",,Other Consultants,,,,,,No
The Royal Borough of Kensington and Chelsea,RBKC,,Statutory Year-End Adjustments,Statutory Year-End Adjustments,,Fusion Project Management Ltd,1268369,,,,20/06/2022,2200253026,"2,508.00",,Other Consultants,,,,,,No
The Royal Borough of Kensington and Chelsea,RBKC,,Statutory Year-End Adjustments,Statutory Year-End Adjustments,,Fusion Project Management Ltd,1268369,,,,20/06/2022,2200253030,"2,508.00",,Other Consultants,,,,,,No
The Royal Borough of Kensington and Chelsea,RBKC,,Statutory Year-End Adjustments,Statutory Year-End Adjustments,,Fusion Project Management Ltd,1268369,,,,20/06/2022,2200253031,"2,000.00",,Other Consultants,,,,,,No
The Royal Borough of Kensington and Chelsea,RBKC,,Statutory Year-End Adjustments,Statutory Year-End Adjustments,,Fusion Project Management Ltd,1268369,,,,20/06/2022,2200253034,"2,750.00",,Other Consultants,,,,,,No
The Royal Borough of Kensington and Chelsea,RBKC,,Statutory Year-End Adjustments,Statutory Year-End Adjustments,,Fusion Project Management Ltd,1268369,,,,20/06/2022,2200253035,"2,750.00",,Other Consultants,,,,,,No
The Royal Borough of Kensington and Chelsea,RBKC,,Statutory Year-End Adjustments,Statutory Year-End Adjustments,,Fusion Project Management Ltd,1268369,,,,20/06/2022,2200253037,"2,000.00",,Other Consultants,,,,,,No
The Royal Borough of Kensington and Chelsea,RBKC,,Statutory Year-End Adjustments,Statutory Year-End Adjustments,,Fusion Project Management Ltd,1268369,,,,20/06/2022,2200253038,"2,000.00",,Other Consultants,,,,,,No
The Royal Borough of Kensington and Chelsea,RBKC,,Statutory Year-End Adjustments,Statutory Year-End Adjustments,,Fusion Project Management Ltd,1268369,,,,20/06/2022,2200253040,"5,000.00",,Other Consultants,,,,,,No
The Royal Borough of Kensington and Chelsea,RBKC,,Statutory Year-End Adjustments,Statutory Year-End Adjustments,,Fusion Project Management Ltd,1268369,,,,20/06/2022,2200253043,"1,500.00",,Other Consultants,,,,,,No
The Royal Borough of Kensington and Chelsea,RBKC,,Statutory Year-End Adjustments,Statutory Year-End Adjustments,,Fusion Project Management Ltd,1268369,,,,20/06/2022,2200253044,"5,000.00",,Other Consultants,,,,,,No
The Royal Borough of Kensington and Chelsea,RBKC,,Statutory Year-End Adjustments,Statutory Year-End Adjustments,,Fusion Project Management Ltd,1268369,,,,20/06/2022,2200253045,"4,000.00",,Other Consultants,,,,,,No
The Royal Borough of Kensington and Chelsea,RBKC,,Statutory Year-End Adjustments,Statutory Year-End Adjustments,,Fusion Project Management Ltd,1268369,,,,20/06/2022,2200253047,"1,500.00",,Other Consultants,,,,,,No
The Royal Borough of Kensington and Chelsea,RBKC,,Statutory Year-End Adjustments,Statutory Year-End Adjustments,,Fusion Project Management Ltd,1268369,,,,20/06/2022,2200253048,"1,650.00",,Other Consultants,,,,,,No
The Royal Borough of Kensington and Chelsea,RBKC,,Statutory Year-End Adjustments,Statutory Year-End Adjustments,,Fusion Project Management Ltd,1268369,,,,20/06/2022,2200253108,"1,500.00",,Other Consultants,,,,,,No
The Royal Borough of Kensington and Chelsea,RBKC,,Statutory Year-End Adjustments,Statutory Year-End Adjustments,,Fusion Project Management Ltd,1268369,,,,20/06/2022,2200253136,"11,275.00",,HCC - Architects,,,,,,No
The Royal Borough of Kensington and Chelsea,RBKC,,Statutory Year-End Adjustments,Statutory Year-End Adjustments,,Fusion Project Management Ltd,1268369,,,,20/06/2022,2200253137,"4,000.00",,B*Surveyors,,,,,,No
The Royal Borough of Kensington and Chelsea,RBKC,,Statutory Year-End Adjustments,Statutory Year-End Adjustments,,Fusion Project Management Ltd,1268369,,,,20/06/2022,2200253138,"5,000.00",,B*Surveyors,,,,,,No
The Royal Borough of Kensington and Chelsea,RBKC,,Statutory Year-End Adjustments,Statutory Year-End Adjustments,,Fusion Project Management Ltd,1268369,,,,20/06/2022,2200253139,"5,000.00",,B*Surveyors,,,,,,No
The Royal Borough of Kensington and Chelsea,RBKC,,Statutory Year-End Adjustments,Statutory Year-End Adjustments,,Fusion Project Management Ltd,1268369,,,,20/06/2022,2200253140,"13,475.00",,HCC - Architects,,,,,,No
The Royal Borough of Kensington and Chelsea,RBKC,,Statutory Year-End Adjustments,Statutory Year-End Adjustments,,Fusion Project Management Ltd,1268369,,,,20/06/2022,2200253141,"4,000.00",,B*Surveyors,,,,,,No
The Royal Borough of Kensington and Chelsea,RBKC,,Statutory Year-End Adjustments,Statutory Year-End Adjustments,,Fusion Project Management Ltd,1268369,,,,23/06/2022,2200253726,"13,475.00",,B*Surveyors,,,,,,No
The Royal Borough of Kensington and Chelsea,RBKC,,Statutory Year-End Adjustments,Statutory Year-End Adjustments,,Fusion Project Management Ltd,1268369,,,,23/06/2022,2200253727,"11,275.00",,B*Surveyors,,,,,,No
The Royal Borough of Kensington and Chelsea,RBKC,,Statutory Year-End Adjustments,Statutory Year-End Adjustments,,Fusion Project Management Ltd,1268369,,,,27/06/2022,2200254289,"3,500.00",,Other Consultants,,,,,,No
The Royal Borough of Kensington and Chelsea,RBKC,,Statutory Year-End Adjustments,Statutory Year-End Adjustments,,Fusion Project Management Ltd,1268369,,,,27/06/2022,2200254290,"1,500.00",,Other Consultants,,,,,,No
The Royal Borough of Kensington and Chelsea,RBKC,,Statutory Year-End Adjustments,Statutory Year-End Adjustments,,Fusion Project Management Ltd,1268369,,,,27/06/2022,2200254291,"38,500.00",,Other Consultants,,,,,,No
The Royal Borough of Kensington and Chelsea,RBKC,,Statutory Year-End Adjustments,Statutory Year-End Adjustments,,Fusion Project Management Ltd,1268369,,,,27/06/2022,2200254295,"4,000.00",,Other Consultants,,,,,,No
The Royal Borough of Kensington and Chelsea,RBKC,,Statutory Year-End Adjustments,Statutory Year-End Adjustments,,Fusion Project Management Ltd,1268369,,,,27/06/2022,2200254296,"6,500.00",,Other Consultants,,,,,,No
The Royal Borough of Kensington and Chelsea,RBKC,,Statutory Year-End Adjustments,Statutory Year-End Adjustments,,Fusion Project Management Ltd,1268369,,,,27/06/2022,2200254297,"2,250.00",,Other Consultants,,,,,,No
The Royal Borough of Kensington and Chelsea,RBKC,,Statutory Year-End Adjustments,Statutory Year-End Adjustments,,Fusion Project Management Ltd,1268369,,,,27/06/2022,2200254299,"35,000.00",,Other Consultants,,,,,,No
The Royal Borough of Kensington and Chelsea,RBKC,,Statutory Year-End Adjustments,Statutory Year-End Adjustments,,Fusion Project Management Ltd,1268369,,,,27/06/2022,2200254301,"1,500.00",,Other Consultants,,,,,,No
The Royal Borough of Kensington and Chelsea,RBKC,,Statutory Year-End Adjustments,Statutory Year-End Adjustments,,Fusion Project Management Ltd,1268369,,,,27/06/2022,2200254303,"6,500.00",,Other Consultants,,,,,,No
The Royal Borough of Kensington and Chelsea,RBKC,,Statutory Year-End Adjustments,Statutory Year-End Adjustments,,Fusion Project Management Ltd,1268369,,,,27/06/2022,2200254305,"3,500.00",,Other Consultants,,,,,,No
The Royal Borough of Kensington and Chelsea,RBKC,,Statutory Year-End Adjustments,Statutory Year-End Adjustments,,Fusion Project Management Ltd,1268369,,,,27/06/2022,2200254307,"2,250.00",,Other Consultants,,,,,,No
The Royal Borough of Kensington and Chelsea,RBKC,,Statutory Year-End Adjustments,Statutory Year-End Adjustments,,Fusion Project Management Ltd,1268369,,,,27/06/2022,2200254530,"9,284.00",,Other Consultants,,,,,,No
The Royal Borough of Kensington and Chelsea,RBKC,,Statutory Year-End Adjustments,Statutory Year-End Adjustments,,G & S Hutchinson Ltd,1281748,,,,05/04/2022,2200238571,"23,807.08",,Planned Maintenance (CM),,,,,,No
The Royal Borough of Kensington and Chelsea,RBKC,,Statutory Year-End Adjustments,Statutory Year-End Adjustments,,G & S Hutchinson Ltd,1281748,,,,05/04/2022,2200238667,"8,193.72",,Planned Maintenance (CM),,,,,,No
The Royal Borough of Kensington and Chelsea,RBKC,,Statutory Year-End Adjustments,Statutory Year-End Adjustments,,G & S Hutchinson Ltd,1281748,,,,17/05/2022,2200246918,"13,736.28",,Planned Maintenance (CM),,,,,,No
The Royal Borough of Kensington and Chelsea,RBKC,,Statutory Year-End Adjustments,Statutory Year-End Adjustments,,G & S Hutchinson Ltd,1281748,,,,17/05/2022,2200246919,"2,673.39",,Planned Maintenance (CM),,,,,,No
The Royal Borough of Kensington and Chelsea,RBKC,,Statutory Year-End Adjustments,Statutory Year-End Adjustments,,G & S Hutchinson Ltd,1281748,,,,23/06/2022,2200253980,"18,059.00",,Planned Maintenance (CM),,,,,,No
The Royal Borough of Kensington and Chelsea,RBKC,,Statutory Year-End Adjustments,Statutory Year-End Adjustments,,Sheridan & Stretton Solicitors,D000000023,,,,04/04/2022,3110403755,"469,944.62",,Acquisition of Land & Buildings,,,,,,No
The Royal Borough of Kensington and Chelsea,RBKC,,Statutory Year-End Adjustments,Statutory Year-End Adjustments,,Switalskis Solicitors Limited Clien,D000000023,,,,06/04/2022,3110404421,"162,800.00",,Acquisition of Land & Buildings,,,,,,No
The Royal Borough of Kensington and Chelsea,RBKC,,Statutory Year-End Adjustments,Statutory Year-End Adjustments,,Switalskis Solicitors Limited Clien,D000000023,,,,12/04/2022,3110406694,"3,400.00",,Acquisition of Land & Buildings,,,,,,No
The Royal Borough of Kensington and Chelsea,RBKC,,Statutory Year-End Adjustments,Statutory Year-End Adjustments,,Green Roof Revival Ltd,D000000023,,,,21/04/2022,3110408146,"9,065.00",,Site Works,,,,,,No
The Royal Borough of Kensington and Chelsea,RBKC,,Statutory Year-End Adjustments,Statutory Year-End Adjustments,,HUNTSMAN ELDGRIDGE SURVEYORS LIMITE,D000000023,,,,10/05/2022,3110424018,"2,350.00",,Site Works,,,,,,No
The Royal Borough of Kensington and Chelsea,RBKC,,Statutory Year-End Adjustments,Statutory Year-End Adjustments,,Redact Details,D000000023,,,,10/05/2022,3110424022,"1,462.48",,Site Works,,,,,,No
The Royal Borough of Kensington and Chelsea,RBKC,,Statutory Year-End Adjustments,Statutory Year-End Adjustments,,PRINCE EVANS SOLICITORS LLP,D000000023,,,,13/05/2022,3110424565,"969,862.91",,Acquisition of Land & Buildings,,,,,,No
The Royal Borough of Kensington and Chelsea,RBKC,,Statutory Year-End Adjustments,Statutory Year-End Adjustments,,Redact Details,D000000023,,,,09/06/2022,3110448131,"9,750.00",,Other Consultants,,,,,,No
The Royal Borough of Kensington and Chelsea,RBKC,,Statutory Year-End Adjustments,Statutory Year-End Adjustments,,Hurst Family International Ltd,D000000023,,,,22/06/2022,3110453136,"1,952.00",,Romanse Expenses,,,,,,No
The Royal Borough of Kensington and Chelsea,RBKC,,Statutory Year-End Adjustments,Statutory Year-End Adjustments,,Stone Rowe Brewer LLP,D000000023,,,,24/06/2022,3110454282,"459,955.97",,Acquisition of Land & Buildings,,,,,,No
The Royal Borough of Kensington and Chelsea,RBKC,,Statutory Year-End Adjustments,Statutory Year-End Adjustments,,Euro Car Parks,D000000023,,,,29/06/2022,3110455323,"3,034.40",,Other Consultants,,,,,,No
The Royal Borough of Kensington and Chelsea,RBKC,,Statutory Year-End Adjustments,Statutory Year-End Adjustments,,Alu-Haus Ltd - Adam Buxton,D000000023,,,,30/06/2022,3110455756,"10,250.00",,Romanse Expenses,,,,,,No
The Royal Borough of Kensington and Chelsea,RBKC,,Statutory Year-End Adjustments,Statutory Year-End Adjustments,,Vectaire Ltd - Susan Gregory,D000000023,,,,30/06/2022,3110455767,"1,270.00",,Other capital equipment,,,,,,No
The Royal Borough of Kensington and Chelsea,RBKC,,Statutory Year-End Adjustments,Statutory Year-End Adjustments,,Intelligent Comfort Group Ltd - Mar,D000000023,,,,30/06/2022,3110455981,"19,928.25",,Other capital equipment,,,,,,No
The Royal Borough of Kensington and Chelsea,RBKC,,Statutory Year-End Adjustments,Statutory Year-End Adjustments,,GIA ,1234645,,,,21/04/2022,2200241928,"4,518.00",,B*Surveyors,,,,,,No
The Royal Borough of Kensington and Chelsea,RBKC,,Statutory Year-End Adjustments,Statutory Year-End Adjustments,,GIA ,1234645,,,,14/06/2022,2200252120,"1,068.00",,Romanse Expenses,,,,,,No
The Royal Borough of Kensington and Chelsea,RBKC,,Statutory Year-End Adjustments,Statutory Year-End Adjustments,,Gardiner & Theobald LLP ,1234613,,,,06/05/2022,2200244784,"3,000.00",,Other Consultants,,,,,,No
The Royal Borough of Kensington and Chelsea,RBKC,,Statutory Year-End Adjustments,Statutory Year-End Adjustments,,Garvey Bros Builders Ltd,1288238,,,,01/04/2022,2200238139,"7,975.00",,Payments to main contractor,,,,,,No
The Royal Borough of Kensington and Chelsea,RBKC,,Statutory Year-End Adjustments,Statutory Year-End Adjustments,,Garvey Bros Builders Ltd,1288238,,,,04/04/2022,2200238371,"11,343.00",,Payments to main contractor,,,,,,No
The Royal Borough of Kensington and Chelsea,RBKC,,Statutory Year-End Adjustments,Statutory Year-End Adjustments,,Garvey Bros Builders Ltd,1288238,,,,21/04/2022,2200241943,"6,260.00",,Payments to main contractor,,,,,,No
The Royal Borough of Kensington and Chelsea,RBKC,,Statutory Year-End Adjustments,Statutory Year-End Adjustments,,Garvey Bros Builders Ltd,1288238,,,,28/06/2022,2200254686,"8,915.00",,Payments to main contractor,,,,,,No
The Royal Borough of Kensington and Chelsea,RBKC,,Statutory Year-End Adjustments,Statutory Year-End Adjustments,,Garvey Bros Builders Ltd,1288238,,,,28/06/2022,2200254688,"8,455.00",,Payments to main contractor,,,,,,No
The Royal Borough of Kensington and Chelsea,RBKC,,Statutory Year-End Adjustments,Statutory Year-End Adjustments,,Geotechnical and Environmental Asso,1277387,,,,10/06/2022,2200251496,750.00,,Health and Safety Alterations,,,,,,No
The Royal Borough of Kensington and Chelsea,RBKC,,Statutory Year-End Adjustments,Statutory Year-End Adjustments,,Gerda Security Products Ltd ,1234642,,,,21/04/2022,2200241969,"13,205.52",,Planned Maintenance (CM),,,,,,No
The Royal Borough of Kensington and Chelsea,RBKC,,Statutory Year-End Adjustments,Statutory Year-End Adjustments,,Gerda Security Products Ltd ,1234642,,,,22/04/2022,2200242196,"6,278.80",,Planned Maintenance (CM),,,,,,No
The Royal Borough of Kensington and Chelsea,RBKC,,Statutory Year-End Adjustments,Statutory Year-End Adjustments,,Gerda Security Products Ltd ,1234642,,,,05/05/2022,2200244404,"1,395.13",,Payments to main contractor,,,,,,No
The Royal Borough of Kensington and Chelsea,RBKC,,Statutory Year-End Adjustments,Statutory Year-End Adjustments,,Gerda Security Products Ltd ,1234642,,,,05/05/2022,2200244405,"1,517.32",,Payments to main contractor,,,,,,No
The Royal Borough of Kensington and Chelsea,RBKC,,Statutory Year-End Adjustments,Statutory Year-End Adjustments,,Gerda Security Products Ltd ,1234642,,,,31/05/2022,2200249619,"73,635.50",,Payments to main contractor,,,,,,No
The Royal Borough of Kensington and Chelsea,RBKC,,Statutory Year-End Adjustments,Statutory Year-End Adjustments,,Gerda Security Products Ltd ,1234642,,,,31/05/2022,2200249722,"51,128.13",,Payments to main contractor,,,,,,No
The Royal Borough of Kensington and Chelsea,RBKC,,Statutory Year-End Adjustments,Statutory Year-End Adjustments,,Goldfinger Factory,1230345,,,,04/05/2022,2200244047,"4,124.10",,Other capital equipment,,,,,,No
The Royal Borough of Kensington and Chelsea,RBKC,,Statutory Year-End Adjustments,Statutory Year-End Adjustments,,Greenacre Recruitment,1258089,,,,01/06/2022,2200249983,"2,250.00",,B*Strategic Building Maintenance,,,,,,No
The Royal Borough of Kensington and Chelsea,RBKC,,Statutory Year-End Adjustments,Statutory Year-End Adjustments,,Greenacre Recruitment,1258089,,,,01/06/2022,2200249985,"2,250.00",,B*Strategic Building Maintenance,,,,,,No
The Royal Borough of Kensington and Chelsea,RBKC,,Statutory Year-End Adjustments,Statutory Year-End Adjustments,,Greenacre Recruitment,1258089,,,,01/06/2022,2200249986,"1,800.00",,B*Strategic Building Maintenance,,,,,,No
The Royal Borough of Kensington and Chelsea,RBKC,,Statutory Year-End Adjustments,Statutory Year-End Adjustments,,Greenacre Recruitment,1258089,,,,01/06/2022,2200249988,"1,800.00",,B*Strategic Building Maintenance,,,,,,No
The Royal Borough of Kensington and Chelsea,RBKC,,Statutory Year-End Adjustments,Statutory Year-End Adjustments,,Greenacre Recruitment,1258089,,,,01/06/2022,2200249989,"2,250.00",,B*Strategic Building Maintenance,,,,,,No
The Royal Borough of Kensington and Chelsea,RBKC,,Statutory Year-End Adjustments,Statutory Year-End Adjustments,,Greenacre Recruitment,1258089,,,,01/06/2022,2200249990,"2,250.00",,B*Strategic Building Maintenance,,,,,,No
The Royal Borough of Kensington and Chelsea,RBKC,,Statutory Year-End Adjustments,Statutory Year-End Adjustments,,Greenacre Recruitment,1258089,,,,06/06/2022,2200250418,"2,250.00",,B*Strategic Building Maintenance,,,,,,No
The Royal Borough of Kensington and Chelsea,RBKC,,Statutory Year-End Adjustments,Statutory Year-End Adjustments,,Greenacre Recruitment,1258089,,,,16/06/2022,2200252572,"1,350.00",,B*Strategic Building Maintenance,,,,,,No
The Royal Borough of Kensington and Chelsea,RBKC,,Statutory Year-End Adjustments,Statutory Year-End Adjustments,,Greenacre Recruitment,1258089,,,,16/06/2022,2200252573,"2,250.00",,B*Strategic Building Maintenance,,,,,,No
The Royal Borough of Kensington and Chelsea,RBKC,,Statutory Year-End Adjustments,Statutory Year-End Adjustments,,Greenacre Recruitment,1258089,,,,16/06/2022,2200252574,"1,350.00",,B*Strategic Building Maintenance,,,,,,No
The Royal Borough of Kensington and Chelsea,RBKC,,Statutory Year-End Adjustments,Statutory Year-End Adjustments,,Greenacre Recruitment,1258089,,,,16/06/2022,2200252575,"1,800.00",,B*Strategic Building Maintenance,,,,,,No
The Royal Borough of Kensington and Chelsea,RBKC,,Statutory Year-End Adjustments,Statutory Year-End Adjustments,,Greenwich Leisure Ltd (Gll) ,1234678,,,,01/04/2022,2200238043,"101,258.48",,Payments to main contractor,,,,,,No
The Royal Borough of Kensington and Chelsea,RBKC,,Statutory Year-End Adjustments,Statutory Year-End Adjustments,,Greyline Builders Ltd,1287371,,,,25/05/2022,2200248810,727.96,,,,,,,,No
The Royal Borough of Kensington and Chelsea,RBKC,,Statutory Year-End Adjustments,Statutory Year-End Adjustments,,Greyline Builders Ltd,1287371,,,,25/05/2022,2200248811,"10,292.10",,,,,,,,No
The Royal Borough of Kensington and Chelsea,RBKC,,Statutory Year-End Adjustments,Statutory Year-End Adjustments,,Greyline Builders Ltd,1287371,,,,15/06/2022,2200252263,"25,145.67",,,,,,,,No
The Royal Borough of Kensington and Chelsea,RBKC,,Statutory Year-End Adjustments,Statutory Year-End Adjustments,,Guideline Lift Services Ltd ,1231219,,,,07/04/2022,2200239350,"62,183.91",,Payments to main contractor,,,,,,No
The Royal Borough of Kensington and Chelsea,RBKC,,Statutory Year-End Adjustments,Statutory Year-End Adjustments,,Guideline Lift Services Ltd ,1231219,,,,07/04/2022,2200239372,"60,419.28",,Payments to main contractor,,,,,,No
The Royal Borough of Kensington and Chelsea,RBKC,,Statutory Year-End Adjustments,Statutory Year-End Adjustments,,Guideline Lift Services Ltd ,1231219,,,,08/04/2022,2200239655,"58,312.99",,Payments to main contractor,,,,,,No
The Royal Borough of Kensington and Chelsea,RBKC,,Statutory Year-End Adjustments,Statutory Year-End Adjustments,,Guideline Lift Services Ltd ,1231219,,,,11/04/2022,2200239930,"46,460.52",,Payments to main contractor,,,,,,No
The Royal Borough of Kensington and Chelsea,RBKC,,Statutory Year-End Adjustments,Statutory Year-End Adjustments,,Guideline Lift Services Ltd ,1231219,,,,11/04/2022,2200239931,"5,859.07",,Payments to main contractor,,,,,,No
The Royal Borough of Kensington and Chelsea,RBKC,,Statutory Year-End Adjustments,Statutory Year-End Adjustments,,Guideline Lift Services Ltd ,1231219,,,,11/04/2022,2200239932,"98,792.67",,Payments to main contractor,,,,,,No
The Royal Borough of Kensington and Chelsea,RBKC,,Statutory Year-End Adjustments,Statutory Year-End Adjustments,,Guideline Lift Services Ltd ,1231219,,,,20/05/2022,2200248021,"20,287.53",,Payments to main contractor,,,,,,No
The Royal Borough of Kensington and Chelsea,RBKC,,Statutory Year-End Adjustments,Statutory Year-End Adjustments,,Guideline Lift Services Ltd ,1231219,,,,20/05/2022,2200248058,"18,892.39",,Payments to main contractor,,,,,,No
The Royal Borough of Kensington and Chelsea,RBKC,,Statutory Year-End Adjustments,Statutory Year-End Adjustments,,Guideline Lift Services Ltd ,1231219,,,,30/05/2022,2200249421,"10,159.10",,Payments to main contractor,,,,,,No
The Royal Borough of Kensington and Chelsea,RBKC,,Statutory Year-End Adjustments,Statutory Year-End Adjustments,,Guideline Lift Services Ltd ,1231219,,,,30/05/2022,2200249422,"33,325.77",,Payments to main contractor,,,,,,No
The Royal Borough of Kensington and Chelsea,RBKC,,Statutory Year-End Adjustments,Statutory Year-End Adjustments,,Guideline Lift Services Ltd ,1231219,,,,09/06/2022,2200251359,"7,220.66",,Payments to main contractor,,,,,,No
The Royal Borough of Kensington and Chelsea,RBKC,,Statutory Year-End Adjustments,Statutory Year-End Adjustments,,HM Revenue & Customs (Stamp duty),1230805,,,,05/04/2022,3110404379,"46,400.00",,Acquisition of Land & Buildings,,,,,,No
The Royal Borough of Kensington and Chelsea,RBKC,,Statutory Year-End Adjustments,Statutory Year-End Adjustments,,HM Revenue & Customs (Stamp duty),1230805,,,,12/04/2022,3110406701,"27,600.00",,Acquisition of Land & Buildings,,,,,,No
The Royal Borough of Kensington and Chelsea,RBKC,,Statutory Year-End Adjustments,Statutory Year-End Adjustments,,HM Revenue & Customs (Stamp duty),1230805,,,,04/05/2022,3110421613,"79,698.20",,Acquisition of Land & Buildings,,,,,,No
The Royal Borough of Kensington and Chelsea,RBKC,,Statutory Year-End Adjustments,Statutory Year-End Adjustments,,HM Revenue & Customs (Stamp duty),1230805,,,,26/05/2022,3110441063,"69,850.00",,Acquisition of Land & Buildings,,,,,,No
The Royal Borough of Kensington and Chelsea,RBKC,,Statutory Year-End Adjustments,Statutory Year-End Adjustments,,Harmony Fire Ltd,1282704,,,,01/06/2022,2200250089,"2,090.67",,Payments to main contractor,,,,,,No
The Royal Borough of Kensington and Chelsea,RBKC,,Statutory Year-End Adjustments,Statutory Year-End Adjustments,,Harmony Fire Ltd,1282704,,,,20/06/2022,2200253105,"15,244.95",,Payments to main contractor,,,,,,No
The Royal Borough of Kensington and Chelsea,RBKC,,Statutory Year-End Adjustments,Statutory Year-End Adjustments,,Helix Construct Limited,1270811,,,,01/04/2022,2200237919,"206,216.39",,Payments to main contractor,,,,,,No
The Royal Borough of Kensington and Chelsea,RBKC,,Statutory Year-End Adjustments,Statutory Year-End Adjustments,,Helix Construct Limited,1270811,,,,29/04/2022,2200243623,"295,464.81",,Payments to main contractor,,,,,,No
The Royal Borough of Kensington and Chelsea,RBKC,,Statutory Year-End Adjustments,Statutory Year-End Adjustments,,Helix Construct Limited,1270811,,,,31/05/2022,2200249565,"257,657.86",,Payments to main contractor,,,,,,No
The Royal Borough of Kensington and Chelsea,RBKC,,Statutory Year-End Adjustments,Statutory Year-End Adjustments,,Helix Construct Limited,1270811,,,,01/06/2022,2200249895,"34,870.94",,Payments to main contractor,,,,,,No
The Royal Borough of Kensington and Chelsea,RBKC,,Statutory Year-End Adjustments,Statutory Year-End Adjustments,,Henry Riley LLP ,1230402,,,,09/05/2022,2200245098,"6,200.00",,Other Consultants,,,,,,No
The Royal Borough of Kensington and Chelsea,RBKC,,Statutory Year-End Adjustments,Statutory Year-End Adjustments,,Henry Riley LLP ,1230402,,,,09/05/2022,2200245122,"11,200.00",,Other Consultants,,,,,,No
The Royal Borough of Kensington and Chelsea,RBKC,,Statutory Year-End Adjustments,Statutory Year-End Adjustments,,Henry Riley LLP ,1230402,,,,23/06/2022,2200253796,"6,200.00",,Other Consultants,,,,,,No
The Royal Borough of Kensington and Chelsea,RBKC,,Statutory Year-End Adjustments,Statutory Year-End Adjustments,,Hickton Consultants Ltd,1279547,,,,11/04/2022,2200239942,"1,104.00",,,,,,,,No
The Royal Borough of Kensington and Chelsea,RBKC,,Statutory Year-End Adjustments,Statutory Year-End Adjustments,,Hickton Consultants Ltd,1279547,,,,11/04/2022,2200239943,"1,104.00",,,,,,,,No
The Royal Borough of Kensington and Chelsea,RBKC,,Statutory Year-End Adjustments,Statutory Year-End Adjustments,,Hickton Consultants Ltd,1279547,,,,11/04/2022,2200239944,"3,312.00",,,,,,,,No
The Royal Borough of Kensington and Chelsea,RBKC,,Statutory Year-End Adjustments,Statutory Year-End Adjustments,,Hickton Consultants Ltd,1279547,,,,11/04/2022,2200239945,"3,680.00",,,,,,,,No
The Royal Borough of Kensington and Chelsea,RBKC,,Statutory Year-End Adjustments,Statutory Year-End Adjustments,,Hickton Consultants Ltd,1279547,,,,09/05/2022,2200245261,"1,472.00",,,,,,,,No
The Royal Borough of Kensington and Chelsea,RBKC,,Statutory Year-End Adjustments,Statutory Year-End Adjustments,,Hickton Consultants Ltd,1279547,,,,09/05/2022,2200245262,"1,472.00",,,,,,,,No
The Royal Borough of Kensington and Chelsea,RBKC,,Statutory Year-End Adjustments,Statutory Year-End Adjustments,,Hickton Consultants Ltd,1279547,,,,09/05/2022,2200245263,"2,944.00",,,,,,,,No
The Royal Borough of Kensington and Chelsea,RBKC,,Statutory Year-End Adjustments,Statutory Year-End Adjustments,,Hickton Consultants Ltd,1279547,,,,10/05/2022,2200245460,"2,944.00",,,,,,,,No
The Royal Borough of Kensington and Chelsea,RBKC,,Statutory Year-End Adjustments,Statutory Year-End Adjustments,,Hickton Consultants Ltd,1279547,,,,28/06/2022,2200254680,736.00,,,,,,,,No
The Royal Borough of Kensington and Chelsea,RBKC,,Statutory Year-End Adjustments,Statutory Year-End Adjustments,,Hickton Consultants Ltd,1279547,,,,28/06/2022,2200254684,552.00,,,,,,,,No
The Royal Borough of Kensington and Chelsea,RBKC,,Statutory Year-End Adjustments,Statutory Year-End Adjustments,,Hickton Consultants Ltd,1279547,,,,28/06/2022,2200254685,"1,104.00",,,,,,,,No
The Royal Borough of Kensington and Chelsea,RBKC,,Statutory Year-End Adjustments,Statutory Year-End Adjustments,,Hickton Consultants Ltd,1279547,,,,28/06/2022,2200254687,"1,840.00",,,,,,,,No
The Royal Borough of Kensington and Chelsea,RBKC,,Statutory Year-End Adjustments,Statutory Year-End Adjustments,,Hickton Consultants Ltd,1279547,,,,28/06/2022,2200254790,"3,680.00",,,,,,,,No
The Royal Borough of Kensington and Chelsea,RBKC,,Statutory Year-End Adjustments,Statutory Year-End Adjustments,,Higham Flat Roofing Ltd ,1252605,,,,04/04/2022,2200238324,"7,880.00",,Planned Maintenance (CM),,,,,,No
The Royal Borough of Kensington and Chelsea,RBKC,,Statutory Year-End Adjustments,Statutory Year-End Adjustments,,Higham Flat Roofing Ltd ,1252605,,,,28/06/2022,2200254634,"2,198.00",,Planned Maintenance (CM),,,,,,No
The Royal Borough of Kensington and Chelsea,RBKC,,Statutory Year-End Adjustments,Statutory Year-End Adjustments,,Houseline Building Services Ltd ,1231377,,,,04/05/2022,2200244142,"3,987.84",,Payments to main contractor,,,,,,No
The Royal Borough of Kensington and Chelsea,RBKC,,Statutory Year-End Adjustments,Statutory Year-End Adjustments,,IMAGO Architects,1290611,,,,21/06/2022,2200253371,750.00,,Romanse Expenses,,,,,,No
The Royal Borough of Kensington and Chelsea,RBKC,,Statutory Year-End Adjustments,Statutory Year-End Adjustments,,Idealcombi Uk Limited,1270224,,,,08/04/2022,2200239867,"4,774.49",,Romanse Expenses,,,,,,No
The Royal Borough of Kensington and Chelsea,RBKC,,Statutory Year-End Adjustments,Statutory Year-End Adjustments,,Idealcombi Uk Limited,1270224,,,,08/04/2022,2200239869,"3,736.04",,Romanse Expenses,,,,,,No
The Royal Borough of Kensington and Chelsea,RBKC,,Statutory Year-End Adjustments,Statutory Year-End Adjustments,,Idox Software Ltd ,1230453,,,,23/06/2022,2200253735,"6,000.00",,Computer Software,,,,,,No
The Royal Borough of Kensington and Chelsea,RBKC,,Statutory Year-End Adjustments,Statutory Year-End Adjustments,,Idox Software Ltd ,1230453,,,,28/06/2022,2200254813,"6,000.00",,Computer Software,,,,,,No
The Royal Borough of Kensington and Chelsea,RBKC,,Statutory Year-End Adjustments,Statutory Year-End Adjustments,,Idverde Ltd ,1231380,,,,24/05/2022,2200248464,"4,514.00",,Romanse Expenses,,,,,,No
The Royal Borough of Kensington and Chelsea,RBKC,,Statutory Year-End Adjustments,Statutory Year-End Adjustments,,Redact Details,1234806,,,,30/06/2022,2200255133,"7,312.00",,Site Works,,,,,,No
The Royal Borough of Kensington and Chelsea,RBKC,,Statutory Year-End Adjustments,Statutory Year-End Adjustments,,J & J Topgrade Ltd ,1234807,,,,11/05/2022,2200245673,"2,505.00",,Payments to main contractor,,,,,,No
The Royal Borough of Kensington and Chelsea,RBKC,,Statutory Year-End Adjustments,Statutory Year-End Adjustments,,Jackson Coles LLP ,1230491,,,,11/04/2022,2200240094,"3,189.00",,Other Consultants,,,,,,No
The Royal Borough of Kensington and Chelsea,RBKC,,Statutory Year-End Adjustments,Statutory Year-End Adjustments,,Jackson Coles LLP ,1230491,,,,27/04/2022,2200243097,"3,189.00",,Other Consultants,,,,,,No
The Royal Borough of Kensington and Chelsea,RBKC,,Statutory Year-End Adjustments,Statutory Year-End Adjustments,,Jackson Coles LLP ,1230491,,,,27/04/2022,2200243098,"3,189.00",,Other Consultants,,,,,,No
The Royal Borough of Kensington and Chelsea,RBKC,,Statutory Year-End Adjustments,Statutory Year-End Adjustments,,Jackson Coles LLP ,1230491,,,,13/05/2022,2200246275,"3,189.00",,Other Consultants,,,,,,No
The Royal Borough of Kensington and Chelsea,RBKC,,Statutory Year-End Adjustments,Statutory Year-End Adjustments,,Jackson Coles LLP ,1230491,,,,09/06/2022,2200251114,"3,189.00",,Other Consultants,,,,,,No
The Royal Borough of Kensington and Chelsea,RBKC,,Statutory Year-End Adjustments,Statutory Year-End Adjustments,,Redact Details,1277228,,,,21/04/2022,2200241916,"4,158.00",,Design Consultant,,,,,,No
The Royal Borough of Kensington and Chelsea,RBKC,,Statutory Year-End Adjustments,Statutory Year-End Adjustments,,Redact Details,1277228,,,,15/06/2022,2200252422,"6,121.50",,Design Consultant,,,,,,No
The Royal Borough of Kensington and Chelsea,RBKC,,Statutory Year-End Adjustments,Statutory Year-End Adjustments,,Redact Details,1277228,,,,15/06/2022,2200252423,"3,263.05",,Design Consultant,,,,,,No
The Royal Borough of Kensington and Chelsea,RBKC,,Statutory Year-End Adjustments,Statutory Year-End Adjustments,,K & T Heating Services Ltd ,1231384,,,,01/04/2022,2200239783,"7,329.43",,Payments to main contractor,,,,,,No
The Royal Borough of Kensington and Chelsea,RBKC,,Statutory Year-End Adjustments,Statutory Year-End Adjustments,,K & T Heating Services Ltd ,1231384,,,,01/04/2022,2200239784,"7,329.43",,Payments to main contractor,,,,,,No
The Royal Borough of Kensington and Chelsea,RBKC,,Statutory Year-End Adjustments,Statutory Year-End Adjustments,,K & T Heating Services Ltd ,1231384,,,,08/04/2022,2200239764,"85,417.72",,Payments to main contractor,,,,,,No
The Royal Borough of Kensington and Chelsea,RBKC,,Statutory Year-End Adjustments,Statutory Year-End Adjustments,,K & T Heating Services Ltd ,1231384,,,,28/04/2022,2200243413,"7,465.60",,Payments to main contractor,,,,,,No
The Royal Borough of Kensington and Chelsea,RBKC,,Statutory Year-End Adjustments,Statutory Year-End Adjustments,,K & T Heating Services Ltd ,1231384,,,,28/04/2022,2200243414,"7,465.60",,Payments to main contractor,,,,,,No
The Royal Borough of Kensington and Chelsea,RBKC,,Statutory Year-End Adjustments,Statutory Year-End Adjustments,,K & T Heating Services Ltd ,1231384,,,,06/05/2022,2200244888,"28,551.39",,Payments to main contractor,,,,,,No
The Royal Borough of Kensington and Chelsea,RBKC,,Statutory Year-End Adjustments,Statutory Year-End Adjustments,,K & T Heating Services Ltd ,1231384,,,,11/05/2022,2200245865,"7,465.60",,Payments to main contractor,,,,,,No
The Royal Borough of Kensington and Chelsea,RBKC,,Statutory Year-End Adjustments,Statutory Year-End Adjustments,,K & T Heating Services Ltd ,1231384,,,,11/05/2022,2200245867,"7,329.43",,Payments to main contractor,,,,,,No
The Royal Borough of Kensington and Chelsea,RBKC,,Statutory Year-End Adjustments,Statutory Year-End Adjustments,,K & T Heating Services Ltd ,1231384,,,,12/05/2022,2200246083,"7,465.60",,Payments to main contractor,,,,,,No
The Royal Borough of Kensington and Chelsea,RBKC,,Statutory Year-End Adjustments,Statutory Year-End Adjustments,,K & T Heating Services Ltd ,1231384,,,,13/05/2022,2200246400,"67,653.09",,Payments to main contractor,,,,,,No
The Royal Borough of Kensington and Chelsea,RBKC,,Statutory Year-End Adjustments,Statutory Year-End Adjustments,,K & T Heating Services Ltd ,1231384,,,,06/06/2022,2200250208,"7,465.60",,Payments to main contractor,,,,,,No
The Royal Borough of Kensington and Chelsea,RBKC,,Statutory Year-End Adjustments,Statutory Year-End Adjustments,,K & T Heating Services Ltd ,1231384,,,,06/06/2022,2200250211,"7,329.43",,Payments to main contractor,,,,,,No
The Royal Borough of Kensington and Chelsea,RBKC,,Statutory Year-End Adjustments,Statutory Year-End Adjustments,,K & T Heating Services Ltd ,1231384,,,,08/06/2022,2200251014,"5,238.57",,Heating System Replacement - CM,,,,,,No
The Royal Borough of Kensington and Chelsea,RBKC,,Statutory Year-End Adjustments,Statutory Year-End Adjustments,,K & T Heating Services Ltd ,1231384,,,,09/06/2022,2200251360,"88,753.65",,Payments to main contractor,,,,,,No
The Royal Borough of Kensington and Chelsea,RBKC,,Statutory Year-End Adjustments,Statutory Year-End Adjustments,,KBH Building Services Ltd,1276614,,,,01/04/2022,2200238798,"31,901.09",,Special Maintenance,,,,,,No
The Royal Borough of Kensington and Chelsea,RBKC,,Statutory Year-End Adjustments,Statutory Year-End Adjustments,,KBH Building Services Ltd,1276614,,,,19/04/2022,2200241355,950.00,,Special Maintenance,,,,,,No
The Royal Borough of Kensington and Chelsea,RBKC,,Statutory Year-End Adjustments,Statutory Year-End Adjustments,,KBH Building Services Ltd,1276614,,,,26/04/2022,2200242796,"38,081.83",,Special Maintenance,,,,,,No
The Royal Borough of Kensington and Chelsea,RBKC,,Statutory Year-End Adjustments,Statutory Year-End Adjustments,,KBH Building Services Ltd,1276614,,,,26/04/2022,2200242799,"37,856.14",,Special Maintenance,,,,,,No
The Royal Borough of Kensington and Chelsea,RBKC,,Statutory Year-End Adjustments,Statutory Year-End Adjustments,,KBH Building Services Ltd,1276614,,,,26/04/2022,2200242803,"24,291.22",,Special Maintenance,,,,,,No
The Royal Borough of Kensington and Chelsea,RBKC,,Statutory Year-End Adjustments,Statutory Year-End Adjustments,,KBH Building Services Ltd,1276614,,,,03/05/2022,2200243871,"35,941.71",,Special Maintenance,,,,,,No
The Royal Borough of Kensington and Chelsea,RBKC,,Statutory Year-End Adjustments,Statutory Year-End Adjustments,,KBH Building Services Ltd,1276614,,,,10/05/2022,2200245604,800.00,,Special Maintenance,,,,,,No
The Royal Borough of Kensington and Chelsea,RBKC,,Statutory Year-End Adjustments,Statutory Year-End Adjustments,,KBH Building Services Ltd,1276614,,,,10/05/2022,2200245606,950.00,,Special Maintenance,,,,,,No
The Royal Borough of Kensington and Chelsea,RBKC,,Statutory Year-End Adjustments,Statutory Year-End Adjustments,,KBH Building Services Ltd,1276614,,,,31/05/2022,2200249724,"35,436.19",,Special Maintenance,,,,,,No
The Royal Borough of Kensington and Chelsea,RBKC,,Statutory Year-End Adjustments,Statutory Year-End Adjustments,,KBH Building Services Ltd,1276614,,,,16/06/2022,2200252747,550.00,,Special Maintenance,,,,,,No
The Royal Borough of Kensington and Chelsea,RBKC,,Statutory Year-End Adjustments,Statutory Year-End Adjustments,,KBH Building Services Ltd,1276614,,,,16/06/2022,2200252748,650.00,,Special Maintenance,,,,,,No
The Royal Borough of Kensington and Chelsea,RBKC,,Statutory Year-End Adjustments,Statutory Year-End Adjustments,,KBH Building Services Ltd,1276614,,,,22/06/2022,2200253584,"1,500.00",,Special Maintenance,,,,,,No
The Royal Borough of Kensington and Chelsea,RBKC,,Statutory Year-End Adjustments,Statutory Year-End Adjustments,,KBH Building Services Ltd,1276614,,,,22/06/2022,2200253593,800.00,,Special Maintenance,,,,,,No
The Royal Borough of Kensington and Chelsea,RBKC,,Statutory Year-End Adjustments,Statutory Year-End Adjustments,,KBH Building Services Ltd,1276614,,,,24/06/2022,2200254089,"33,217.15",,Special Maintenance,,,,,,No
The Royal Borough of Kensington and Chelsea,RBKC,,Statutory Year-End Adjustments,Statutory Year-End Adjustments,,KBH Building Services Ltd,1276614,,,,24/06/2022,2200254180,"40,758.77",,Special Maintenance,,,,,,No
The Royal Borough of Kensington and Chelsea,RBKC,,Statutory Year-End Adjustments,Statutory Year-End Adjustments,,KBH Building Services Ltd,1276614,,,,24/06/2022,2200254181,"44,575.85",,Special Maintenance,,,,,,No
The Royal Borough of Kensington and Chelsea,RBKC,,Statutory Year-End Adjustments,Statutory Year-End Adjustments,,KBH Building Services Ltd,1276614,,,,24/06/2022,2200254182,"25,220.56",,Special Maintenance,,,,,,No
The Royal Borough of Kensington and Chelsea,RBKC,,Statutory Year-End Adjustments,Statutory Year-End Adjustments,,KBH Building Services Ltd,1276614,,,,30/06/2022,2200255005,"89,539.00",,Other Consultants,,,,,,No
The Royal Borough of Kensington and Chelsea,RBKC,,Statutory Year-End Adjustments,Statutory Year-End Adjustments,,Kani Associates Limited,1285336,,,,11/04/2022,2200240158,"1,600.00",,Planned Maintenance (CM),,,,,,No
The Royal Borough of Kensington and Chelsea,RBKC,,Statutory Year-End Adjustments,Statutory Year-End Adjustments,,Kelleher Utility Solutions Ltd,1276893,,,,03/05/2022,2200243869,"28,317.85",,Special Maintenance,,,,,,No
The Royal Borough of Kensington and Chelsea,RBKC,,Statutory Year-End Adjustments,Statutory Year-End Adjustments,,Kelleher Utility Solutions Ltd,1276893,,,,03/05/2022,2200243870,"20,994.24",,Special Maintenance,,,,,,No
The Royal Borough of Kensington and Chelsea,RBKC,,Statutory Year-End Adjustments,Statutory Year-End Adjustments,,Khipu Networks ,1230544,,,,06/04/2022,2200238945,"18,019.52",,Other capital equipment,,,,,,No
The Royal Borough of Kensington and Chelsea,RBKC,,Statutory Year-End Adjustments,Statutory Year-End Adjustments,,Khipu Networks ,1230544,,,,06/05/2022,2200244722,"12,966.54",,Other capital equipment,,,,,,No
The Royal Borough of Kensington and Chelsea,RBKC,,Statutory Year-End Adjustments,Statutory Year-End Adjustments,,Khipu Networks ,1230544,,,,01/06/2022,2200249815,"3,837.56",,Other capital equipment,,,,,,No
The Royal Borough of Kensington and Chelsea,RBKC,,Statutory Year-End Adjustments,Statutory Year-End Adjustments,,LAND SURVEY SOLUTIONS LTD,1274810,,,,16/05/2022,2200246680,825.00,,Other Consultants,,,,,,No
The Royal Borough of Kensington and Chelsea,RBKC,,Statutory Year-End Adjustments,Statutory Year-End Adjustments,,LAND SURVEY SOLUTIONS LTD,1274810,,,,09/06/2022,2200251171,995.00,,Other Consultants,,,,,,No
The Royal Borough of Kensington and Chelsea,RBKC,,Statutory Year-End Adjustments,Statutory Year-End Adjustments,,Landmark Building Contractors Ltd,1284403,,,,05/04/2022,2200238892,"10,146.00",,Payments to main contractor,,,,,,No
The Royal Borough of Kensington and Chelsea,RBKC,,Statutory Year-End Adjustments,Statutory Year-End Adjustments,,Landmark Environmental Ltd,1272305,,,,20/04/2022,2200241578,"5,510.00",,Other Consultants,,,,,,No
The Royal Borough of Kensington and Chelsea,RBKC,,Statutory Year-End Adjustments,Statutory Year-End Adjustments,,Landrock Phillips Ltd ,1230566,,,,04/05/2022,2200244268,740.00,,Site Works,,,,,,No
The Royal Borough of Kensington and Chelsea,RBKC,,Statutory Year-End Adjustments,Statutory Year-End Adjustments,,Landrock Phillips Ltd ,1230566,,,,10/05/2022,2200245516,"7,000.00",,Romanse Expenses,,,,,,No
The Royal Borough of Kensington and Chelsea,RBKC,,Statutory Year-End Adjustments,Statutory Year-End Adjustments,,Langford Direct Ltd,1288700,,,,03/05/2022,2200243930,"5,600.00",,Payments to main contractor,,,,,,No
The Royal Borough of Kensington and Chelsea,RBKC,,Statutory Year-End Adjustments,Statutory Year-End Adjustments,,Langford Direct Ltd,1288700,,,,03/05/2022,2200243932,990.00,,Payments to main contractor,,,,,,No
The Royal Borough of Kensington and Chelsea,RBKC,,Statutory Year-End Adjustments,Statutory Year-End Adjustments,,Laser Surveys Limited,1289431,,,,05/04/2022,2200238579,"1,100.00",,Other Consultants,,,,,,No
The Royal Borough of Kensington and Chelsea,RBKC,,Statutory Year-End Adjustments,Statutory Year-End Adjustments,,Laser Surveys Limited,1289431,,,,06/04/2022,2200239111,"1,100.00",,Other Consultants,,,,,,No
The Royal Borough of Kensington and Chelsea,RBKC,,Statutory Year-End Adjustments,Statutory Year-End Adjustments,,Laser Surveys Limited,1289431,,,,10/05/2022,2200245418,"12,045.00",,Site Works,,,,,,No
The Royal Borough of Kensington and Chelsea,RBKC,,Statutory Year-End Adjustments,Statutory Year-End Adjustments,,Laser Surveys Limited,1289431,,,,10/05/2022,2200245437,500.00,,Site Works,,,,,,No
The Royal Borough of Kensington and Chelsea,RBKC,,Statutory Year-End Adjustments,Statutory Year-End Adjustments,,Lawtech Group Ltd,1273996,,,,05/05/2022,2200244495,"395,607.98",,Payments to main contractor,,,,,,No
The Royal Borough of Kensington and Chelsea,RBKC,,Statutory Year-End Adjustments,Statutory Year-End Adjustments,,Lawtech Group Ltd,1273996,,,,08/06/2022,2200251000,"346,815.34",,Payments to main contractor,,,,,,No
The Royal Borough of Kensington and Chelsea,RBKC,,Statutory Year-End Adjustments,Statutory Year-End Adjustments,,Redact Details,1231389,,,,24/06/2022,2200254065,"6,905.00",,Payments to main contractor,,,,,,No
The Royal Borough of Kensington and Chelsea,RBKC,,Statutory Year-End Adjustments,Statutory Year-End Adjustments,,Lend Lease Consulting (Emea) Ltd ,1234899,,,,29/04/2022,2200243578,"1,000.00",,Payments to sub contractor,,,,,,No
The Royal Borough of Kensington and Chelsea,RBKC,,Statutory Year-End Adjustments,Statutory Year-End Adjustments,,Lend Lease Consulting (Emea) Ltd ,1234899,,,,31/05/2022,2200249683,"1,000.00",,Payments to sub contractor,,,,,,No
The Royal Borough of Kensington and Chelsea,RBKC,,Statutory Year-End Adjustments,Statutory Year-End Adjustments,,Liberty Adaptations Ltd,1277725,,,,04/04/2022,2200238372,"9,440.00",,Payments to main contractor,,,,,,No
The Royal Borough of Kensington and Chelsea,RBKC,,Statutory Year-End Adjustments,Statutory Year-End Adjustments,,Liberty Adaptations Ltd,1277725,,,,07/04/2022,2200239297,"3,780.00",,Payments to main contractor,,,,,,No
The Royal Borough of Kensington and Chelsea,RBKC,,Statutory Year-End Adjustments,Statutory Year-End Adjustments,,London Fire Solutions LLP ,1231392,,,,23/06/2022,2200253809,"8,526.74",,Site Works,,,,,,No
The Royal Borough of Kensington and Chelsea,RBKC,,Statutory Year-End Adjustments,Statutory Year-End Adjustments,,London Fire Solutions LLP ,1231392,,,,24/06/2022,2200254071,"27,365.00",,Site Works,,,,,,No
The Royal Borough of Kensington and Chelsea,RBKC,,Statutory Year-End Adjustments,Statutory Year-End Adjustments,,London Fire Solutions LLP ,1231392,,,,27/06/2022,2200254539,"16,830.40",,Site Works,,,,,,No
The Royal Borough of Kensington and Chelsea,RBKC,,Statutory Year-End Adjustments,Statutory Year-End Adjustments,,M&J Group (Construction & Roofing),1286591,,,,09/05/2022,2200245216,"38,334.51",,Romanse Expenses,,,,,,No
The Royal Borough of Kensington and Chelsea,RBKC,,Statutory Year-End Adjustments,Statutory Year-End Adjustments,,M&J Group (Construction & Roofing),1286591,,,,08/06/2022,2200250721,"18,805.55",,Romanse Expenses,,,,,,No
The Royal Borough of Kensington and Chelsea,RBKC,,Statutory Year-End Adjustments,Statutory Year-End Adjustments,,MDA Consulting Limited ,1234989,,,,01/04/2022,2200238955,880.00,,,,,,,,No
The Royal Borough of Kensington and Chelsea,RBKC,,Statutory Year-End Adjustments,Statutory Year-End Adjustments,,MDA Consulting Limited ,1234989,,,,11/04/2022,2200240109,660.00,,Other Consultants,,,,,,No
The Royal Borough of Kensington and Chelsea,RBKC,,Statutory Year-End Adjustments,Statutory Year-End Adjustments,,MDA Consulting Limited ,1234989,,,,28/04/2022,2200243403,"1,500.00",,Payments to sub contractor,,,,,,No
The Royal Borough of Kensington and Chelsea,RBKC,,Statutory Year-End Adjustments,Statutory Year-End Adjustments,,MDA Consulting Limited ,1234989,,,,28/04/2022,2200243404,"1,000.00",,Payments to main contractor,,,,,,No
The Royal Borough of Kensington and Chelsea,RBKC,,Statutory Year-End Adjustments,Statutory Year-End Adjustments,,MDA Consulting Limited ,1234989,,,,06/05/2022,2200244782,660.00,,Site Works,,,,,,No
The Royal Borough of Kensington and Chelsea,RBKC,,Statutory Year-End Adjustments,Statutory Year-End Adjustments,,MDA Consulting Limited ,1234989,,,,09/05/2022,2200245093,840.00,,Other Consultants,,,,,,No
The Royal Borough of Kensington and Chelsea,RBKC,,Statutory Year-End Adjustments,Statutory Year-End Adjustments,,MDA Consulting Limited ,1234989,,,,30/05/2022,2200249410,600.00,,Payments to main contractor,,,,,,No
The Royal Borough of Kensington and Chelsea,RBKC,,Statutory Year-End Adjustments,Statutory Year-End Adjustments,,MDA Consulting Limited ,1234989,,,,30/05/2022,2200249411,600.00,,Payments to main contractor,,,,,,No
The Royal Borough of Kensington and Chelsea,RBKC,,Statutory Year-End Adjustments,Statutory Year-End Adjustments,,MDA Consulting Limited ,1234989,,,,30/05/2022,2200249454,600.00,,Payments to main contractor,,,,,,No
The Royal Borough of Kensington and Chelsea,RBKC,,Statutory Year-End Adjustments,Statutory Year-End Adjustments,,MDA Consulting Limited ,1234989,,,,23/06/2022,2200253821,"1,120.00",,Other Consultants,,,,,,No
The Royal Borough of Kensington and Chelsea,RBKC,,Statutory Year-End Adjustments,Statutory Year-End Adjustments,,MDA Consulting Limited ,1234989,,,,28/06/2022,2200254730,"1,120.00",,Other Consultants,,,,,,No
The Royal Borough of Kensington and Chelsea,RBKC,,Statutory Year-End Adjustments,Statutory Year-End Adjustments,,ME Construction Limited,1278687,,,,13/05/2022,2200246435,"29,260.53",,Planned Maintenance (CM),,,,,,No
The Royal Borough of Kensington and Chelsea,RBKC,,Statutory Year-End Adjustments,Statutory Year-End Adjustments,,ME Construction Limited,1278687,,,,15/06/2022,2200252329,"113,542.76",,Planned Maintenance (CM),,,,,,No
The Royal Borough of Kensington and Chelsea,RBKC,,Statutory Year-End Adjustments,Statutory Year-End Adjustments,,MEC London Ltd ,1231398,,,,12/04/2022,2200240700,"32,890.00",,Planned Maintenance (CM),,,,,,No
The Royal Borough of Kensington and Chelsea,RBKC,,Statutory Year-End Adjustments,Statutory Year-End Adjustments,,MEC London Ltd ,1231398,,,,27/04/2022,2200243007,"2,250.00",,Planned Maintenance (CM),,,,,,No
The Royal Borough of Kensington and Chelsea,RBKC,,Statutory Year-End Adjustments,Statutory Year-End Adjustments,,MIW Office Solutions Ltd,1288027,,,,21/06/2022,2200253423,"5,289.00",,Site Works,,,,,,No
The Royal Borough of Kensington and Chelsea,RBKC,,Statutory Year-End Adjustments,Statutory Year-End Adjustments,,MMM Architects Ltd,1259041,,,,06/04/2022,2200239119,"1,500.00",,Other Consultants,,,,,,No
The Royal Borough of Kensington and Chelsea,RBKC,,Statutory Year-End Adjustments,Statutory Year-End Adjustments,,MMP Consultancy Ltd,1289790,,,,07/04/2022,2200239559,"2,000.00",,B*Strategic Building Maintenance,,,,,,No
The Royal Borough of Kensington and Chelsea,RBKC,,Statutory Year-End Adjustments,Statutory Year-End Adjustments,,MMP Consultancy Ltd,1289790,,,,07/04/2022,2200239560,"2,000.00",,B*Strategic Building Maintenance,,,,,,No
The Royal Borough of Kensington and Chelsea,RBKC,,Statutory Year-End Adjustments,Statutory Year-End Adjustments,,MMP Consultancy Ltd,1289790,,,,07/04/2022,2200239561,"2,500.00",,B*Strategic Building Maintenance,,,,,,No
The Royal Borough of Kensington and Chelsea,RBKC,,Statutory Year-End Adjustments,Statutory Year-End Adjustments,,MMP Consultancy Ltd,1289790,,,,07/04/2022,2200239562,"2,500.00",,B*Strategic Building Maintenance,,,,,,No
The Royal Borough of Kensington and Chelsea,RBKC,,Statutory Year-End Adjustments,Statutory Year-End Adjustments,,MMP Consultancy Ltd,1289790,,,,07/04/2022,2200239564,"2,500.00",,B*Strategic Building Maintenance,,,,,,No
The Royal Borough of Kensington and Chelsea,RBKC,,Statutory Year-End Adjustments,Statutory Year-End Adjustments,,MMP Consultancy Ltd,1289790,,,,07/04/2022,2200239566,"2,500.00",,B*Strategic Building Maintenance,,,,,,No
The Royal Borough of Kensington and Chelsea,RBKC,,Statutory Year-End Adjustments,Statutory Year-End Adjustments,,MMP Consultancy Ltd,1289790,,,,07/04/2022,2200239568,"2,500.00",,B*Strategic Building Maintenance,,,,,,No
The Royal Borough of Kensington and Chelsea,RBKC,,Statutory Year-End Adjustments,Statutory Year-End Adjustments,,MMP Consultancy Ltd,1289790,,,,07/04/2022,2200239569,"2,500.00",,B*Strategic Building Maintenance,,,,,,No
The Royal Borough of Kensington and Chelsea,RBKC,,Statutory Year-End Adjustments,Statutory Year-End Adjustments,,MMP Consultancy Ltd,1289790,,,,07/04/2022,2200239570,"2,500.00",,B*Strategic Building Maintenance,,,,,,No
The Royal Borough of Kensington and Chelsea,RBKC,,Statutory Year-End Adjustments,Statutory Year-End Adjustments,,MMP Consultancy Ltd,1289790,,,,07/04/2022,2200239571,"2,000.00",,B*Strategic Building Maintenance,,,,,,No
The Royal Borough of Kensington and Chelsea,RBKC,,Statutory Year-End Adjustments,Statutory Year-End Adjustments,,MMP Consultancy Ltd,1289790,,,,07/04/2022,2200239572,"2,500.00",,B*Strategic Building Maintenance,,,,,,No
The Royal Borough of Kensington and Chelsea,RBKC,,Statutory Year-End Adjustments,Statutory Year-End Adjustments,,MMP Consultancy Ltd,1289790,,,,07/04/2022,2200239573,"2,500.00",,B*Strategic Building Maintenance,,,,,,No
The Royal Borough of Kensington and Chelsea,RBKC,,Statutory Year-End Adjustments,Statutory Year-End Adjustments,,MMP Consultancy Ltd,1289790,,,,07/04/2022,2200239574,825.00,,B*Strategic Building Maintenance,,,,,,No
The Royal Borough of Kensington and Chelsea,RBKC,,Statutory Year-End Adjustments,Statutory Year-End Adjustments,,MMP Consultancy Ltd,1289790,,,,07/04/2022,2200239575,825.00,,B*Strategic Building Maintenance,,,,,,No
The Royal Borough of Kensington and Chelsea,RBKC,,Statutory Year-End Adjustments,Statutory Year-End Adjustments,,MMP Consultancy Ltd,1289790,,,,07/04/2022,2200239576,"1,375.00",,B*Strategic Building Maintenance,,,,,,No
The Royal Borough of Kensington and Chelsea,RBKC,,Statutory Year-End Adjustments,Statutory Year-End Adjustments,,MMP Consultancy Ltd,1289790,,,,07/04/2022,2200239579,"1,375.00",,B*Strategic Building Maintenance,,,,,,No
The Royal Borough of Kensington and Chelsea,RBKC,,Statutory Year-End Adjustments,Statutory Year-End Adjustments,,MMP Consultancy Ltd,1289790,,,,07/04/2022,2200239580,"1,375.00",,B*Strategic Building Maintenance,,,,,,No
The Royal Borough of Kensington and Chelsea,RBKC,,Statutory Year-End Adjustments,Statutory Year-End Adjustments,,MMP Consultancy Ltd,1289790,,,,07/04/2022,2200239581,"1,375.00",,B*Strategic Building Maintenance,,,,,,No
The Royal Borough of Kensington and Chelsea,RBKC,,Statutory Year-End Adjustments,Statutory Year-End Adjustments,,MMP Consultancy Ltd,1289790,,,,07/04/2022,2200239583,"1,100.00",,B*Strategic Building Maintenance,,,,,,No
The Royal Borough of Kensington and Chelsea,RBKC,,Statutory Year-End Adjustments,Statutory Year-End Adjustments,,MMP Consultancy Ltd,1289790,,,,07/04/2022,2200239585,"1,375.00",,B*Strategic Building Maintenance,,,,,,No
The Royal Borough of Kensington and Chelsea,RBKC,,Statutory Year-End Adjustments,Statutory Year-End Adjustments,,MMP Consultancy Ltd,1289790,,,,07/04/2022,2200239586,"1,375.00",,B*Strategic Building Maintenance,,,,,,No
The Royal Borough of Kensington and Chelsea,RBKC,,Statutory Year-End Adjustments,Statutory Year-End Adjustments,,MMP Consultancy Ltd,1289790,,,,07/04/2022,2200239587,"1,375.00",,B*Strategic Building Maintenance,,,,,,No
The Royal Borough of Kensington and Chelsea,RBKC,,Statutory Year-End Adjustments,Statutory Year-End Adjustments,,MMP Consultancy Ltd,1289790,,,,07/04/2022,2200239603,"2,582.00",,B*Strategic Building Maintenance,,,,,,No
The Royal Borough of Kensington and Chelsea,RBKC,,Statutory Year-End Adjustments,Statutory Year-End Adjustments,,MMP Consultancy Ltd,1289790,,,,07/04/2022,2200239604,"2,582.00",,B*Strategic Building Maintenance,,,,,,No
The Royal Borough of Kensington and Chelsea,RBKC,,Statutory Year-End Adjustments,Statutory Year-End Adjustments,,MMP Consultancy Ltd,1289790,,,,19/04/2022,2200241368,"1,420.10",,B*Strategic Building Maintenance,,,,,,No
The Royal Borough of Kensington and Chelsea,RBKC,,Statutory Year-End Adjustments,Statutory Year-End Adjustments,,MMP Consultancy Ltd,1289790,,,,26/04/2022,2200242793,"1,136.08",,B*Strategic Building Maintenance,,,,,,No
The Royal Borough of Kensington and Chelsea,RBKC,,Statutory Year-End Adjustments,Statutory Year-End Adjustments,,MMP Consultancy Ltd,1289790,,,,03/05/2022,2200243890,"2,582.00",,B*Strategic Building Maintenance,,,,,,No
The Royal Borough of Kensington and Chelsea,RBKC,,Statutory Year-End Adjustments,Statutory Year-End Adjustments,,MMP Consultancy Ltd,1289790,,,,03/05/2022,2200243891,"2,065.60",,B*Strategic Building Maintenance,,,,,,No
The Royal Borough of Kensington and Chelsea,RBKC,,Statutory Year-End Adjustments,Statutory Year-End Adjustments,,MMP Consultancy Ltd,1289790,,,,10/05/2022,2200245608,"1,420.10",,B*Strategic Building Maintenance,,,,,,No
The Royal Borough of Kensington and Chelsea,RBKC,,Statutory Year-End Adjustments,Statutory Year-End Adjustments,,MMP Consultancy Ltd,1289790,,,,10/05/2022,2200245609,"1,549.20",,B*Strategic Building Maintenance,,,,,,No
The Royal Borough of Kensington and Chelsea,RBKC,,Statutory Year-End Adjustments,Statutory Year-End Adjustments,,MMP Consultancy Ltd,1289790,,,,12/05/2022,2200246009,"1,549.20",,B*Strategic Building Maintenance,,,,,,No
The Royal Borough of Kensington and Chelsea,RBKC,,Statutory Year-End Adjustments,Statutory Year-End Adjustments,,MMP Consultancy Ltd,1289790,,,,19/05/2022,2200247786,"1,420.10",,B*Strategic Building Maintenance,,,,,,No
The Royal Borough of Kensington and Chelsea,RBKC,,Statutory Year-End Adjustments,Statutory Year-End Adjustments,,MMP Consultancy Ltd,1289790,,,,20/05/2022,2200248063,"2,586.50",,B*Strategic Building Maintenance,,,,,,No
The Royal Borough of Kensington and Chelsea,RBKC,,Statutory Year-End Adjustments,Statutory Year-End Adjustments,,MMP Consultancy Ltd,1289790,,,,20/05/2022,2200248064,"1,136.08",,B*Strategic Building Maintenance,,,,,,No
The Royal Borough of Kensington and Chelsea,RBKC,,Statutory Year-End Adjustments,Statutory Year-End Adjustments,,MMP Consultancy Ltd,1289790,,,,27/05/2022,2200249185,"2,065.60",,B*Strategic Building Maintenance,,,,,,No
The Royal Borough of Kensington and Chelsea,RBKC,,Statutory Year-End Adjustments,Statutory Year-End Adjustments,,MMP Consultancy Ltd,1289790,,,,27/05/2022,2200249186,"1,420.10",,B*Strategic Building Maintenance,,,,,,No
The Royal Borough of Kensington and Chelsea,RBKC,,Statutory Year-End Adjustments,Statutory Year-End Adjustments,,MMP Consultancy Ltd,1289790,,,,27/05/2022,2200249187,"2,065.60",,B*Strategic Building Maintenance,,,,,,No
The Royal Borough of Kensington and Chelsea,RBKC,,Statutory Year-End Adjustments,Statutory Year-End Adjustments,,MMP Consultancy Ltd,1289790,,,,08/06/2022,2200250992,"1,136.08",,B*Strategic Building Maintenance,,,,,,No
The Royal Borough of Kensington and Chelsea,RBKC,,Statutory Year-End Adjustments,Statutory Year-End Adjustments,,MMP Consultancy Ltd,1289790,,,,08/06/2022,2200251016,852.06,,B*Strategic Building Maintenance,,,,,,No
The Royal Borough of Kensington and Chelsea,RBKC,,Statutory Year-End Adjustments,Statutory Year-End Adjustments,,MMP Consultancy Ltd,1289790,,,,16/06/2022,2200252743,"2,582.00",,B*Strategic Building Maintenance,,,,,,No
The Royal Borough of Kensington and Chelsea,RBKC,,Statutory Year-End Adjustments,Statutory Year-End Adjustments,,MMP Consultancy Ltd,1289790,,,,16/06/2022,2200252744,710.05,,B*Strategic Building Maintenance,,,,,,No
The Royal Borough of Kensington and Chelsea,RBKC,,Statutory Year-End Adjustments,Statutory Year-End Adjustments,,MMP Consultancy Ltd,1289790,,,,22/06/2022,2200253623,"1,549.20",,B*Strategic Building Maintenance,,,,,,No
The Royal Borough of Kensington and Chelsea,RBKC,,Statutory Year-End Adjustments,Statutory Year-End Adjustments,,MMP Consultancy Ltd,1289790,,,,22/06/2022,2200253636,"1,420.10",,B*Strategic Building Maintenance,,,,,,No
The Royal Borough of Kensington and Chelsea,RBKC,,Statutory Year-End Adjustments,Statutory Year-End Adjustments,,MMP Consultancy Ltd,1289790,,,,29/06/2022,2200254934,"2,582.00",,B*Strategic Building Maintenance,,,,,,No
The Royal Borough of Kensington and Chelsea,RBKC,,Statutory Year-End Adjustments,Statutory Year-End Adjustments,,MMP Consultancy Ltd,1289790,,,,29/06/2022,2200254935,"1,420.10",,B*Strategic Building Maintenance,,,,,,No
The Royal Borough of Kensington and Chelsea,RBKC,,Statutory Year-End Adjustments,Statutory Year-End Adjustments,,MRI Software Ltd,1280962,,,,06/04/2022,2200238941,"32,940.00",,Computer Software,,,,,,No
The Royal Borough of Kensington and Chelsea,RBKC,,Statutory Year-End Adjustments,Statutory Year-End Adjustments,,Mace Limited ,1230643,,,,04/04/2022,2200238349,"255,729.80",,Payments to main contractor,,,,,,No
The Royal Borough of Kensington and Chelsea,RBKC,,Statutory Year-End Adjustments,Statutory Year-End Adjustments,,Mace Limited ,1230643,,,,11/05/2022,2200245711,"39,373.42",,Payments to main contractor,,,,,,No
The Royal Borough of Kensington and Chelsea,RBKC,,Statutory Year-End Adjustments,Statutory Year-End Adjustments,,Maracom Limited ,1255577,,,,13/04/2022,2200240789,"8,173.00",,Planned Maintenance (CM),,,,,,No
The Royal Borough of Kensington and Chelsea,RBKC,,Statutory Year-End Adjustments,Statutory Year-End Adjustments,,Maracom Limited ,1255577,,,,16/06/2022,2200252505,"1,828.00",,Site Works,,,,,,No
The Royal Borough of Kensington and Chelsea,RBKC,,Statutory Year-End Adjustments,Statutory Year-End Adjustments,,Maxilla City Cic,1271198,,,,23/06/2022,2200253793,"71,448.00",,Other Consultants,,,,,,No
The Royal Borough of Kensington and Chelsea,RBKC,,Statutory Year-End Adjustments,Statutory Year-End Adjustments,,Mayer Brown Limited,1290535,,,,11/05/2022,2200245744,"1,237.50",,Site Works,,,,,,No
The Royal Borough of Kensington and Chelsea,RBKC,,Statutory Year-End Adjustments,Statutory Year-End Adjustments,,Mayer Brown Limited,1290535,,,,01/06/2022,2200249941,"2,193.75",,Site Works,,,,,,No
The Royal Borough of Kensington and Chelsea,RBKC,,Statutory Year-End Adjustments,Statutory Year-End Adjustments,,Mesh Lighting Ltd,1291007,,,,01/06/2022,2200250017,904.34,,Romanse Expenses,,,,,,No
The Royal Borough of Kensington and Chelsea,RBKC,,Statutory Year-End Adjustments,Statutory Year-End Adjustments,,Michael Dyson Associates Ltd ,1253270,,,,13/05/2022,2200246362,"9,826.13",,,,,,,,No
The Royal Borough of Kensington and Chelsea,RBKC,,Statutory Year-End Adjustments,Statutory Year-End Adjustments,,Milestone Contracting Limited,1289868,,,,11/05/2022,2200245776,"31,188.21",,Payments to main contractor,,,,,,No
The Royal Borough of Kensington and Chelsea,RBKC,,Statutory Year-End Adjustments,Statutory Year-End Adjustments,,Milestone Contracting Limited,1289868,,,,06/06/2022,2200250358,"49,087.26",,Payments to main contractor,,,,,,No
The Royal Borough of Kensington and Chelsea,RBKC,,Statutory Year-End Adjustments,Statutory Year-End Adjustments,,Millwood Servicing Ltd ,1253373,,,,09/05/2022,2200245279,"11,722.90",,Payments to main contractor,,,,,,No
The Royal Borough of Kensington and Chelsea,RBKC,,Statutory Year-End Adjustments,Statutory Year-End Adjustments,,Millwood Servicing Ltd ,1253373,,,,09/06/2022,2200251084,836.00,,Site Works,,,,,,No
The Royal Borough of Kensington and Chelsea,RBKC,,Statutory Year-End Adjustments,Statutory Year-End Adjustments,,Mitie Property Services (UK) Ltd ,1230701,,,,07/04/2022,2200239442,"45,197.26",,Planned Maintenance (CM),,,,,,No
The Royal Borough of Kensington and Chelsea,RBKC,,Statutory Year-End Adjustments,Statutory Year-End Adjustments,,Mitie Property Services (UK) Ltd ,1230701,,,,08/04/2022,2200239874,"26,143.26",,Payments to main contractor,,,,,,No
The Royal Borough of Kensington and Chelsea,RBKC,,Statutory Year-End Adjustments,Statutory Year-End Adjustments,,Mitie Property Services (UK) Ltd ,1230701,,,,11/04/2022,2200239933,"31,435.58",,Payments to main contractor,,,,,,No
The Royal Borough of Kensington and Chelsea,RBKC,,Statutory Year-End Adjustments,Statutory Year-End Adjustments,,Mitie Property Services (UK) Ltd ,1230701,,,,09/05/2022,2200245042,"119,321.64",,Payments to main contractor,,,,,,No
The Royal Borough of Kensington and Chelsea,RBKC,,Statutory Year-End Adjustments,Statutory Year-End Adjustments,,Mitie Property Services (UK) Ltd ,1230701,,,,09/05/2022,2200245043,"65,765.33",,Payments to main contractor,,,,,,No
The Royal Borough of Kensington and Chelsea,RBKC,,Statutory Year-End Adjustments,Statutory Year-End Adjustments,,Mitie Property Services (UK) Ltd ,1230701,,,,23/05/2022,2200248238,"38,362.20",,Planned Maintenance (CM),,,,,,No
The Royal Borough of Kensington and Chelsea,RBKC,,Statutory Year-End Adjustments,Statutory Year-End Adjustments,,Montagu Evans LLP ,1230713,,,,01/04/2022,2200238115,"2,000.00",,Other Consultants,,,,,,No
The Royal Borough of Kensington and Chelsea,RBKC,,Statutory Year-End Adjustments,Statutory Year-End Adjustments,,Moorhead Richardson Ltd,1276460,,,,21/04/2022,2200241944,"2,395.00",,Other Consultants,,,,,,No
The Royal Borough of Kensington and Chelsea,RBKC,,Statutory Year-End Adjustments,Statutory Year-End Adjustments,,Morgan Sindall Construction,1260362,,,,09/05/2022,2200245120,"208,440.11",,Payments to main contractor,,,,,,No
The Royal Borough of Kensington and Chelsea,RBKC,,Statutory Year-End Adjustments,Statutory Year-End Adjustments,,Morgan Sindall Construction,1260362,,,,12/05/2022,2200246210,"134,784.90",,Payments to main contractor,,,,,,No
The Royal Borough of Kensington and Chelsea,RBKC,,Statutory Year-End Adjustments,Statutory Year-End Adjustments,,Morgan Sindall Construction,1260362,,,,31/05/2022,2200249715,"314,565.64",,Payments to main contractor,,,,,,No
The Royal Borough of Kensington and Chelsea,RBKC,,Statutory Year-End Adjustments,Statutory Year-End Adjustments,,Morgan Sindall Construction,1260362,,,,08/06/2022,2200251024,"592,579.82",,Payments to main contractor,,,,,,No
The Royal Borough of Kensington and Chelsea,RBKC,,Statutory Year-End Adjustments,Statutory Year-End Adjustments,,Morgan Sindall Construction,1260362,,,,27/06/2022,2200254536,"664,921.95",,Payments to main contractor,,,,,,No
The Royal Borough of Kensington and Chelsea,RBKC,,Statutory Year-End Adjustments,Statutory Year-End Adjustments,,Mulalley & Company Ltd ,1231403,,,,01/04/2022,2200239199,"31,908.46",,Payments to main contractor,,,,,,No
The Royal Borough of Kensington and Chelsea,RBKC,,Statutory Year-End Adjustments,Statutory Year-End Adjustments,,Mulalley & Company Ltd ,1231403,,,,27/04/2022,2200243090,"19,092.43",,Payments to main contractor,,,,,,No
The Royal Borough of Kensington and Chelsea,RBKC,,Statutory Year-End Adjustments,Statutory Year-End Adjustments,,Mulalley & Company Ltd ,1231403,,,,04/05/2022,2200244293,"65,049.29",,Payments to main contractor,,,,,,No
The Royal Borough of Kensington and Chelsea,RBKC,,Statutory Year-End Adjustments,Statutory Year-End Adjustments,,Mulalley & Company Ltd ,1231403,,,,05/05/2022,2200244581,"35,228.81",,Payments to main contractor,,,,,,No
The Royal Borough of Kensington and Chelsea,RBKC,,Statutory Year-End Adjustments,Statutory Year-End Adjustments,,Mulalley & Company Ltd ,1231403,,,,24/05/2022,2200248567,"192,767.19",,Payments to main contractor,,,,,,No
The Royal Borough of Kensington and Chelsea,RBKC,,Statutory Year-End Adjustments,Statutory Year-End Adjustments,,Mulalley & Company Ltd ,1231403,,,,01/06/2022,2200249971,"128,231.21",,Payments to main contractor,,,,,,No
The Royal Borough of Kensington and Chelsea,RBKC,,Statutory Year-End Adjustments,Statutory Year-End Adjustments,,Mulalley & Company Ltd ,1231403,,,,01/06/2022,2200249974,"77,462.31",,Payments to main contractor,,,,,,No
The Royal Borough of Kensington and Chelsea,RBKC,,Statutory Year-End Adjustments,Statutory Year-End Adjustments,,Mulalley & Company Ltd ,1231403,,,,09/06/2022,2200251362,"42,396.43",,Payments to main contractor,,,,,,No
The Royal Borough of Kensington and Chelsea,RBKC,,Statutory Year-End Adjustments,Statutory Year-End Adjustments,,Mulalley & Company Ltd ,1231403,,,,21/06/2022,2200253428,"266,287.05",,Payments to main contractor,,,,,,No
The Royal Borough of Kensington and Chelsea,RBKC,,Statutory Year-End Adjustments,Statutory Year-End Adjustments,,T/A SVM Associates,1230750,,,,20/04/2022,2200241650,"4,500.00",,Planned Maintenance (CM),,,,,,No
The Royal Borough of Kensington and Chelsea,RBKC,,Statutory Year-End Adjustments,Statutory Year-End Adjustments,,T/A SVM Associates,1230750,,,,20/05/2022,2200247896,"1,000.00",,Planned Maintenance (CM),,,,,,No
The Royal Borough of Kensington and Chelsea,RBKC,,Statutory Year-End Adjustments,Statutory Year-End Adjustments,,T/A SVM Associates,1230750,,,,30/05/2022,2200249432,"1,900.00",,Planned Maintenance (CM),,,,,,No
The Royal Borough of Kensington and Chelsea,RBKC,,Statutory Year-End Adjustments,Statutory Year-End Adjustments,,Nathaniel Lichfields and Partners,1265397,,,,14/04/2022,2200241079,525.00,,B*HCC - Planning Officer,,,,,,No
The Royal Borough of Kensington and Chelsea,RBKC,,Statutory Year-End Adjustments,Statutory Year-End Adjustments,,Nathaniel Lichfields and Partners,1265397,,,,06/06/2022,2200250179,"5,015.30",,Payments to main contractor,,,,,,No
The Royal Borough of Kensington and Chelsea,RBKC,,Statutory Year-End Adjustments,Statutory Year-End Adjustments,,Nathaniel Lichfields and Partners,1265397,,,,09/06/2022,2200251077,"3,375.00",,B*HCC - Planning Officer,,,,,,No
The Royal Borough of Kensington and Chelsea,RBKC,,Statutory Year-End Adjustments,Statutory Year-End Adjustments,,Network Rail Infrastructure Ltd ,1231408,,,,30/05/2022,2200249404,"25,300.00",,Site Works,,,,,,No
The Royal Borough of Kensington and Chelsea,RBKC,,Statutory Year-End Adjustments,Statutory Year-End Adjustments,,Norton Rose Fulbright LLP ,1235073,,,,07/04/2022,2200239399,"1,360.11",,Legal Fees & expenses,,,,,,No
The Royal Borough of Kensington and Chelsea,RBKC,,Statutory Year-End Adjustments,Statutory Year-End Adjustments,,T/A Manestream,1230948,,,,12/05/2022,2200245960,900.00,,,,,,,,No
The Royal Borough of Kensington and Chelsea,RBKC,,Statutory Year-End Adjustments,Statutory Year-End Adjustments,,Oakland Building Services Ltd ,1231410,,,,08/06/2022,2200251023,"53,004.80",,Other Consultants,,,,,,No
The Royal Borough of Kensington and Chelsea,RBKC,,Statutory Year-End Adjustments,Statutory Year-End Adjustments,,Openview Security Solutions Ltd ,1231414,,,,08/04/2022,2200239738,"12,965.00",,Site Works,,,,,,No
The Royal Borough of Kensington and Chelsea,RBKC,,Statutory Year-End Adjustments,Statutory Year-End Adjustments,,Openview Security Solutions Ltd ,1231414,,,,08/04/2022,2200239739,"2,979.00",,Site Works,,,,,,No
The Royal Borough of Kensington and Chelsea,RBKC,,Statutory Year-End Adjustments,Statutory Year-End Adjustments,,Openview Security Solutions Ltd ,1231414,,,,09/06/2022,2200251079,"2,959.00",,Site Works,,,,,,No
The Royal Borough of Kensington and Chelsea,RBKC,,Statutory Year-End Adjustments,Statutory Year-End Adjustments,,Oracle Security Services Ltd ,1258033,,,,13/04/2022,2200240894,"2,663.65",,,,,,,,No
The Royal Borough of Kensington and Chelsea,RBKC,,Statutory Year-End Adjustments,Statutory Year-End Adjustments,,Oracle Security Services Ltd ,1258033,,,,13/04/2022,2200240910,"2,679.60",,,,,,,,No
The Royal Borough of Kensington and Chelsea,RBKC,,Statutory Year-End Adjustments,Statutory Year-End Adjustments,,Oracle Security Services Ltd ,1258033,,,,25/04/2022,2200242418,"2,679.60",,,,,,,,No
The Royal Borough of Kensington and Chelsea,RBKC,,Statutory Year-End Adjustments,Statutory Year-End Adjustments,,Oracle Security Services Ltd ,1258033,,,,25/04/2022,2200242420,"3,062.40",,,,,,,,No
The Royal Borough of Kensington and Chelsea,RBKC,,Statutory Year-End Adjustments,Statutory Year-End Adjustments,,Oracle Security Services Ltd ,1258033,,,,29/04/2022,2200243646,"3,173.76",,,,,,,,No
The Royal Borough of Kensington and Chelsea,RBKC,,Statutory Year-End Adjustments,Statutory Year-End Adjustments,,Oracle Security Services Ltd ,1258033,,,,16/05/2022,2200246638,"2,777.04",,,,,,,,No
The Royal Borough of Kensington and Chelsea,RBKC,,Statutory Year-End Adjustments,Statutory Year-End Adjustments,,Oracle Security Services Ltd ,1258033,,,,01/06/2022,2200249972,"2,777.04",,,,,,,,No
The Royal Borough of Kensington and Chelsea,RBKC,,Statutory Year-End Adjustments,Statutory Year-End Adjustments,,Oracle Security Services Ltd ,1258033,,,,01/06/2022,2200249981,"2,810.10",,,,,,,,No
The Royal Borough of Kensington and Chelsea,RBKC,,Statutory Year-End Adjustments,Statutory Year-End Adjustments,,Osborn Associates Ltd,1262963,,,,29/04/2022,2200243626,"25,000.00",,Other Consultants,,,,,,No
The Royal Borough of Kensington and Chelsea,RBKC,,Statutory Year-End Adjustments,Statutory Year-End Adjustments,,Osborn Associates Ltd,1262963,,,,16/05/2022,2200246693,"3,750.00",,,,,,,,No
The Royal Borough of Kensington and Chelsea,RBKC,,Statutory Year-End Adjustments,Statutory Year-End Adjustments,,Osborn Associates Ltd,1262963,,,,08/06/2022,2200251021,"2,040.00",,Other Consultants,,,,,,No
The Royal Borough of Kensington and Chelsea,RBKC,,Statutory Year-End Adjustments,Statutory Year-End Adjustments,,Osborn Associates Ltd,1262963,,,,23/06/2022,2200253788,750.00,,B*Surveyors,,,,,,No
The Royal Borough of Kensington and Chelsea,RBKC,,Statutory Year-End Adjustments,Statutory Year-End Adjustments,,Osborn Associates Ltd,1262963,,,,29/06/2022,2200254897,"5,250.00",,Other Consultants,,,,,,No
The Royal Borough of Kensington and Chelsea,RBKC,,Statutory Year-End Adjustments,Statutory Year-End Adjustments,,Osborne Thomas Ltd,1261917,,,,08/04/2022,2200239698,"10,301.03",,,,,,,,No
The Royal Borough of Kensington and Chelsea,RBKC,,Statutory Year-End Adjustments,Statutory Year-End Adjustments,,Osborne Thomas Ltd,1261917,,,,08/04/2022,2200239700,"10,301.03",,,,,,,,No
The Royal Borough of Kensington and Chelsea,RBKC,,Statutory Year-End Adjustments,Statutory Year-End Adjustments,,Osborne Thomas Ltd,1261917,,,,09/05/2022,2200245115,"8,919.15",,,,,,,,No
The Royal Borough of Kensington and Chelsea,RBKC,,Statutory Year-End Adjustments,Statutory Year-End Adjustments,,Osborne Thomas Ltd,1261917,,,,09/05/2022,2200245119,"8,919.15",,,,,,,,No
The Royal Borough of Kensington and Chelsea,RBKC,,Statutory Year-End Adjustments,Statutory Year-End Adjustments,,Osborne Thomas Ltd,1261917,,,,22/06/2022,2200253517,"13,374.37",,,,,,,,No
The Royal Borough of Kensington and Chelsea,RBKC,,Statutory Year-End Adjustments,Statutory Year-End Adjustments,,Osborne Thomas Ltd,1261917,,,,22/06/2022,2200253518,"2,941.13",,,,,,,,No
The Royal Borough of Kensington and Chelsea,RBKC,,Statutory Year-End Adjustments,Statutory Year-End Adjustments,,Oxford Gardens Primary School ,1232822,,,,07/06/2022,2200250605,"54,674.74",,Accommodation,,,,,,No
The Royal Borough of Kensington and Chelsea,RBKC,,Statutory Year-End Adjustments,Statutory Year-End Adjustments,,PAYE Stonework & Restoration Ltd,1257732,,,,09/06/2022,2200251203,"7,165.12",,Planned Maintenance (CM),,,,,,No
The Royal Borough of Kensington and Chelsea,RBKC,,Statutory Year-End Adjustments,Statutory Year-End Adjustments,,PAYE Stonework & Restoration Ltd,1257732,,,,09/06/2022,2200251244,"1,930.38",,Planned Maintenance (CM),,,,,,No
The Royal Borough of Kensington and Chelsea,RBKC,,Statutory Year-End Adjustments,Statutory Year-End Adjustments,,PJC Consultancy Ltd,1281022,,,,16/05/2022,2200246636,948.00,,Other Consultants,,,,,,No
The Royal Borough of Kensington and Chelsea,RBKC,,Statutory Year-End Adjustments,Statutory Year-End Adjustments,,Paragon Building Consultancy Ltd ,1230988,,,,09/05/2022,2200245269,"2,450.00",,Site Works,,,,,,No
The Royal Borough of Kensington and Chelsea,RBKC,,Statutory Year-End Adjustments,Statutory Year-End Adjustments,,Paragon Building Consultancy Ltd ,1230988,,,,17/06/2022,2200252765,"1,950.00",,Acquisition of Land & Buildings,,,,,,No
The Royal Borough of Kensington and Chelsea,RBKC,,Statutory Year-End Adjustments,Statutory Year-End Adjustments,,Perega Limited,1264035,,,,01/04/2022,2200240862,935.00,,Planned Maintenance (CM),,,,,,No
The Royal Borough of Kensington and Chelsea,RBKC,,Statutory Year-End Adjustments,Statutory Year-End Adjustments,,Perfect Circle JV Ltd ,1254748,,,,04/05/2022,2200244102,"15,592.00",,Payments to main contractor,,,,,,No
The Royal Borough of Kensington and Chelsea,RBKC,,Statutory Year-End Adjustments,Statutory Year-End Adjustments,,Perfect Circle JV Ltd ,1254748,,,,12/05/2022,2200245952,"11,789.00",,Payments to main contractor,,,,,,No
The Royal Borough of Kensington and Chelsea,RBKC,,Statutory Year-End Adjustments,Statutory Year-End Adjustments,,Perfect Circle JV Ltd ,1254748,,,,30/05/2022,2200249418,"6,000.00",,Payments to main contractor,,,,,,No
The Royal Borough of Kensington and Chelsea,RBKC,,Statutory Year-End Adjustments,Statutory Year-End Adjustments,,Pierra Ltd,1273042,,,,11/05/2022,2200245860,"1,761.00",,Romanse Expenses,,,,,,No
The Royal Borough of Kensington and Chelsea,RBKC,,Statutory Year-End Adjustments,Statutory Year-End Adjustments,,PingLockker LTD ,1257077,,,,20/05/2022,2200248024,"6,000.00",,Computer Software,,,,,,No
The Royal Borough of Kensington and Chelsea,RBKC,,Statutory Year-End Adjustments,Statutory Year-End Adjustments,,Pinsent Masons LLP ,1235160,,,,27/04/2022,2200243096,"2,500.00",,Legal Fees & expenses,,,,,,No
The Royal Borough of Kensington and Chelsea,RBKC,,Statutory Year-End Adjustments,Statutory Year-End Adjustments,,Pinsent Masons LLP ,1235160,,,,23/05/2022,2200248158,"3,162.50",,Legal Fees & expenses,,,,,,No
The Royal Borough of Kensington and Chelsea,RBKC,,Statutory Year-End Adjustments,Statutory Year-End Adjustments,,Pinsent Masons LLP ,1235160,,,,24/05/2022,2200248511,"5,053.50",,Legal Fees & expenses,,,,,,No
The Royal Borough of Kensington and Chelsea,RBKC,,Statutory Year-End Adjustments,Statutory Year-End Adjustments,,Pinsent Masons LLP ,1235160,,,,26/05/2022,2200248956,"3,395.00",,Legal Fees & expenses,,,,,,No
The Royal Borough of Kensington and Chelsea,RBKC,,Statutory Year-End Adjustments,Statutory Year-End Adjustments,,Place Careers Ltd,1286486,,,,04/04/2022,2200238312,"2,303.41",,B*Strategic Building Maintenance,,,,,,No
The Royal Borough of Kensington and Chelsea,RBKC,,Statutory Year-End Adjustments,Statutory Year-End Adjustments,,Place Careers Ltd,1286486,,,,13/04/2022,2200240901,"1,422.06",,B*Strategic Building Maintenance,,,,,,No
The Royal Borough of Kensington and Chelsea,RBKC,,Statutory Year-End Adjustments,Statutory Year-End Adjustments,,Place Careers Ltd,1286486,,,,19/05/2022,2200247741,"2,366.97",,B*Strategic Building Maintenance,,,,,,No
The Royal Borough of Kensington and Chelsea,RBKC,,Statutory Year-End Adjustments,Statutory Year-End Adjustments,,Place Careers Ltd,1286486,,,,01/06/2022,2200250013,"3,633.38",,B*Strategic Building Maintenance,,,,,,No
The Royal Borough of Kensington and Chelsea,RBKC,,Statutory Year-End Adjustments,Statutory Year-End Adjustments,,Point 2 Surveyors,1235179,,,,06/04/2022,2200239125,"1,207.30",,Romanse Expenses,,,,,,No
The Royal Borough of Kensington and Chelsea,RBKC,,Statutory Year-End Adjustments,Statutory Year-End Adjustments,,Point 2 Surveyors,1235179,,,,06/05/2022,2200244743,"1,170.00",,Site Works,,,,,,No
The Royal Borough of Kensington and Chelsea,RBKC,,Statutory Year-End Adjustments,Statutory Year-End Adjustments,,Point 2 Surveyors,1235179,,,,30/05/2022,2200249447,"2,250.00",,Legal Fees & expenses,,,,,,No
The Royal Borough of Kensington and Chelsea,RBKC,,Statutory Year-End Adjustments,Statutory Year-End Adjustments,,Potter Raper Partnership,1235188,,,,28/04/2022,2200243283,"3,999.00",,,,,,,,No
The Royal Borough of Kensington and Chelsea,RBKC,,Statutory Year-End Adjustments,Statutory Year-End Adjustments,,Preferred Access Ramp Systems Ltd,1231420,,,,06/06/2022,2200250430,"4,750.00",,Payments to main contractor,,,,,,No
The Royal Borough of Kensington and Chelsea,RBKC,,Statutory Year-End Adjustments,Statutory Year-End Adjustments,,Price-Rite,1284767,,,,06/06/2022,2200250414,"8,007.00",,Romanse Expenses,,,,,,No
The Royal Borough of Kensington and Chelsea,RBKC,,Statutory Year-End Adjustments,Statutory Year-End Adjustments,,Project Centre ,1235205,,,,06/04/2022,2200239259,"10,260.00",,Payments to main contractor,,,,,,No
The Royal Borough of Kensington and Chelsea,RBKC,,Statutory Year-End Adjustments,Statutory Year-End Adjustments,,Project Centre ,1235205,,,,10/05/2022,2200245351,"15,390.00",,Payments to main contractor,,,,,,No
The Royal Borough of Kensington and Chelsea,RBKC,,Statutory Year-End Adjustments,Statutory Year-End Adjustments,,Project Centre ,1235205,,,,15/05/2022,2200246527,"6,825.00",,Payments to main contractor,,,,,,No
The Royal Borough of Kensington and Chelsea,RBKC,,Statutory Year-End Adjustments,Statutory Year-End Adjustments,,Proun Architects ,1235211,,,,18/05/2022,2200247145,"1,300.00",,Planned Maintenance (CM),,,,,,No
The Royal Borough of Kensington and Chelsea,RBKC,,Statutory Year-End Adjustments,Statutory Year-End Adjustments,,PublicHighway Ltd,1289411,,,,07/04/2022,2200239476,"12,000.00",,Romanse Expenses,,,,,,No
The Royal Borough of Kensington and Chelsea,RBKC,,Statutory Year-End Adjustments,Statutory Year-End Adjustments,,T/A Idverde ,1231423,,,,15/05/2022,2200246525,803.20,,Payments to main contractor,,,,,,No
The Royal Borough of Kensington and Chelsea,RBKC,,Statutory Year-End Adjustments,Statutory Year-End Adjustments,,T/A Idverde ,1231423,,,,15/06/2022,2200252319,520.85,,Other capital equipment,,,,,,No
The Royal Borough of Kensington and Chelsea,RBKC,,Statutory Year-End Adjustments,Statutory Year-End Adjustments,,Quinn London Ltd,1235230,,,,12/04/2022,2200240519,"86,450.00",,Payments to main contractor,,,,,,No
The Royal Borough of Kensington and Chelsea,RBKC,,Statutory Year-End Adjustments,Statutory Year-End Adjustments,,Quinn London Ltd,1235230,,,,19/05/2022,2200247645,"214,500.00",,Payments to main contractor,,,,,,No
The Royal Borough of Kensington and Chelsea,RBKC,,Statutory Year-End Adjustments,Statutory Year-End Adjustments,,Quinn London Ltd,1235230,,,,19/05/2022,2200247667,"2,271.86",,Payments to main contractor,,,,,,No
The Royal Borough of Kensington and Chelsea,RBKC,,Statutory Year-End Adjustments,Statutory Year-End Adjustments,,Quinn London Ltd,1235230,,,,19/05/2022,2200247668,"4,318.90",,Payments to main contractor,,,,,,No
The Royal Borough of Kensington and Chelsea,RBKC,,Statutory Year-End Adjustments,Statutory Year-End Adjustments,,Quinn London Ltd,1235230,,,,23/06/2022,2200253737,"13,692.50",,Payments to main contractor,,,,,,No
The Royal Borough of Kensington and Chelsea,RBKC,,Statutory Year-End Adjustments,Statutory Year-End Adjustments,,Quinn London Ltd,1235230,,,,23/06/2022,2200253738,"10,000.00",,Payments to main contractor,,,,,,No
The Royal Borough of Kensington and Chelsea,RBKC,,Statutory Year-End Adjustments,Statutory Year-End Adjustments,,Quinn Studio Ltd ,1255519,,,,01/04/2022,2200238142,600.00,,Payments to main contractor,,,,,,No
The Royal Borough of Kensington and Chelsea,RBKC,,Statutory Year-End Adjustments,Statutory Year-End Adjustments,,Quinn Studio Ltd ,1255519,,,,03/05/2022,2200243768,"1,370.00",,Payments to main contractor,,,,,,No
The Royal Borough of Kensington and Chelsea,RBKC,,Statutory Year-End Adjustments,Statutory Year-End Adjustments,,Quinn Studio Ltd ,1255519,,,,03/05/2022,2200243769,"1,200.00",,Payments to main contractor,,,,,,No
The Royal Borough of Kensington and Chelsea,RBKC,,Statutory Year-End Adjustments,Statutory Year-End Adjustments,,Quinn Studio Ltd ,1255519,,,,06/06/2022,2200250428,"1,477.70",,Payments to main contractor,,,,,,No
The Royal Borough of Kensington and Chelsea,RBKC,,Statutory Year-End Adjustments,Statutory Year-End Adjustments,,Quinn Studio Ltd ,1255519,,,,06/06/2022,2200250429,"2,568.90",,Payments to main contractor,,,,,,No
The Royal Borough of Kensington and Chelsea,RBKC,,Statutory Year-End Adjustments,Statutory Year-End Adjustments,,Quinn Studio Ltd ,1255519,,,,10/06/2022,2200251411,"2,568.90",,Payments to main contractor,,,,,,No
The Royal Borough of Kensington and Chelsea,RBKC,,Statutory Year-End Adjustments,Statutory Year-End Adjustments,,R & Ma Stewart Ltd ,1235232,,,,26/06/2022,2200254246,"1,255.52",,Electricity provision,,,,,,No
The Royal Borough of Kensington and Chelsea,RBKC,,Statutory Year-End Adjustments,Statutory Year-End Adjustments,,R Benson Property Maintenance,1266216,,,,19/05/2022,2200247820,"1,194.75",,Romanse Expenses,,,,,,No
The Royal Borough of Kensington and Chelsea,RBKC,,Statutory Year-End Adjustments,Statutory Year-End Adjustments,,R Benson Property Maintenance,1266216,,,,15/06/2022,2200252262,"7,347.96",,Romanse Expenses,,,,,,No
The Royal Borough of Kensington and Chelsea,RBKC,,Statutory Year-End Adjustments,Statutory Year-End Adjustments,,RNB ENGINEERING,1256083,,,,26/04/2022,2200242771,795.00,,Site Works,,,,,,No
The Royal Borough of Kensington and Chelsea,RBKC,,Statutory Year-End Adjustments,Statutory Year-End Adjustments,,RNB ENGINEERING,1256083,,,,26/04/2022,2200242772,595.00,,Site Works,,,,,,No
The Royal Borough of Kensington and Chelsea,RBKC,,Statutory Year-End Adjustments,Statutory Year-End Adjustments,,RSK Environment Ltd ,1231296,,,,06/05/2022,2200244819,914.00,,Site Works,,,,,,No
The Royal Borough of Kensington and Chelsea,RBKC,,Statutory Year-End Adjustments,Statutory Year-End Adjustments,,Ramboll UK Ltd,1274051,,,,30/06/2022,2200255147,"12,459.00",,Romanse Expenses,,,,,,No
The Royal Borough of Kensington and Chelsea,RBKC,,Statutory Year-End Adjustments,Statutory Year-End Adjustments,,Resourcing Group ,1235269,,,,01/04/2022,2200238803,"1,030.40",,B*Strategic Building Maintenance,,,,,,No
The Royal Borough of Kensington and Chelsea,RBKC,,Statutory Year-End Adjustments,Statutory Year-End Adjustments,,Resourcing Group ,1235269,,,,01/04/2022,2200238838,"1,030.40",,B*Strategic Building Maintenance,,,,,,No
The Royal Borough of Kensington and Chelsea,RBKC,,Statutory Year-End Adjustments,Statutory Year-End Adjustments,,Resourcing Group ,1235269,,,,01/04/2022,2200238894,"1,428.48",,B*Strategic Building Maintenance,,,,,,No
The Royal Borough of Kensington and Chelsea,RBKC,,Statutory Year-End Adjustments,Statutory Year-End Adjustments,,Resourcing Group ,1235269,,,,19/04/2022,2200241371,"1,030.40",,B*Strategic Building Maintenance,,,,,,No
The Royal Borough of Kensington and Chelsea,RBKC,,Statutory Year-End Adjustments,Statutory Year-End Adjustments,,Resourcing Group ,1235269,,,,19/04/2022,2200241374,"1,428.48",,B*Strategic Building Maintenance,,,,,,No
The Royal Borough of Kensington and Chelsea,RBKC,,Statutory Year-End Adjustments,Statutory Year-End Adjustments,,Resourcing Group ,1235269,,,,26/04/2022,2200242881,824.32,,B*Strategic Building Maintenance,,,,,,No
The Royal Borough of Kensington and Chelsea,RBKC,,Statutory Year-End Adjustments,Statutory Year-End Adjustments,,Resourcing Group ,1235269,,,,26/04/2022,2200242902,"1,428.48",,B*Strategic Building Maintenance,,,,,,No
The Royal Borough of Kensington and Chelsea,RBKC,,Statutory Year-End Adjustments,Statutory Year-End Adjustments,,Resourcing Group ,1235269,,,,26/04/2022,2200242903,952.32,,B*Strategic Building Maintenance,,,,,,No
The Royal Borough of Kensington and Chelsea,RBKC,,Statutory Year-End Adjustments,Statutory Year-End Adjustments,,Resourcing Group ,1235269,,,,26/04/2022,2200242905,"1,030.40",,B*Strategic Building Maintenance,,,,,,No
The Royal Borough of Kensington and Chelsea,RBKC,,Statutory Year-End Adjustments,Statutory Year-End Adjustments,,Resourcing Group ,1235269,,,,03/05/2022,2200243896,824.32,,B*Strategic Building Maintenance,,,,,,No
The Royal Borough of Kensington and Chelsea,RBKC,,Statutory Year-End Adjustments,Statutory Year-End Adjustments,,Resourcing Group ,1235269,,,,10/05/2022,2200245607,"1,190.40",,B*Strategic Building Maintenance,,,,,,No
The Royal Borough of Kensington and Chelsea,RBKC,,Statutory Year-End Adjustments,Statutory Year-End Adjustments,,Resourcing Group ,1235269,,,,10/05/2022,2200245610,"1,428.48",,B*Strategic Building Maintenance,,,,,,No
The Royal Borough of Kensington and Chelsea,RBKC,,Statutory Year-End Adjustments,Statutory Year-End Adjustments,,Resourcing Group ,1235269,,,,10/05/2022,2200245611,"1,030.40",,B*Strategic Building Maintenance,,,,,,No
The Royal Borough of Kensington and Chelsea,RBKC,,Statutory Year-End Adjustments,Statutory Year-End Adjustments,,Resourcing Group ,1235269,,,,19/05/2022,2200247790,952.32,,B*Strategic Building Maintenance,,,,,,No
The Royal Borough of Kensington and Chelsea,RBKC,,Statutory Year-End Adjustments,Statutory Year-End Adjustments,,Resourcing Group ,1235269,,,,20/05/2022,2200248061,824.32,,B*Strategic Building Maintenance,,,,,,No
The Royal Borough of Kensington and Chelsea,RBKC,,Statutory Year-End Adjustments,Statutory Year-End Adjustments,,Resourcing Group ,1235269,,,,24/05/2022,2200248592,"1,428.48",,B*Strategic Building Maintenance,,,,,,No
The Royal Borough of Kensington and Chelsea,RBKC,,Statutory Year-End Adjustments,Statutory Year-End Adjustments,,Resourcing Group ,1235269,,,,27/05/2022,2200249178,"1,030.40",,B*Strategic Building Maintenance,,,,,,No
The Royal Borough of Kensington and Chelsea,RBKC,,Statutory Year-End Adjustments,Statutory Year-End Adjustments,,Resourcing Group ,1235269,,,,10/06/2022,2200251576,"1,428.48",,B*Strategic Building Maintenance,,,,,,No
The Royal Borough of Kensington and Chelsea,RBKC,,Statutory Year-End Adjustments,Statutory Year-End Adjustments,,Resourcing Group ,1235269,,,,10/06/2022,2200251577,"1,030.40",,B*Strategic Building Maintenance,,,,,,No
The Royal Borough of Kensington and Chelsea,RBKC,,Statutory Year-End Adjustments,Statutory Year-End Adjustments,,Resourcing Group ,1235269,,,,10/06/2022,2200251579,"1,428.48",,B*Strategic Building Maintenance,,,,,,No
The Royal Borough of Kensington and Chelsea,RBKC,,Statutory Year-End Adjustments,Statutory Year-End Adjustments,,Resourcing Group ,1235269,,,,16/06/2022,2200252741,714.24,,B*Strategic Building Maintenance,,,,,,No
The Royal Borough of Kensington and Chelsea,RBKC,,Statutory Year-End Adjustments,Statutory Year-End Adjustments,,Resourcing Group ,1235269,,,,16/06/2022,2200252742,618.24,,B*Strategic Building Maintenance,,,,,,No
The Royal Borough of Kensington and Chelsea,RBKC,,Statutory Year-End Adjustments,Statutory Year-End Adjustments,,Resourcing Group ,1235269,,,,16/06/2022,2200252749,"1,428.48",,B*Strategic Building Maintenance,,,,,,No
The Royal Borough of Kensington and Chelsea,RBKC,,Statutory Year-End Adjustments,Statutory Year-End Adjustments,,Resourcing Group ,1235269,,,,24/06/2022,2200254183,"1,428.48",,B*Strategic Building Maintenance,,,,,,No
The Royal Borough of Kensington and Chelsea,RBKC,,Statutory Year-End Adjustments,Statutory Year-End Adjustments,,Resourcing Group ,1235269,,,,24/06/2022,2200254184,"1,030.40",,B*Strategic Building Maintenance,,,,,,No
The Royal Borough of Kensington and Chelsea,RBKC,,Statutory Year-End Adjustments,Statutory Year-End Adjustments,,Redact Details,1283970,,,,08/04/2022,2200239870,"6,562.50",,Design Consultant,,,,,,No
The Royal Borough of Kensington and Chelsea,RBKC,,Statutory Year-End Adjustments,Statutory Year-End Adjustments,,Redact Details,1283970,,,,01/06/2022,2200250004,"5,312.50",,Design Consultant,,,,,,No
The Royal Borough of Kensington and Chelsea,RBKC,,Statutory Year-End Adjustments,Statutory Year-End Adjustments,,Redact Details,1283970,,,,28/06/2022,2200254655,"5,625.00",,Design Consultant,,,,,,No
The Royal Borough of Kensington and Chelsea,RBKC,,Statutory Year-End Adjustments,Statutory Year-End Adjustments,,Rider Levett Bucknall UK Ltd,1274167,,,,01/04/2022,2200240711,"8,530.00",,,,,,,,No
The Royal Borough of Kensington and Chelsea,RBKC,,Statutory Year-End Adjustments,Statutory Year-End Adjustments,,Rider Levett Bucknall UK Ltd,1274167,,,,06/04/2022,2200239237,"16,605.84",,,,,,,,No
The Royal Borough of Kensington and Chelsea,RBKC,,Statutory Year-End Adjustments,Statutory Year-End Adjustments,,Rider Levett Bucknall UK Ltd,1274167,,,,06/04/2022,2200239270,"8,795.77",,,,,,,,No
The Royal Borough of Kensington and Chelsea,RBKC,,Statutory Year-End Adjustments,Statutory Year-End Adjustments,,Rider Levett Bucknall UK Ltd,1274167,,,,07/04/2022,2200239612,"3,042.00",,,,,,,,No
The Royal Borough of Kensington and Chelsea,RBKC,,Statutory Year-End Adjustments,Statutory Year-End Adjustments,,Rider Levett Bucknall UK Ltd,1274167,,,,11/04/2022,2200239940,"4,018.00",,,,,,,,No
The Royal Borough of Kensington and Chelsea,RBKC,,Statutory Year-End Adjustments,Statutory Year-End Adjustments,,Rider Levett Bucknall UK Ltd,1274167,,,,11/04/2022,2200239953,"9,225.00",,,,,,,,No
The Royal Borough of Kensington and Chelsea,RBKC,,Statutory Year-End Adjustments,Statutory Year-End Adjustments,,Rider Levett Bucknall UK Ltd,1274167,,,,11/04/2022,2200239973,"2,000.00",,,,,,,,No
The Royal Borough of Kensington and Chelsea,RBKC,,Statutory Year-End Adjustments,Statutory Year-End Adjustments,,Rider Levett Bucknall UK Ltd,1274167,,,,26/04/2022,2200242758,"8,795.78",,,,,,,,No
The Royal Borough of Kensington and Chelsea,RBKC,,Statutory Year-End Adjustments,Statutory Year-End Adjustments,,Rider Levett Bucknall UK Ltd,1274167,,,,04/05/2022,2200244297,"3,566.67",,,,,,,,No
The Royal Borough of Kensington and Chelsea,RBKC,,Statutory Year-End Adjustments,Statutory Year-End Adjustments,,Rider Levett Bucknall UK Ltd,1274167,,,,06/05/2022,2200244694,"9,330.00",,,,,,,,No
The Royal Borough of Kensington and Chelsea,RBKC,,Statutory Year-End Adjustments,Statutory Year-End Adjustments,,Rider Levett Bucknall UK Ltd,1274167,,,,06/05/2022,2200244915,"16,605.84",,,,,,,,No
The Royal Borough of Kensington and Chelsea,RBKC,,Statutory Year-End Adjustments,Statutory Year-End Adjustments,,Rider Levett Bucknall UK Ltd,1274167,,,,09/05/2022,2200245046,"2,977.95",,,,,,,,No
The Royal Borough of Kensington and Chelsea,RBKC,,Statutory Year-End Adjustments,Statutory Year-End Adjustments,,Rider Levett Bucknall UK Ltd,1274167,,,,09/05/2022,2200245047,"4,018.00",,,,,,,,No
The Royal Borough of Kensington and Chelsea,RBKC,,Statutory Year-End Adjustments,Statutory Year-End Adjustments,,Rider Levett Bucknall UK Ltd,1274167,,,,11/05/2022,2200245708,"4,612.50",,,,,,,,No
The Royal Borough of Kensington and Chelsea,RBKC,,Statutory Year-End Adjustments,Statutory Year-End Adjustments,,Rider Levett Bucknall UK Ltd,1274167,,,,13/05/2022,2200246401,"14,382.12",,,,,,,,No
The Royal Borough of Kensington and Chelsea,RBKC,,Statutory Year-End Adjustments,Statutory Year-End Adjustments,,Rider Levett Bucknall UK Ltd,1274167,,,,13/05/2022,2200246402,873.00,,,,,,,,No
The Royal Borough of Kensington and Chelsea,RBKC,,Statutory Year-End Adjustments,Statutory Year-End Adjustments,,Rider Levett Bucknall UK Ltd,1274167,,,,13/05/2022,2200246403,"8,000.00",,,,,,,,No
The Royal Borough of Kensington and Chelsea,RBKC,,Statutory Year-End Adjustments,Statutory Year-End Adjustments,,Rider Levett Bucknall UK Ltd,1274167,,,,17/05/2022,2200246896,"1,521.00",,,,,,,,No
The Royal Borough of Kensington and Chelsea,RBKC,,Statutory Year-End Adjustments,Statutory Year-End Adjustments,,Rider Levett Bucknall UK Ltd,1274167,,,,09/06/2022,2200251085,"5,662.56",,Quantity Surveyors,,,,,,No
The Royal Borough of Kensington and Chelsea,RBKC,,Statutory Year-End Adjustments,Statutory Year-End Adjustments,,Rider Levett Bucknall UK Ltd,1274167,,,,10/06/2022,2200251413,"1,150.00",,,,,,,,No
The Royal Borough of Kensington and Chelsea,RBKC,,Statutory Year-End Adjustments,Statutory Year-End Adjustments,,Rider Levett Bucknall UK Ltd,1274167,,,,13/06/2022,2200251658,"4,500.00",,,,,,,,No
The Royal Borough of Kensington and Chelsea,RBKC,,Statutory Year-End Adjustments,Statutory Year-End Adjustments,,Rider Levett Bucknall UK Ltd,1274167,,,,15/06/2022,2200252497,"8,795.77",,,,,,,,No
The Royal Borough of Kensington and Chelsea,RBKC,,Statutory Year-End Adjustments,Statutory Year-End Adjustments,,Rider Levett Bucknall UK Ltd,1274167,,,,16/06/2022,2200252712,873.00,,,,,,,,No
The Royal Borough of Kensington and Chelsea,RBKC,,Statutory Year-End Adjustments,Statutory Year-End Adjustments,,Rider Levett Bucknall UK Ltd,1274167,,,,21/06/2022,2200253270,"2,758.00",,,,,,,,No
The Royal Borough of Kensington and Chelsea,RBKC,,Statutory Year-End Adjustments,Statutory Year-End Adjustments,,Rider Levett Bucknall UK Ltd,1274167,,,,23/06/2022,2200253794,"2,994.00",,Quantity Surveyors,,,,,,No
The Royal Borough of Kensington and Chelsea,RBKC,,Statutory Year-End Adjustments,Statutory Year-End Adjustments,,Rider Levett Bucknall UK Ltd,1274167,,,,28/06/2022,2200254690,"3,970.59",,,,,,,,No
The Royal Borough of Kensington and Chelsea,RBKC,,Statutory Year-End Adjustments,Statutory Year-End Adjustments,,Rider Levett Bucknall UK Ltd,1274167,,,,28/06/2022,2200254692,"1,835.95",,,,,,,,No
The Royal Borough of Kensington and Chelsea,RBKC,,Statutory Year-End Adjustments,Statutory Year-End Adjustments,,Rider Levett Bucknall UK Ltd,1274167,,,,28/06/2022,2200254762,"4,000.00",,,,,,,,No
The Royal Borough of Kensington and Chelsea,RBKC,,Statutory Year-End Adjustments,Statutory Year-End Adjustments,,Rider Levett Bucknall UK Ltd,1274167,,,,28/06/2022,2200254787,"1,000.00",,,,,,,,No
The Royal Borough of Kensington and Chelsea,RBKC,,Statutory Year-End Adjustments,Statutory Year-End Adjustments,,Rider Levett Bucknall UK Ltd,1274167,,,,28/06/2022,2200254808,"2,306.00",,,,,,,,No
The Royal Borough of Kensington and Chelsea,RBKC,,Statutory Year-End Adjustments,Statutory Year-End Adjustments,,Ridge And Partners LLP ,1231273,,,,04/04/2022,2200238347,"1,200.00",,Payments to sub contractor,,,,,,No
The Royal Borough of Kensington and Chelsea,RBKC,,Statutory Year-End Adjustments,Statutory Year-End Adjustments,,Ridge And Partners LLP ,1231273,,,,03/05/2022,2200243975,"2,195.00",,Other Consultants,,,,,,No
The Royal Borough of Kensington and Chelsea,RBKC,,Statutory Year-End Adjustments,Statutory Year-End Adjustments,,Ridge And Partners LLP ,1231273,,,,06/06/2022,2200250293,"11,160.00",,Other Consultants,,,,,,No
The Royal Borough of Kensington and Chelsea,RBKC,,Statutory Year-End Adjustments,Statutory Year-End Adjustments,,Ridge And Partners LLP ,1231273,,,,06/06/2022,2200250347,"2,195.00",,Other Consultants,,,,,,No
The Royal Borough of Kensington and Chelsea,RBKC,,Statutory Year-End Adjustments,Statutory Year-End Adjustments,,Redact Details,1265790,,,,08/06/2022,2200251033,"5,522.35",,Other Consultants,,,,,,No
The Royal Borough of Kensington and Chelsea,RBKC,,Statutory Year-End Adjustments,Statutory Year-End Adjustments,,Redact Details,1265790,,,,08/06/2022,2200251035,"4,776.50",,Other Consultants,,,,,,No
The Royal Borough of Kensington and Chelsea,RBKC,,Statutory Year-End Adjustments,Statutory Year-End Adjustments,,Redact Details,1265790,,,,08/06/2022,2200251036,"1,935.90",,Other Consultants,,,,,,No
The Royal Borough of Kensington and Chelsea,RBKC,,Statutory Year-End Adjustments,Statutory Year-End Adjustments,,Redact Details,1265790,,,,08/06/2022,2200251037,"9,450.00",,Other Consultants,,,,,,No
The Royal Borough of Kensington and Chelsea,RBKC,,Statutory Year-End Adjustments,Statutory Year-End Adjustments,,Royal Repairs ,1231289,,,,01/04/2022,2200238765,"16,085.00",,Payments to main contractor,,,,,,No
The Royal Borough of Kensington and Chelsea,RBKC,,Statutory Year-End Adjustments,Statutory Year-End Adjustments,,S W Security Ltd ,1235300,,,,01/04/2022,2200238852,"95,824.78",,Payments to main contractor,,,,,,No
The Royal Borough of Kensington and Chelsea,RBKC,,Statutory Year-End Adjustments,Statutory Year-End Adjustments,,S W Security Ltd ,1235300,,,,01/04/2022,2200241091,"2,960.00",,Payments to main contractor,,,,,,No
The Royal Borough of Kensington and Chelsea,RBKC,,Statutory Year-End Adjustments,Statutory Year-End Adjustments,,S W Security Ltd ,1235300,,,,10/05/2022,2200245424,"1,203.00",,Payments to main contractor,,,,,,No
The Royal Borough of Kensington and Chelsea,RBKC,,Statutory Year-End Adjustments,Statutory Year-End Adjustments,,S W Security Ltd ,1235300,,,,10/05/2022,2200245425,"8,644.00",,Payments to main contractor,,,,,,No
The Royal Borough of Kensington and Chelsea,RBKC,,Statutory Year-End Adjustments,Statutory Year-End Adjustments,,S W Security Ltd ,1235300,,,,09/06/2022,2200251104,"44,180.46",,Payments to main contractor,,,,,,No
The Royal Borough of Kensington and Chelsea,RBKC,,Statutory Year-End Adjustments,Statutory Year-End Adjustments,,S W Security Ltd ,1235300,,,,09/06/2022,2200251227,"7,458.00",,Payments to main contractor,,,,,,No
The Royal Borough of Kensington and Chelsea,RBKC,,Statutory Year-End Adjustments,Statutory Year-End Adjustments,,S W Security Ltd ,1235300,,,,10/06/2022,2200251581,"4,530.00",,Payments to main contractor,,,,,,No
The Royal Borough of Kensington and Chelsea,RBKC,,Statutory Year-End Adjustments,Statutory Year-End Adjustments,,SP Broadway LTD,1290474,,,,09/06/2022,2200251118,500.00,,Other Consultants,,,,,,No
The Royal Borough of Kensington and Chelsea,RBKC,,Statutory Year-End Adjustments,Statutory Year-End Adjustments,,SP Broadway LTD,1290474,,,,09/06/2022,2200251120,500.00,,Other Consultants,,,,,,No
The Royal Borough of Kensington and Chelsea,RBKC,,Statutory Year-End Adjustments,Statutory Year-End Adjustments,,SP Broadway LTD,1290474,,,,09/06/2022,2200251121,500.00,,Other Consultants,,,,,,No
The Royal Borough of Kensington and Chelsea,RBKC,,Statutory Year-End Adjustments,Statutory Year-End Adjustments,,SP Sharkey Consulting Ltd ,1257479,,,,26/05/2022,2200249051,"1,225.00",,,,,,,,No
The Royal Borough of Kensington and Chelsea,RBKC,,Statutory Year-End Adjustments,Statutory Year-End Adjustments,,Safe.co.uk,1289378,,,,20/05/2022,2200248037,"1,143.15",,Purchase of  Plant,,,,,,No
The Royal Borough of Kensington and Chelsea,RBKC,,Statutory Year-End Adjustments,Statutory Year-End Adjustments,,Safestore Self Storage Notting Hill,1256081,,,,21/04/2022,2200241811,576.92,,Site Works,,,,,,No
The Royal Borough of Kensington and Chelsea,RBKC,,Statutory Year-End Adjustments,Statutory Year-End Adjustments,,Safestore Self Storage Notting Hill,1256081,,,,22/04/2022,2200242206,576.92,,Site Works,,,,,,No
The Royal Borough of Kensington and Chelsea,RBKC,,Statutory Year-End Adjustments,Statutory Year-End Adjustments,,Safestore Self Storage Notting Hill,1256081,,,,25/04/2022,2200242327,576.92,,Site Works,,,,,,No
The Royal Borough of Kensington and Chelsea,RBKC,,Statutory Year-End Adjustments,Statutory Year-End Adjustments,,Safestore Self Storage Notting Hill,1256081,,,,18/05/2022,2200247113,576.92,,Site Works,,,,,,No
The Royal Borough of Kensington and Chelsea,RBKC,,Statutory Year-End Adjustments,Statutory Year-End Adjustments,,Safestore Self Storage Notting Hill,1256081,,,,14/06/2022,2200252095,576.92,,Site Works,,,,,,No
The Royal Borough of Kensington and Chelsea,RBKC,,Statutory Year-End Adjustments,Statutory Year-End Adjustments,,Santia Asbestos Management Ltd ,1255345,,,,20/04/2022,2200241647,"2,483.00",,Planned Maintenance (CM),,,,,,No
The Royal Borough of Kensington and Chelsea,RBKC,,Statutory Year-End Adjustments,Statutory Year-End Adjustments,,Santia Asbestos Management Ltd ,1255345,,,,13/05/2022,2200246439,"8,985.00",,Planned Maintenance (CM),,,,,,No
The Royal Borough of Kensington and Chelsea,RBKC,,Statutory Year-End Adjustments,Statutory Year-End Adjustments,,Santia Asbestos Management Ltd ,1255345,,,,16/05/2022,2200246612,"4,071.25",,Planned Maintenance (CM),,,,,,No
The Royal Borough of Kensington and Chelsea,RBKC,,Statutory Year-End Adjustments,Statutory Year-End Adjustments,,Santia Asbestos Management Ltd ,1255345,,,,20/05/2022,2200247894,"1,131.25",,Planned Maintenance (CM),,,,,,No
The Royal Borough of Kensington and Chelsea,RBKC,,Statutory Year-End Adjustments,Statutory Year-End Adjustments,,Santia Asbestos Management Ltd ,1255345,,,,29/06/2022,2200254874,"132,424.68",,Planned Maintenance (CM),,,,,,No
The Royal Borough of Kensington and Chelsea,RBKC,,Statutory Year-End Adjustments,Statutory Year-End Adjustments,,Santia Asbestos Management Ltd ,1255345,,,,29/06/2022,2200254877,"96,123.04",,Planned Maintenance (CM),,,,,,No
The Royal Borough of Kensington and Chelsea,RBKC,,Statutory Year-End Adjustments,Statutory Year-End Adjustments,,Sense Sensory Ltd,1284364,,,,04/04/2022,2200238498,"5,926.20",,Payments to main contractor,,,,,,No
The Royal Borough of Kensington and Chelsea,RBKC,,Statutory Year-End Adjustments,Statutory Year-End Adjustments,,Seventy Eight Ltd,1266384,,,,14/06/2022,2200252078,"2,850.00",,Other Consultants,,,,,,No
The Royal Borough of Kensington and Chelsea,RBKC,,Statutory Year-End Adjustments,Statutory Year-End Adjustments,,Shawscreen Products,1258953,,,,10/05/2022,2200245601,"3,211.50",,Payments to main contractor,,,,,,No
The Royal Borough of Kensington and Chelsea,RBKC,,Statutory Year-End Adjustments,Statutory Year-End Adjustments,,Siemens Plc,1256361,,,,09/06/2022,2200251245,"231,728.00",,Payments to main contractor,,,,,,No
The Royal Borough of Kensington and Chelsea,RBKC,,Statutory Year-End Adjustments,Statutory Year-End Adjustments,,Siemens Plc,1256361,,,,17/06/2022,2200252796,"23,467.00",,Payments to main contractor,,,,,,No
The Royal Borough of Kensington and Chelsea,RBKC,,Statutory Year-End Adjustments,Statutory Year-End Adjustments,,Skilled Careers Limited,1265647,,,,01/04/2022,2200238813,"1,048.00",,B*Strategic Building Maintenance,,,,,,No
The Royal Borough of Kensington and Chelsea,RBKC,,Statutory Year-End Adjustments,Statutory Year-End Adjustments,,Skilled Careers Limited,1265647,,,,01/04/2022,2200238824,838.40,,B*Strategic Building Maintenance,,,,,,No
The Royal Borough of Kensington and Chelsea,RBKC,,Statutory Year-End Adjustments,Statutory Year-End Adjustments,,Skilled Careers Limited,1265647,,,,07/04/2022,2200239606,"1,048.00",,B*Strategic Building Maintenance,,,,,,No
The Royal Borough of Kensington and Chelsea,RBKC,,Statutory Year-End Adjustments,Statutory Year-End Adjustments,,Skilled Careers Limited,1265647,,,,19/04/2022,2200241334,"1,257.60",,B*Strategic Building Maintenance,,,,,,No
The Royal Borough of Kensington and Chelsea,RBKC,,Statutory Year-End Adjustments,Statutory Year-End Adjustments,,Skilled Careers Limited,1265647,,,,26/04/2022,2200242857,"1,048.00",,B*Strategic Building Maintenance,,,,,,No
The Royal Borough of Kensington and Chelsea,RBKC,,Statutory Year-End Adjustments,Statutory Year-End Adjustments,,Skilled Careers Limited,1265647,,,,03/05/2022,2200243898,838.40,,B*Strategic Building Maintenance,,,,,,No
The Royal Borough of Kensington and Chelsea,RBKC,,Statutory Year-End Adjustments,Statutory Year-End Adjustments,,Skilled Careers Limited,1265647,,,,10/05/2022,2200245612,"1,257.60",,B*Strategic Building Maintenance,,,,,,No
The Royal Borough of Kensington and Chelsea,RBKC,,Statutory Year-End Adjustments,Statutory Year-End Adjustments,,Skilled Careers Limited,1265647,,,,20/05/2022,2200248059,"1,048.00",,B*Strategic Building Maintenance,,,,,,No
The Royal Borough of Kensington and Chelsea,RBKC,,Statutory Year-End Adjustments,Statutory Year-End Adjustments,,Skilled Careers Limited,1265647,,,,27/05/2022,2200249182,"1,257.60",,B*Strategic Building Maintenance,,,,,,No
